Workbook

Sheet Input
B2: Mortgage How Much We Will Lend Calculator | K2: =IF(D6=2,N8,M8) -> 9 | M2: =COUNTA(D6,D8,D10,D12,D14,D18,D20,H8,IF(D10=35,1,H10),IF(D18="Yes",1,IF(D12="Yes",H12,I12)),IF(D12="Yes",1,IF(D18="Yes",H18,I18)),H16) -> 1 | N2: =COUNTA(D6,D8,D10,D12,D14,D18,D20,H8,IF(D10=35,1,H10),IF(D18="Yes",1,IF(D12="Yes",H12,I12)),IF(D12="Yes",1,IF(D18="Yes",H18,I18)),H16,H20) -> 2 | R2: Broker
M3: =COUNTA(D46,D55,D62,IF(D46="Yes",D48,E48),IF(D46="Yes",D50,E50),IF(D55="Yes",D57,E57),IF(D62="Yes",D64,E64)) -> 3 | N3: =COUNTA(D46,D55,D62,IF(D46="Yes",D48,E48),IF(D46="Yes",D50,E50),IF(D55="Yes",D57,E57),IF(D62="Yes",D64,E64))+COUNTA(H46,H55,H62,IF(H46="Yes",H48,I48),IF(H46="Yes",H50,I50),IF(H55="Yes",H57,I57),IF(H62="Yes",H64,I64)) -> 6
B4: Customer & Loan Details | M4: =COUNTA(D69,D73,D77,D83,D85) -> 5 | N4: =COUNTA(D69,D73,D77,D83,D85)+COUNTA(H69,H73,H77,H83,H85) -> 10
M5: =COUNTA(D89,H89) -> 2 | N5: =COUNTA(D89,H89) -> 2
C6: Number of Applicants | G6: Customer Name | M6: =SUM(M2:M5) -> 11 | N6: =SUM(N2:N5) -> 20
M7: =10+IF(D12="Yes",1,0)+IF(D18="Yes",1,0)+3+SUM(IF(D46="Yes",2,0),IF(D55="Yes",1,0),IF(D62="Yes",1,0))+5+2 -> 20 | N7: =11+IF(D12="Yes",1,0)+IF(D18="Yes",1,0)+6+SUM(IF(D46="Yes",2,0),IF(D55="Yes",1,0),IF(D62="Yes",1,0),IF(H46="Yes",2,0),IF(H55="Yes",1,0),IF(H62="Yes",1,0))+10+2 -> 29
C8: Loan Purpose | G8: Loan Amount | M8: =M7-M6 -> 9 | N8: =N7-N6 -> 9
C10: Term Years | G10: =IF($D$10=35,"","Term Months") -> Term Months
C12: =IF($D$18="Yes","","Co-Ownership") -> Co-Ownership | G12: =IF(OR($D$12="No",$D$18="Yes"),"","New Rent / Service Charge") -> New Rent / Service Charge
C14: Property Value
G16: Number of Dependants
C18: =IF(D12="Yes","","Help to Buy: Equity Loan") -> Help to Buy: Equity Loan | G18: =IF(OR(D18="No",D12="Yes"),"","Help to Buy: Equity Loan Percentage") -> Help to Buy: Equity Loan Percentage
C20: First Applicant's Date of Birth (DD/MM/YYYY) | D20: 1990-01-01 | G20: Second Applicant's Date of Birth (DD/MM/YYYY) | H20: 1990-01-01
B22: =IF(D6=2,"Applicants' Annual Income","Applicant's Annual Income") -> Applicant's Annual Income
C23: First Applicant | G23: Second Applicant:
C25: Gross Basic Salary | G25: Gross Basic Salary
C27: Gross Overtime | G27: Gross Overtime
C29: Gross Commission | G29: Gross Commission
C31: Gross Bonus | G31: Gross Bonus
C33: Gross Contracted Allowances | G33: Gross Contracted Allowances
C35: Gross Pension | G35: Gross Pension
C37: Other State Benefits (Net) | G37: Other State Benefits
C39: Child Benefits for those aged 12 & under (Net) | G39: Child Benefits for those aged 12 & under
C41: Other Income (Net) | G41: Other Income
B43: Mortgages and Secured Loans - Excluding BTL Loans
C44: First Applicant | G44: Second Applicant
C46: Other Mortgages and Secured Loans? | D46: No | G46: Other Mortgages and Secured Loans? | H46: No
C48: Total Outstanding Balance | G48: Total Outstanding Balance
C50: Monthly Secured Loan Repayment | G50: Monthly Secured Loan Repayment
B52: Store and Credit Cards
C53: First Applicant | G53: Second Applicant
C55: Does the Applicant have credit cards or store cards? | D55: No | G55: Does the Applicant have credit cards or store cards? | H55: No
C57: Total outstanding Balances | G57: Total outstanding Balances
B59: Loans and Hire Purchase
C60: First Applicant | G60: Second Applicant
C62: Other Unsecured Loans Or Hire Purchases? | D62: No | G62: Other Unsecured Loans Or Hire Purchases? | H62: No
C64: Monthly Unsecured Repayment | G64: Monthly Unsecured Repayment
B66: Other Monthly Commitments
C67: First Applicant | G67: Second Applicant
C69: Student Loan | D69: 0 | G69: Student Loan | H69: 0
C71: Child / Spouse Maintenance | G71: Child / Spouse Maintenance
C73: Pension Contribution | D73: 0 | G73: Pension Contribution | H73: 0
C75: Car Insurance | G75: Car Insurance
C77: Childcare Vouchers | D77: 0 | G77: Childcare Vouchers | H77: 0
C79: Child Care / Nursery Fees | G79: Child Care / Nursery Fees
C81: Education Fees | G81: Education Fees
C83: Professional Subscriptions | D83: 0 | G83: Professional Subscriptions | H83: 0
C85: Life / Health Insurance | D85: 0 | G85: Life / Health Insurance | H85: 0
B87: Household Monthly Expenditure
C89: Rates / Local Authority Charges | D89: 0 | G89: Other Committed Expenditure | H89: 0
B91: Result
E93: Loan amount | F93: =IF(NoBlanks<>0,"You have not completed "&NoBlanks&" mandatory field"&IF(NoBlanks>1,"s.","."), MAX(MIN('Summary Calculations'!D38,'Summary Calculations'!H38),0)) -> You have not completed 9 mandatory fields.

Sheet Loan Details
B3: Loan Details
C5: Number of Applicants | D5: =Input!D6 -> 0 | G5: Channel | H5: Broker
C7: Loan Purpose | D7: =Input!D8 -> 0 | G7: Purchase Price | H7: =Input!D14 -> 0 | K7: LTV | L7: =IFERROR(H8/H7,0) -> 0
C8: Term Years | D8: =Input!D10 -> 0 | G8: Loan Amount | H8: =Input!H8 -> 0
C9: Term Months | D9: =Input!H10 -> 0
G10: Product | H10: =Input!H14 -> 0
G11: Annual Interest Rate | H11: 0.029 | K11: =IFERROR( IF(H10=Rates!A7,VLOOKUP(L7,Rates!B7:O14,HLOOKUP(D7,Rates!E1:O2,2,0),1), IF(H10=Rates!A15,VLOOKUP(L7,Rates!B15:O22,HLOOKUP(D7,Rates!E1:O2,2,0),1), IF(H10=Rates!A23,VLOOKUP(L7,Rates!B23:O30,HLOOKUP(D7,Rates!E1:O2,2,0),1), IF(H10=Rates!A42,VLOOKUP(L7,Rates!B42:F47,5,1))))),"") -> FALSE | L11: =IFERROR(IF(ISNUMBER(SEARCH("fixed",H10)),Rates_upd!$C$16,Rates_upd!$Q$16),"") -> 
C12: Co-Ownership | D12: =Input!D12 -> 0 | G12: Follow-On Rate | H12: 0.033
C14: Help to Buy: Equity Loan | D14: =Input!D18 -> 0 | G14: Help to Buy: Equity Loan Percentage | H14: =Input!H18 -> 0

Sheet Applicant 1
A1: ='Loan Details'!H5 -> Broker
B3: Loan Details
C5: Date of Birth (YYYY-MM-DD) | D5: =Input!D20 -> 1990-01-01 | G5: Age | H5: =IF(D5="","Input DOB",DATEDIF(D5,TODAY(),"Y")) -> 31
C6: Estimate Retirement Age | D6: 68
B9: Employment Income
C11: Employment Status | D11: Employed
C12: Type of Fixed Term
D14: Gross Annual | E14: Net Monthly | F14: Assessable | H14: Gross Annual
C15: Basic Salary | D15: =Input!D25 -> 0 | F15: ='1 Net Monthly Income'!B6 -> 1 | G15: Pay from all employment(s) (Wage / Salary) Year 1
C16: Overtime | D16: =Input!D27 -> 0 | F16: ='1 Net Monthly Income'!B7 -> 0.5 | G16: Pay from all employment(s) (Wage / Salary) Year 2
C17: Commission | D17: =Input!D29 -> 0 | F17: ='1 Net Monthly Income'!B8 -> 0.5 | G17: Pay from all employment(s) (Wage / Salary) Year 3
C18: Bonus | D18: =Input!D31 -> 0 | F18: ='1 Net Monthly Income'!B9 -> 0.5
C19: Allowance | D19: =Input!D33 -> 0 | F19: ='1 Net Monthly Income'!B10 -> 1
C20: Sub Total | D20: =IF(D12="Zero Hours",0,SUM(D15:D19)) -> 0 | E20: =IF(D12="Zero Hours",0,SUM(E15:E19)) -> 0 | G20: Assessable Income | H20: =H15 -> 0
C22: Does the applicant have Secondary Employment Income? | D22: No
C23: Secondary Employment Status
C24: Type of Fixed Term
D26: Gross Annual | E26: Net Monthly | F26: Assessable
C27: Basic Salary | F27: ='1 Net Monthly Income'!B6 -> 1
C28: Overtime | F28: ='1 Net Monthly Income'!B7 -> 0.5
C29: Commission | F29: ='1 Net Monthly Income'!B8 -> 0.5
C30: Bonus | F30: ='1 Net Monthly Income'!B9 -> 0.5
C31: Allowance | F31: ='1 Net Monthly Income'!B10 -> 1
C32: Sub Total | D32: =IF(D24="Zero Hours",0,SUM(D27:D31)) -> 0 | E32: =IF(D24="Zero Hours",0,SUM(E27:E31)) -> 0
C34: Total Income (Gross Annual) | D34: =D20+H20+D32 -> 0 | E34: =E20+I20+E32+I32 -> 0 | G34: Total Assessible Income (Gross Annual) | H34: =IF(D12="Zero Hours",0,SUMPRODUCT(D15:D19,F15:F19))+IF(D24="Zero Hours",0,SUMPRODUCT(D27:D31,F27:F31))+H20 -> 0 | I34: =IF(D12="Zero Hours",0,SUMPRODUCT(E15:E19,F15:F19))+IF(D24="Zero Hours",0,SUMPRODUCT(E27:E31,F27:F31)) -> 0
B36: Other Sources of Income
C38: Does the applicants have any other sources of income? | D38: Yes
D40: Annual | E40: Net Monthly | F40: Assessable
C41: Rental Income excluding BTL properties | F41: ='1 Net Monthly Income'!C22 -> 0.75
C42: Profit from Self Employment | F42: ='1 Net Monthly Income'!C24 -> 1
C43: Income from Company pension | F43: ='1 Net Monthly Income'!C25 -> 1
C44: Income from State pension | D44: =Input!D35 -> 0 | F44: ='1 Net Monthly Income'!C26 -> 1
C45: Income from Private pension | F45: ='1 Net Monthly Income'!C27 -> 1
C46: Other state benefits (Net) | D46: =Input!D37 -> 0 | F46: ='1 Net Monthly Income'!C28 -> 0.25
C47: Investment income | F47: ='1 Net Monthly Income'!C29 -> 1
C48: Dividends | F48: ='1 Net Monthly Income'!C30 -> 1
C49: Deposit Interest | F49: ='1 Net Monthly Income'!C31 -> 1
C50: Trust Income | F50: ='1 Net Monthly Income'!C32 -> 1
C51: Annuities | F51: ='1 Net Monthly Income'!C33 -> 1
C52: Child Benefit for children aged 12 or below (Net) | D52: =Input!D39 -> 0 | F52: ='1 Net Monthly Income'!C34 -> 1 | G52: =IF('Applicant 2'!D7="Yes",IF(AND(SUM(D34,D41:D51,D54,D123*12)<=50000,SUM('Applicant 2'!D34,'Applicant 2'!D41:D51,'Applicant 2'!D123*12)<=50000),D52,0),IF(SUM(D34,D41:D51,D54,D123*12)<=50000,D52,0)) -> 0 | H52: =IF('Applicant 2'!D7="Yes",IF(AND(SUM(D34,D41:D51,D54,D123*12)<=50000,SUM('Applicant 2'!D34,'Applicant 2'!D41:D51,'Applicant 2'!D123*12)<=50000),E52,0),IF(SUM(D34,D41:D51,D54,D123*12)<=50000,E52,0)) -> 0
C54: Other Income (Net) | D54: =Input!D41 -> 0 | F54: ='1 Net Monthly Income'!C35 -> 1
C56: Total Other Income | D56: =SUM(D41:D51,G52,D54) -> 0 | E56: =SUM(E41:E51,E54,H52) -> 0 | G56: Total Assessable Other Income | H56: =SUMPRODUCT(D41:D51,F41:F51)+G52*F52+D54*F54 -> 0 | I56: =SUMPRODUCT(E41:E51,F41:F51)+H52*F52+E54*F54 -> 0
B58: Credit Commitments
C59: Primary Residential Mortgage
C61: Does the applicant have existing Residential Mortage Commitment? | D61: No | G61: To be repaid?
C62: Outstanding Balance
C63: Monthly Payment | G63: Assessable Payment | H63: =(D62-H62)*'2 Existing Mortgage Commitments'!$E$20/12+D63 -> 0
C65: Other Mortgages and Secured Loans
C67: Does the applicant have any other Mortgages or Secured Loans? | D67: Yes | G67: To be repaid?
C68: Total Outstanding Balance | D68: =Input!D48 -> 0 | G68: Balance to be repaid
C69: Monthly Payment to remain | D69: =Input!D50 -> 0 | G69: Assessable Payment | H69: =(D68-H68)*'2 Existing Mortgage Commitments'!$E$20/12+D69 -> 0
C71: Store and Credit Cards
C73: Does the applicant have Credit or Store Card? | D73: Yes | G73: To be repaid?
C74: Balance | D74: =Input!D57 -> 0 | G74: Balance to be repaid
G75: Assessable Payment | H75: =(D74-H74)*'3 Revolving Credit Commitments'!D14 -> 0
C76: Loans and Hire Purchase
C78: Does the applicant have any Unsecured Loans or Hire Purchase? | D78: Yes | G78: To be repaid?
C79: Monthly Payment | D79: =Input!D64 -> 0 | G79: Payment to be repaid
G80: Assessable Payment | H80: =(D79-H79) -> 0
C82: Other Commitments
C84: Does the applicant make any monthly pension contributions or have any other financial commitments? | D84: Yes
C86: Child / Spouse Maintenance | D86: =Input!D71 -> 0 | G86: Pension Contribution | H86: =Input!D73 -> 0
C87: Childcare Vouchers | D87: =Input!D77 -> 0 | G87: Health Insurance | H87: =Input!D85 -> 0
C88: Child Care / Nursery Fees | D88: =Input!D79 -> 0 | G88: Insurance
C89: Education Fees | D89: =Input!D81 -> 0
C90: Professional Subscriptions | D90: =Input!D83 -> 0 | G90: Other
C91: Student Loan | D91: =Input!D69 -> 0
G92: Commitments to be paid off
C93: Overall Commitments | D93: =IF(D84 = "Yes",SUM(D86:D91,H86:H90),0)-H92 -> 0
B95: BTL Portfolio
C97: Does the applicant own any Investment / BTL properties | D97: No | G97: How many Investment/BTL properties does the applicant have?
C99: Property 1: | G99: Property 4:
C100: To be repaid? | G100: To be repaid?
C101: Outstanding Balance | G101: Outstanding Balance
C102: Monthly Payment | G102: Monthly Payment
C103: Monthly Additional Costs | G103: Monthly Additional Costs
C104: Rental Income | G104: Rental Income
C106: Property 2: | G106: Property 5:
C107: To be repaid? | G107: To be repaid?
C108: Outstanding Balance | G108: Outstanding Balance
C109: Monthly Payment | G109: Monthly Payment
C110: Monthly Additional Costs | G110: Monthly Additional Costs
C111: Rental Income | G111: Rental Income
C113: Property 3:
C114: To be repaid?
C115: Outstanding Balance
C116: Monthly Payment
C117: Monthly Additional Costs
C118: Rental Income
C120: Overall Outstanding Balance | D120: =D101+D108+D115+H108+H101 -> 0
C121: Overall Monthly Payment | D121: =D102+D109+D116+H109+H102 -> 0 | G121: Assessable BTL Repayment | H121: =MAX(D102+D101*'2 Existing Mortgage Commitments'!$E$10/12,D101*'2 Existing Mortgage Commitments'!$F$10/12)+MAX(D109+D108*'2 Existing Mortgage Commitments'!$E$10/12,D108*'2 Existing Mortgage Commitments'!$F$10/12)+MAX(D116+D115*'2 Existing Mortgage Commitments'!$E$10/12,D115*'2 Existing Mortgage Commitments'!$F$10/12)+MAX(H102+H101*'2 Existing Mortgage Commitments'!$E$10/12,H101*'2 Existing Mortgage Commitments'!$F$10/12)+MAX(H109+H108*'2 Existing Mortgage Commitments'!$E$10/12,H108*'2 Existing Mortgage Commitments'!$F$10/12) -> 0
C122: Overall Montly additional costs | D122: =D103+D110+D117+H110+H103 -> 0
C123: Montly Portfolio Rental Income | D123: =D104+D111+D118+H111+H104 -> 0 | G123: Assessable Rental Income | H123: =D123*'1 Net Monthly Income'!$C$22 -> 0
B126: Gross Income
C128: Total Gross Annual Income | D128: =SUM(D34 + D56 +D123*12) -> 0
C129: Total Gross Assessible Income | D129: =SUM(H34,H56)-SUM(D41*F41,D46*F46,D47*F47,D49*F49,D50*F50,D51*F51,G52,D54*F54) -> 0
C131: Total Net Monthly Income | D131: =IF('Loan Details'!H5="Broker",'Tax Applicant 1'!C44+(D41*F41+D46*F46+G52*F52+D54*F54)/12+H123, IF(OR(D11="Self Employed",D11="Employed and Self Employed",D23="Self Employed",D23="Employed and Self Employed"),'Tax Applicant 1'!C44+(D41*F41+D46*F46+G52*F52+D54*F54)/12+H123, I34+I56+H123)) -> 0 | G131: Non-Credit Monthly Commitments | H131: =IF(OR('Loan Details'!H5="Broker",OR(D11="Self Employed",D23="Self Employed")),D93-H86-D91-D87,D93) -> 0

Sheet Applicant 2 (hidden)
A1: ='Loan Details'!H5 -> Broker
B3: Loan Details
C5: Date of Birth (YYYY-MM-DD) | G5: Age | H5: =IF(D5="","Input DOB",DATEDIF(D5,TODAY(),"Y")) -> Input DOB
C6: Estimate Retirement Age
C7: Will the applicant share household with Applicant 1?
B9: Employment Income
C11: Employment Status
C12: Type of Fixed Term
D14: Gross Annual | E14: Net Monthly | F14: Assessable | H14: Gross Annual
C15: Basic Salary | F15: ='1 Net Monthly Income'!B6 -> 1 | G15: Pay from all employment(s) (Wage / Salary) Year 1
C16: Overtime | F16: ='1 Net Monthly Income'!B7 -> 0.5 | G16: Pay from all employment(s) (Wage / Salary) Year 2
C17: Commission | F17: ='1 Net Monthly Income'!B8 -> 0.5 | G17: Pay from all employment(s) (Wage / Salary) Year 3
C18: Bonus | F18: ='1 Net Monthly Income'!B9 -> 0.5
C19: Allowance | F19: ='1 Net Monthly Income'!B10 -> 1
C20: Sub Total | D20: =IF(D12="Zero Hours",0,SUM(D15:D19)) -> 0 | E20: =IF(D12="Zero Hours",0,SUM(E15:E19)) -> 0 | G20: Assessable Income | H20: =H15 -> 0
C22: Does the applicant have Secondary Employment Income?
C23: Secondary Employment Status
C24: Type of Fixed Term
D26: Gross Annual | E26: Net Monthly | F26: Assessable
C27: Basic Salary | F27: ='1 Net Monthly Income'!B6 -> 1
C28: Overtime | F28: ='1 Net Monthly Income'!B7 -> 0.5
C29: Commission | F29: ='1 Net Monthly Income'!B8 -> 0.5
C30: Bonus | F30: ='1 Net Monthly Income'!B9 -> 0.5
C31: Allowance | F31: ='1 Net Monthly Income'!B10 -> 1
C32: Sub Total | D32: =IF(D24="Zero Hours",0,SUM(D27:D31)) -> 0 | E32: =IF(D24="Zero Hours",0,SUM(E27:E31)) -> 0
C34: Total Income (Gross Annual) | D34: =D20+H20+D32 -> 0 | E34: =E20+I20+E32+I32 -> 0 | G34: Total Assessible Income (Gross Annual) | H34: =IF(D12="Zero Hours",0,SUMPRODUCT(D15:D19,F15:F19))+IF(D24="Zero Hours",0,SUMPRODUCT(D27:D31,F27:F31))+H20 -> 0 | I34: =IF(D12="Zero Hours",0,SUMPRODUCT(E15:E19,F15:F19))+IF(D24="Zero Hours",0,SUMPRODUCT(E27:E31,F27:F31)) -> 0
B36: Other Sources of Income
C38: Does the applicants have any other sources of income?
D40: Annual | E40: Net Monthly | F40: Assessable
C41: Rental Income excluding BTL properties | F41: ='1 Net Monthly Income'!C22 -> 0.75
C42: Profit from Self Employment | F42: ='1 Net Monthly Income'!C24 -> 1
C43: Income from Company pension | F43: ='1 Net Monthly Income'!C25 -> 1
C44: Income from State pension | F44: ='1 Net Monthly Income'!C26 -> 1
C45: Income from Private pension | F45: ='1 Net Monthly Income'!C27 -> 1
C46: Other state benefits (Net) | F46: ='1 Net Monthly Income'!C28 -> 0.25
C47: Investment income | F47: ='1 Net Monthly Income'!C29 -> 1
C48: Dividends | F48: ='1 Net Monthly Income'!C30 -> 1
C49: Deposit Interest | F49: ='1 Net Monthly Income'!C31 -> 1
C50: Trust Income | F50: ='1 Net Monthly Income'!C32 -> 1
C51: Annuities | F51: ='1 Net Monthly Income'!C33 -> 1
C52: Child Benefit for children aged 12 or below (Net) | F52: ='1 Net Monthly Income'!C34 -> 1 | G52: =IF('Applicant 2'!D7="Yes",IF(AND(SUM(D34,D41:D51,D54,D123*12)<=50000,SUM('Applicant 1'!D34,'Applicant 1'!D41:D51,'Applicant 1'!D123*12)<=50000),D52,0),IF(SUM(D34,D41:D51,D54,D123*12)<=50000,D52,0)) -> 0 | H52: =IF('Applicant 2'!D7="Yes",IF(AND(SUM(D34,D41:D51,D54,D123*12)<=50000,SUM('Applicant 1'!D34,'Applicant 1'!D41:D51,'Applicant 1'!D123*12)<=50000),E52,0),IF(SUM(D34,D41:D51,D54,D123*12)<=50000,E52,0)) -> 0
C54: Other Income (Net) | F54: ='1 Net Monthly Income'!C35 -> 1
C56: Total Other Income | D56: =SUM(D41:D51,G52,D54) -> 0 | E56: =SUM(E41:E51,E54,H52) -> 0 | G56: Total Assessable Other Income | H56: =SUMPRODUCT(D41:D51,F41:F51)+G52*F52+D54*F54 -> 0 | I56: =SUMPRODUCT(E41:E51,F41:F51)+H52*F52+E54*F54 -> 0
B58: Credit Commitments
C59: Primary Residential Mortgage
C61: Does the applicant have existing Residential Mortage Commitment? | G61: To be repaid?
C62: Outstanding Balance
C63: Monthly Payment | G63: Assessable Payment | H63: =(D62-H62)*'2 Existing Mortgage Commitments'!$E$20/12+D63 -> 0
C65: Other Mortgages and Secured Loans
C67: Does the applicant have any other Mortgages or Secured Loans? | G67: To be repaid?
C68: Total Outstanding Balance | G68: Balance to be repaid
C69: Monthly Payment to remain | G69: Assessable Payment | H69: =(D68-H68)*'2 Existing Mortgage Commitments'!$E$20/12+D69 -> 0
C71: Store and Credit Cards
C73: Does the applicant have Credit or Store Card? | G73: To be repaid?
C74: Balance | G74: Balance to be repaid
G75: Assessable Payment | H75: =(D74-H74)*'3 Revolving Credit Commitments'!D14 -> 0
C76: Loans and Hire Purchase
C78: Does the applicant have any Unsecured Loans or Hire Purchase? | G78: To be repaid?
C79: Monthly Payment | G79: Payment to be repaid
G80: Assessable Payment | H80: =(D79-H79) -> 0
C82: Other Commitments
C84: Does the applicant make any monthly pension contributions or have any other financial commitments?
C86: Child / Spouse Maintenance | G86: Pension Contribution
C87: Childcare Vouchers | G87: Health Insurance
C88: Child Care / Nursery Fees | G88: Insurance
C89: Education Fees
C90: Professional Subscriptions | G90: Other
C91: Student Loan
G92: Commitments to be paid off
C93: Overall Commitments | D93: =IF(D84 = "Yes",SUM(D86:D91,H86:H90),0)-H92 -> 0
B95: BTL Portfolio
C97: Does the applicant own any Investment / BTL properties | G97: How many Investment/BTL properties does the applicant have?
C99: Property 1: | G99: Property 4:
C100: To be repaid? | G100: To be repaid?
C101: Outstanding Balance | G101: Outstanding Balance
C102: Monthly Payment | G102: Monthly Payment
C103: Monthly Additional Costs | G103: Monthly Additional Costs
C104: Rental Income | G104: Rental Income
C106: Property 2: | G106: Property 5:
C107: To be repaid? | G107: To be repaid?
C108: Outstanding Balance | G108: Outstanding Balance
C109: Monthly Payment | G109: Monthly Payment
C110: Monthly Additional Costs | G110: Monthly Additional Costs
C111: Rental Income | G111: Rental Income
C113: Property 3:
C114: To be repaid?
C115: Outstanding Balance
C116: Monthly Payment
C117: Monthly Additional Costs
C118: Rental Income
C120: Overall Outstanding Balance | D120: =D101+D108+D115+H108+H101 -> 0
C121: Overall Monthly Payment | D121: =D102+D109+D116+H109+H102 -> 0 | G121: Assessable BTL Repayment | H121: =MAX(D102+D101*'2 Existing Mortgage Commitments'!$E$10/12,D101*'2 Existing Mortgage Commitments'!$F$10/12)+MAX(D109+D108*'2 Existing Mortgage Commitments'!$E$10/12,D108*'2 Existing Mortgage Commitments'!$F$10/12)+MAX(D116+D115*'2 Existing Mortgage Commitments'!$E$10/12,D115*'2 Existing Mortgage Commitments'!$F$10/12)+MAX(H102+H101*'2 Existing Mortgage Commitments'!$E$10/12,H101*'2 Existing Mortgage Commitments'!$F$10/12)+MAX(H109+H108*'2 Existing Mortgage Commitments'!$E$10/12,H108*'2 Existing Mortgage Commitments'!$F$10/12) -> 0
C122: Overall Montly additional costs | D122: =D103+D110+D117+H110+H103 -> 0
C123: Montly Portfolio Rental Income | D123: =D104+D111+D118+H111+H104 -> 0 | G123: Assessable Rental Income | H123: =D123*'1 Net Monthly Income'!$C$22 -> 0
B126: Gross Income
C128: Total Gross Annual Income | D128: =SUM(D34 + D56 +D123*12) -> 0
C129: Total Gross Assessible Income | D129: =SUM(H34,H56)-SUM(D41*F41,D46*F46,D47*F47,D49*F49,D50*F50,D51*F51,G52,D54*F54) -> 0
C131: Total Net Monthly Income | D131: =IF('Loan Details'!H5="Broker",'Tax Applicant 2'!C44+(D41*F41+D46*F46+D52*F52+D54*F54)/12+H123, IF(OR(D11="Self Employed",D11="Employed and Self Employed",D23="Self Employed",D23="Employed and Self Employed"),'Tax Applicant 2'!C44+(D41*F41+D46*F46+D52*F52+D54*F54)/12+H123, I34+I56+H123)) -> 0 | G131: Non-Credit Monthly Commitments | H131: =IF(OR('Loan Details'!H5="Broker",OR(D11="Self Employed",D23="Self Employed")),D93-H86-D91-D87,D93) -> 0

Sheet Applicant 3 (hidden)
A1: ='Loan Details'!H5 -> Broker
B3: Loan Details
C5: Date of Birth (YYYY-MM-DD) | G5: Age | H5: =IF(D5="","Input DOB",DATEDIF(D5,TODAY(),"Y")) -> Input DOB
C6: Estimate Retirement Age
C7: Will the applicant share household with Applicant 1?
B9: Employment Income
C11: Employment Status
C12: Type of Fixed Term
D14: Gross Annual | E14: Net Monthly | F14: Assessable | H14: Gross Annual
C15: Basic Salary | F15: ='1 Net Monthly Income'!B6 -> 1 | G15: Pay from all employment(s) (Wage / Salary) Year 1
C16: Overtime | F16: ='1 Net Monthly Income'!B7 -> 0.5 | G16: Pay from all employment(s) (Wage / Salary) Year 2
C17: Commission | F17: ='1 Net Monthly Income'!B8 -> 0.5 | G17: Pay from all employment(s) (Wage / Salary) Year 3
C18: Bonus | F18: ='1 Net Monthly Income'!B9 -> 0.5
C19: Allowance | F19: ='1 Net Monthly Income'!B10 -> 1
C20: Sub Total | D20: =IF(D12="Zero Hours",0,SUM(D15:D19)) -> 0 | E20: =IF(D12="Zero Hours",0,SUM(E15:E19)) -> 0 | G20: Assessable Income | H20: =H15 -> 0
C22: Does the applicant have Secondary Employment Income?
C23: Secondary Employment Status
C24: Type of Fixed Term
D26: Gross Annual | E26: Net Monthly | F26: Assessable
C27: Basic Salary | F27: ='1 Net Monthly Income'!B6 -> 1
C28: Overtime | F28: ='1 Net Monthly Income'!B7 -> 0.5
C29: Commission | F29: ='1 Net Monthly Income'!B8 -> 0.5
C30: Bonus | F30: ='1 Net Monthly Income'!B9 -> 0.5
C31: Allowance | F31: ='1 Net Monthly Income'!B10 -> 1
C32: Sub Total | D32: =IF(D24="Zero Hours",0,SUM(D27:D31)) -> 0 | E32: =IF(D24="Zero Hours",0,SUM(E27:E31)) -> 0
C34: Total Income (Gross Annual) | D34: =D20+H20+D32 -> 0 | E34: =E20+I20+E32+I32 -> 0 | G34: Total Assessible Income (Gross Annual) | H34: =IF(D12="Zero Hours",0,SUMPRODUCT(D15:D19,F15:F19))+IF(D24="Zero Hours",0,SUMPRODUCT(D27:D31,F27:F31))+H20 -> 0 | I34: =IF(D12="Zero Hours",0,SUMPRODUCT(E15:E19,F15:F19))+IF(D24="Zero Hours",0,SUMPRODUCT(E27:E31,F27:F31)) -> 0
B36: Other Sources of Income
C38: Does the applicants have any other sources of income?
D40: Annual | E40: Net Monthly | F40: Assessable
C41: Rental Income excluding BTL properties | F41: ='1 Net Monthly Income'!C22 -> 0.75
C42: Profit from Self Employment | F42: ='1 Net Monthly Income'!C24 -> 1
C43: Income from Company pension | F43: ='1 Net Monthly Income'!C25 -> 1
C44: Income from State pension | F44: ='1 Net Monthly Income'!C26 -> 1
C45: Income from Private pension | F45: ='1 Net Monthly Income'!C27 -> 1
C46: Other state benefits (Net) | F46: ='1 Net Monthly Income'!C28 -> 0.25
C47: Investment income | F47: ='1 Net Monthly Income'!C29 -> 1
C48: Dividends | F48: ='1 Net Monthly Income'!C30 -> 1
C49: Deposit Interest | F49: ='1 Net Monthly Income'!C31 -> 1
C50: Trust Income | F50: ='1 Net Monthly Income'!C32 -> 1
C51: Annuities | F51: ='1 Net Monthly Income'!C33 -> 1
C52: Child Benefit for children aged 12 or below (Net) | F52: ='1 Net Monthly Income'!C34 -> 1 | G52: =IF(SUM(D34,D41:D51,D54,D123*12)<=50000,D52,0) -> 0 | H52: =IF(SUM(E34,E41:E51,E54,E123*12)<=50000,E52,0) -> 0
C54: Other Income (Net) | F54: ='1 Net Monthly Income'!C35 -> 1
C56: Total Other Income | D56: =SUM(D41:D51,G52,D54) -> 0 | E56: =SUM(E41:E51,E54,H52) -> 0 | G56: Total Assessable Other Income | H56: =SUMPRODUCT(D41:D51,F41:F51)+G52*F52+D54*F54 -> 0 | I56: =SUMPRODUCT(E41:E51,F41:F51)+H52*F52+E54*F54 -> 0
B58: Credit Commitments
C59: Primary Residential Mortgage
C61: Does the applicant have existing Residential Mortage Commitment? | G61: To be repaid?
C62: Outstanding Balance
C63: Monthly Payment | G63: Assessable Payment | H63: =(D62-H62)*'2 Existing Mortgage Commitments'!$E$20/12+D63 -> 0
C65: Other Mortgages and Secured Loans
C67: Does the applicant have any other Mortgages or Secured Loans? | G67: To be repaid?
C68: Total Outstanding Balance | G68: Balance to be repaid
C69: Monthly Payment to remain | G69: Assessable Payment | H69: =(D68-H68)*'2 Existing Mortgage Commitments'!$E$20/12+D69 -> 0
C71: Store and Credit Cards
C73: Does the applicant have Credit or Store Card? | G73: To be repaid?
C74: Balance | G74: Balance to be repaid
G75: Assessable Payment | H75: =(D74-H74)*'3 Revolving Credit Commitments'!D14 -> 0
C76: Loans and Hire Purchase
C78: Does the applicant have any Unsecured Loans or Hire Purchase? | G78: To be repaid?
C79: Monthly Payment | G79: Payment to be repaid
G80: Assessable Payment | H80: =(D79-H79) -> 0
C82: Other Commitments
C84: Does the applicant make any monthly pension contributions or have any other financial commitments?
C86: Child / Spouse Maintenance | G86: Pension Contribution
C87: Childcare Vouchers | G87: Health Insurance
C88: Child Care / Nursery Fees | G88: Insurance
C89: Education Fees
C90: Professional Subscriptions | G90: Other
C91: Student Loan
G92: Commitments to be paid off
C93: Overall Commitments | D93: =IF(D84 = "Yes",SUM(D86:D91,H86:H90),0)-H92 -> 0
B95: BTL Portfolio
C97: Does the applicant own any Investment / BTL properties | G97: How many Investment/BTL properties does the applicant have?
C99: Property 1: | G99: Property 4:
C100: To be repaid? | G100: To be repaid?
C101: Outstanding Balance | G101: Outstanding Balance
C102: Monthly Payment | G102: Monthly Payment
C103: Monthly Additional Costs | G103: Monthly Additional Costs
C104: Rental Income | G104: Rental Income
C106: Property 2: | G106: Property 5:
C107: To be repaid? | G107: To be repaid?
C108: Outstanding Balance | G108: Outstanding Balance
C109: Monthly Payment | G109: Monthly Payment
C110: Monthly Additional Costs | G110: Monthly Additional Costs
C111: Rental Income | G111: Rental Income
C113: Property 3:
C114: To be repaid?
C115: Outstanding Balance
C116: Monthly Payment
C117: Monthly Additional Costs
C118: Rental Income
C120: Overall Outstanding Balance | D120: =D101+D108+D115+H108+H101 -> 0
C121: Overall Monthly Payment | D121: =D102+D109+D116+H109+H102 -> 0 | G121: Assessable BTL Repayment | H121: =MAX(D102+D101*'2 Existing Mortgage Commitments'!$E$10/12,D101*'2 Existing Mortgage Commitments'!$F$10/12)+MAX(D109+D108*'2 Existing Mortgage Commitments'!$E$10/12,D108*'2 Existing Mortgage Commitments'!$F$10/12)+MAX(D116+D115*'2 Existing Mortgage Commitments'!$E$10/12,D115*'2 Existing Mortgage Commitments'!$F$10/12)+MAX(H102+H101*'2 Existing Mortgage Commitments'!$E$10/12,H101*'2 Existing Mortgage Commitments'!$F$10/12)+MAX(H109+H108*'2 Existing Mortgage Commitments'!$E$10/12,H108*'2 Existing Mortgage Commitments'!$F$10/12) -> 0
C122: Overall Montly additional costs | D122: =D103+D110+D117+H110+H103 -> 0
C123: Montly Portfolio Rental Income | D123: =D104+D111+D118+H111+H104 -> 0 | G123: Assessable Rental Income | H123: =D123*'1 Net Monthly Income'!$C$22 -> 0
B126: Gross Income
C128: Total Gross Annual Income | D128: =SUM(D34 + D56 +D123*12) -> 0
C129: Total Gross Assessible Income | D129: =SUM(H34,H56)-SUM(D41*F41,D46*F46,D47*F47,D49*F49,D50*F50,D51*F51,G52,D54*F54) -> 0
C131: Total Net Monthly Income | D131: =IF('Loan Details'!H5="Broker",'Tax Applicant 3'!C44+(D41*F41+D46*F46+D52*F52+D54*F54)/12+H123, IF(OR(D11="Self Employed",D11="Employed and Self Employed",D23="Self Employed",D23="Employed and Self Employed"),'Tax Applicant 3'!C44+(D41*F41+D46*F46+D52*F52+D54*F54)/12+H123, I34+I56+H123)) -> 0 | G131: Non-Credit Monthly Commitments | H131: =IF(OR('Loan Details'!H5="Broker",OR(D11="Self Employed",D23="Self Employed")),D93-H86-D91-D87,D93) -> 0

Sheet Applicant 4 (hidden)
A1: ='Loan Details'!H5 -> Broker
B3: Loan Details
C5: Date of Birth (YYYY-MM-DD) | G5: Age | H5: =IF(D5="","Input DOB",DATEDIF(D5,TODAY(),"Y")) -> Input DOB
C6: Estimate Retirement Age
C7: Will the applicant share household with Applicant 1?
B9: Employment Income
C11: Employment Status
C12: Type of Fixed Term
D14: Gross Annual | E14: Net Monthly | F14: Assessable | H14: Gross Annual
C15: Basic Salary | F15: ='1 Net Monthly Income'!B6 -> 1 | G15: Pay from all employment(s) (Wage / Salary) Year 1
C16: Overtime | F16: ='1 Net Monthly Income'!B7 -> 0.5 | G16: Pay from all employment(s) (Wage / Salary) Year 2
C17: Commission | F17: ='1 Net Monthly Income'!B8 -> 0.5 | G17: Pay from all employment(s) (Wage / Salary) Year 3
C18: Bonus | F18: ='1 Net Monthly Income'!B9 -> 0.5
C19: Allowance | F19: ='1 Net Monthly Income'!B10 -> 1
C20: Sub Total | D20: =IF(D12="Zero Hours",0,SUM(D15:D19)) -> 0 | E20: =IF(D12="Zero Hours",0,SUM(E15:E19)) -> 0 | G20: Assessable Income | H20: =H15 -> 0
C22: Does the applicant have Secondary Employment Income?
C23: Secondary Employment Status
C24: Type of Fixed Term
D26: Gross Annual | E26: Net Monthly | F26: Assessable
C27: Basic Salary | F27: ='1 Net Monthly Income'!B6 -> 1
C28: Overtime | F28: ='1 Net Monthly Income'!B7 -> 0.5
C29: Commission | F29: ='1 Net Monthly Income'!B8 -> 0.5
C30: Bonus | F30: ='1 Net Monthly Income'!B9 -> 0.5
C31: Allowance | F31: ='1 Net Monthly Income'!B10 -> 1
C32: Sub Total | D32: =IF(D24="Zero Hours",0,SUM(D27:D31)) -> 0 | E32: =IF(D24="Zero Hours",0,SUM(E27:E31)) -> 0
C34: Total Income (Gross Annual) | D34: =D20+H20+D32 -> 0 | E34: =E20+I20+E32+I32 -> 0 | G34: Total Assessible Income (Gross Annual) | H34: =IF(D12="Zero Hours",0,SUMPRODUCT(D15:D19,F15:F19))+IF(D24="Zero Hours",0,SUMPRODUCT(D27:D31,F27:F31))+H20 -> 0 | I34: =IF(D12="Zero Hours",0,SUMPRODUCT(E15:E19,F15:F19))+IF(D24="Zero Hours",0,SUMPRODUCT(E27:E31,F27:F31)) -> 0
B36: Other Sources of Income
C38: Does the applicants have any other sources of income?
D40: Annual | E40: Net Monthly | F40: Assessable
C41: Rental Income excluding BTL properties | F41: ='1 Net Monthly Income'!C22 -> 0.75
C42: Profit from Self Employment | F42: ='1 Net Monthly Income'!C24 -> 1
C43: Income from Company pension | F43: ='1 Net Monthly Income'!C25 -> 1
C44: Income from State pension | F44: ='1 Net Monthly Income'!C26 -> 1
C45: Income from Private pension | F45: ='1 Net Monthly Income'!C27 -> 1
C46: Other state benefits (Net) | F46: ='1 Net Monthly Income'!C28 -> 0.25
C47: Investment income | F47: ='1 Net Monthly Income'!C29 -> 1
C48: Dividends | F48: ='1 Net Monthly Income'!C30 -> 1
C49: Deposit Interest | F49: ='1 Net Monthly Income'!C31 -> 1
C50: Trust Income | F50: ='1 Net Monthly Income'!C32 -> 1
C51: Annuities | F51: ='1 Net Monthly Income'!C33 -> 1
C52: Child Benefit for children aged 12 or below (Net) | F52: ='1 Net Monthly Income'!C34 -> 1 | G52: =IF(SUM(D34,D41:D51,D54,D123*12)<=50000,D52,0) -> 0 | H52: =IF(SUM(E34,E41:E51,E54,E123*12)<=50000,E52,0) -> 0
C54: Other Income (Net) | F54: ='1 Net Monthly Income'!C35 -> 1
C56: Total Other Income | D56: =SUM(D41:D51,G52,D54) -> 0 | E56: =SUM(E41:E51,E54,H52) -> 0 | G56: Total Assessable Other Income | H56: =SUMPRODUCT(D41:D51,F41:F51)+G52*F52+D54*F54 -> 0 | I56: =SUMPRODUCT(E41:E51,F41:F51)+H52*F52+E54*F54 -> 0
B58: Credit Commitments
C59: Primary Residential Mortgage
C61: Does the applicant have existing Residential Mortage Commitment? | G61: To be repaid?
C62: Outstanding Balance
C63: Monthly Payment | G63: Assessable Payment | H63: =(D62-H62)*'2 Existing Mortgage Commitments'!$E$20/12+D63 -> 0
C65: Other Mortgages and Secured Loans
C67: Does the applicant have any other Mortgages or Secured Loans? | G67: To be repaid?
C68: Total Outstanding Balance | G68: Balance to be repaid
C69: Monthly Payment to remain | G69: Assessable Payment | H69: =(D68-H68)*'2 Existing Mortgage Commitments'!$E$20/12+D69 -> 0
C71: Store and Credit Cards
C73: Does the applicant have Credit or Store Card? | G73: To be repaid?
C74: Balance | G74: Balance to be repaid
G75: Assessable Payment | H75: =(D74-H74)*'3 Revolving Credit Commitments'!D14 -> 0
C76: Loans and Hire Purchase
C78: Does the applicant have any Unsecured Loans or Hire Purchase? | G78: To be repaid?
C79: Monthly Payment | G79: Payment to be repaid
G80: Assessable Payment | H80: =(D79-H79) -> 0
C82: Other Commitments
C84: Does the applicant make any monthly pension contributions or have any other financial commitments?
C86: Child / Spouse Maintenance | G86: Pension Contribution
C87: Childcare Vouchers | G87: Health Insurance
C88: Child Care / Nursery Fees | G88: Insurance
C89: Education Fees
C90: Professional Subscriptions | G90: Other
C91: Student Loan
G92: Commitments to be paid off
C93: Overall Commitments | D93: =IF(D84 = "Yes",SUM(D86:D91,H86:H90),0)-H92 -> 0
B95: BTL Portfolio
C97: Does the applicant own any Investment / BTL properties | G97: How many Investment/BTL properties does the applicant have?
C99: Property 1: | G99: Property 4:
C100: To be repaid? | G100: To be repaid?
C101: Outstanding Balance | G101: Outstanding Balance
C102: Monthly Payment | G102: Monthly Payment
C103: Monthly Additional Costs | G103: Monthly Additional Costs
C104: Rental Income | G104: Rental Income
C106: Property 2: | G106: Property 5:
C107: To be repaid? | G107: To be repaid?
C108: Outstanding Balance | G108: Outstanding Balance
C109: Monthly Payment | G109: Monthly Payment
C110: Monthly Additional Costs | G110: Monthly Additional Costs
C111: Rental Income | G111: Rental Income
C113: Property 3:
C114: To be repaid?
C115: Outstanding Balance
C116: Monthly Payment
C117: Monthly Additional Costs
C118: Rental Income
C120: Overall Outstanding Balance | D120: =D101+D108+D115+H108+H101 -> 0
C121: Overall Monthly Payment | D121: =D102+D109+D116+H109+H102 -> 0 | G121: Assessable BTL Repayment | H121: =MAX(D102+D101*'2 Existing Mortgage Commitments'!$E$10/12,D101*'2 Existing Mortgage Commitments'!$F$10/12)+MAX(D109+D108*'2 Existing Mortgage Commitments'!$E$10/12,D108*'2 Existing Mortgage Commitments'!$F$10/12)+MAX(D116+D115*'2 Existing Mortgage Commitments'!$E$10/12,D115*'2 Existing Mortgage Commitments'!$F$10/12)+MAX(H102+H101*'2 Existing Mortgage Commitments'!$E$10/12,H101*'2 Existing Mortgage Commitments'!$F$10/12)+MAX(H109+H108*'2 Existing Mortgage Commitments'!$E$10/12,H108*'2 Existing Mortgage Commitments'!$F$10/12) -> 0
C122: Overall Montly additional costs | D122: =D103+D110+D117+H110+H103 -> 0
C123: Montly Portfolio Rental Income | D123: =D104+D111+D118+H111+H104 -> 0 | G123: Assessable Rental Income | H123: =D123*'1 Net Monthly Income'!$C$22 -> 0
B126: Gross Income
C128: Total Gross Annual Income | D128: =SUM(D34 + D56 +D123*12) -> 0
C129: Total Gross Assessible Income | D129: =SUM(H34,H56)-SUM(D41*F41,D46*F46,D47*F47,D49*F49,D50*F50,D51*F51,G52,D54*F54) -> 0
C131: Total Net Monthly Income | D131: =IF('Loan Details'!H5="Broker",'Tax Applicant 4'!C44+(D41*F41+D46*F46+D52*F52+D54*F54)/12+H123, IF(OR(D11="Self Employed",D11="Employed and Self Employed",D23="Self Employed",D23="Employed and Self Employed"),'Tax Applicant 4'!C44+(D41*F41+D46*F46+D52*F52+D54*F54)/12+H123, I34+I56+H123)) -> 0 | G131: Non-Credit Monthly Commitments | H131: =IF(OR('Loan Details'!H5="Broker",OR(D11="Self Employed",D23="Self Employed")),D93-H86-D91-D87,D93) -> 0

Sheet Household Expenditure
A1: ='Loan Details'!D12 -> 0
B3: Household Expenditure - One Per Application
C5: Number of Applicants in the same household | D5: =1+IF('Applicant 2'!D7="Yes",1,0)+IF('Applicant 3'!D7="Yes",1,0)+IF('Applicant 4'!D7="Yes",1,0) -> 1 | G5: Number of Other Applicants | H5: =Number_of_Applicants-'Household Expenditure'!D5 -> -1
C6: Number of Dependants | D6: =Input!H16 -> 0
C7: Total Household | D7: =D5+D6 -> 1
C9: Rates / Local authority charges | D9: =Input!D89 -> 0
C10: Rental Service Charge | D10: =Input!H12 -> 0
C11: Other Household Expenditure | D11: =Input!H89 -> 0
C14: Total Cost of Living | D14: =CostOfLiving!I13 -> 505
C15: Total Household Expenditure | D15: =D9+D11+D14+D10 -> 505 | G15: Other Applicants Expenditure | H15: =SUM(CostOfLiving!I14:I16) -> 0
C17: Total Application Expenditure | D17: =D15+H15 -> 505

Sheet Summary Calculations
B3: Total Income Calculation
C5: Total Gross Annual Income | D5: ='Applicant 1'!D128+'Applicant 2'!D128+'Applicant 3'!D128+'Applicant 4'!D128 -> 0
C6: Total Net Assessable Monthly Income | D6: ='Applicant 1'!D131+'Applicant 2'!D131+'Applicant 3'!D131+'Applicant 4'!D131 -> 0
C8: Stressed Existing Mortgage / BTL Commitments | D8: ='Applicant 1'!H63+'Applicant 1'!H69+'Applicant 1'!H121+'Applicant 2'!H63+'Applicant 2'!H69+'Applicant 2'!H121+'Applicant 3'!H63+'Applicant 3'!H69+'Applicant 3'!H121+'Applicant 4'!H63+'Applicant 4'!H69+'Applicant 4'!H121 -> 0
C9: Existing Properties Associated Costs | D9: ='Applicant 1'!D122+'Applicant 2'!D122+'Applicant 3'!D122+'Applicant 4'!D122 -> 0
C11: Revolving Credit Commitments | D11: ='Applicant 1'!H75+'Applicant 2'!H75+'Applicant 3'!H75+'Applicant 4'!H75 -> 0
C12: Non-Revolving Credit Commitments | D12: ='Applicant 1'!H80+'Applicant 2'!H80+'Applicant 3'!H80+'Applicant 4'!H80 -> 0
C13: Non-Credit Monthly Commitments | D13: ='Applicant 1'!H131+'Applicant 2'!H131+'Applicant 3'!H131+'Applicant 4'!H131 -> 0
C14: Household Expenditure | D14: ='Household Expenditure'!D17 -> 505
C16: Stressed New Mortgage payment | D16: =IF(D34>0,D34+H34,D33+H34) -> 
C18: Help to Buy: Equity Loan stress payment | D18: =('Stress Rates'!B22 * ('Loan Details'!H14 * 'Loan Details'!H7)) / 12 -> 0
C20: Disposable Income | D20: =D6-SUM(D8:D18) -> 
C21: Disposable Income Ratio | D21: =D20/D6 -> 
C23: Debt Service Commitment with initial monthly Payment | D23: =IF('Loan Details'!H5="Direct", IF(AND('Applicant 1'!D11<>"Self Employed",'Applicant 1'!D11<>"Employed and Self Employed"),'Applicant 1'!D91,0)+ + IF(AND('Applicant 2'!D11<>"Self Employed",'Applicant 2'!D11<>"Employed and Self Employed"),'Applicant 2'!D91,0)+ + IF(AND('Applicant 3'!D11<>"Self Employed",'Applicant 3'!D11<>"Employed and Self Employed"),'Applicant 3'!D91,0)+ + IF(AND('Applicant 4'!D11<>"Self Employed",'Applicant 4'!D11<>"Employed and Self Employed"),'Applicant 4'!D91,0),0) +'Applicant 1'!D86+'Applicant 1'!D63+'Applicant 1'!D69+'Applicant 1'!D121+'Applicant 2'!D86+'Applicant 2'!D63+'Applicant 2'!D69+'Applicant 2'!D121+'Applicant 3'!D86+'Applicant 3'!D63+'Applicant 3'!D69+'Applicant 3'!D121+'Applicant 4'!D86+'Applicant 4'!D63+'Applicant 4'!D69+'Applicant 4'!D121+D33+D11+D12+'Household Expenditure'!D10 -> 
C24: Debt Servicing Ratio | D24: =D23/D6 -> 
C26: Loan to Income Ratio | D26: ='Loan Details'!H8/D5 -> 
C27: Loan to Value | D27: ='Loan Details'!L7 -> 0
B29: Loan Details
C31: Term of Mortgage (Years) | D31: ='Loan Details'!D8+'Loan Details'!D9/12 -> 0
C33: New Mortgage Payment | D33: =PMT('Loan Details'!H11/365,$D$31*365,-'Loan Details'!$H$8)*365/12 -> 
C34: Follow-On Mortgage Payment | D34: =IF('Loan Details'!H12>0,PMT('Loan Details'!H12/365,$D$31*365,-'Loan Details'!$H$8)*365/12,0) ->  | G34: Monthly Sensitivity after Fixed Rate Period | H34: =PMT((VLOOKUP('Loan Details'!$H$10,'Stress Rates'!$A$12:$B$20,2,0)+IF('Loan Details'!$H$12>0,'Loan Details'!$H$12,'Loan Details'!$H$11))/365,$D$31*365,-'Loan Details'!H8)*365/12-IF($D$34<>0,$D$34,$D$33) -> 
B36: Maximum Loan Amount Calculations
C38: Max LTI | D38: =IF($D$5<50000,IF('Loan Details'!L7>0.9,'Stress Rates'!$D$30*$D$5,'Stress Rates'!$C$30*$D$5),IF('Loan Details'!L7>0.9,'Stress Rates'!$D$31*$D$5,'Stress Rates'!$C$31*$D$5)) -> 0 | G38: Max Loan Amount | H38: =PV(('Stress Rates'!$B$15+'Stress Rates'!$B$26)/365,'Summary Calculations'!$D$31*365,-(D6-SUM(D8:D14,D18)-Disp_Inc_Min)/(365/12)) -> 0
C40: Maximum Debt Service Commitment | D40: =IF('Loan Details'!L7>=90%,(D6*'Stress Rates'!E12)-D23,(D6*'Stress Rates'!E14)-D23) ->  | G40: Maximum Loan Amount based on Debt Servicing Ratio | H40: =-PV('Loan Details'!H11, D31, D40 *12) -> 
C42: Maximum Loan Payment based on Disposable Income Ratio | D42: =D6 * (1 - 'Stress Rates'!#REF!) -SUM(D8:D14) ->  | G42: Maximum Loan Amount based on Disposable Income Ratio | H42: =-PV('Loan Details'!H11, D31, D42 *12) -> 

Sheet Version control (hidden)
A2: Version number | B2: Date of change | C2: Shortname | D2: Brief description of change
A3: v7.3 | B3: 2020-07-06 | C3: BMCG | D3: > created version control > changed DI ratio check in 'Rates' to 5% instead of 2.5% > Changed 'Applicant 1' and 'Applicant 2' where If either Applicant 1 or 2 have total gross income > 50k then child benefit is zero for both monthly and yearly figures
A4: v7.35 | B4: 2020-07-06 | C4: BMCG | D4: > fixed the follow on mortgage payment if there is no follow on payment pulled through
A5: v7.4 | B5: 2020-07-07 | C5: YSO | D5: > added rates for higher LTV and remortgage for existing customers > added product Remortgage - Internal (Loan Details)
A6: v7.45 | B6: 2020-07-07 | C6: YSO | D6: > fixed term fields for Remortgage - Internal > child benefit is not calculated in totals for customers with gross income >50k. If Applicant 1 and Applicant 2 will be sharing household, their total Total gross income is calculated for this, otherwise only one applicant's income
A7: v7.46 | B7: 2020-07-07 | C7: YSO | D7: > Fixed Total deductions calculation on Tax sheets
A8: v7.5 | B8: 2020-07-08 | C8: YSO | D8: > Fixed Sensitivity calculation > Employment: Fixed Term Contract- the fields for salary input appear only if type of fixed term chosen > Fixed Zero hours assessable net income calculation > Fixed issue with rate not pulling through for LTV>94,5 > Added Rental service charge to Debt Service Commitment with initial monthly Payment > Rental service charge field is updated not only when 'Reset Household' is pressed, but also when rates inputed (couldn't find e better solution yet)
A9: v7.51 | B9: 2020-07-08 | C9: YSO | D9: Fixed interest rate input for SVR
A10: v7.55 | B10: 2020-07-09 | C10: YSO | D10: > Rental service charge field (household Expenditure) activates/deactivates when Coownership status changes > Income Earned as Partner or Sole Proprietor is included in self employed income for national insurance calculation > Other sources of income: If Direct and Self Employed / Employed and self employed, Net monthly fields are unavailable for input
A11: v7.56 | B11: 2020-07-14 | C11: YSO | D11: > Fixed non-credit monthly commitments on Summary calculations sheet - now pulling through assessable payment
A12: v7.57 | B12: 2020-07-14 | C12: YSO | D12: > Added child/spouse maintenance and student loan to the calculation of debt service commitment
A13: v7.58 | B13: 2020-07-14 | C13: YSO | D13: > Student loan is added to the calculation of debt service commitment only for Direct channel
A14: v7.6 | B14: 2020-07-16 | C14: YSO | D14: > Self-employed income section: changed the wording for self employed income (year 1-3), set Assessable income = Year 1 income > Other sources of income: “Income earned as Partner / Sole Proprietor” changed to “Profit from Self Employment” > Fixed Household expenditure calculation (corrected the link to Applicants 2,3,4 gross income on ONS sheet) > Fixed Zero hours assessable net income calculation for secondary employment
A15: v7.65 | B15: 2020-07-21 | C15: BMCG | D15: > Changed the wording on Tax Applicant x sheets from 'Income Earned as Partner or Sole Proprieter' to 'Profit from Self Employment' > Changed the Self Employed national insurance to be based on just the Profit from Self Employment > National Insurance from Salary within 'Tax Applicant x' sheet is now based on 'Basic Salary' and 'Pay from all employment(s) (Wage/Salary) Year 1) ' > Renamed 'Self Employed National Insurance Income*' to 'Self Employed Profit National Insurance Income*' in Tax Applicant x
A16: v7.7 | B16: 2020-07-21 | C16: YSO | D16: > Spelling corrections
A17: v7.8 | B17: 2020-07-29 | C17: YSO | D17: > Debt Cervice Commitment calculation: Student loan is included only for Direct channel and not Self Employed
A18: v7.9 | B18: 2020-07-30 | C18: YSO | D18: > Updated Tax calculation sheets in line with what Neil implemented for Employed and Self employed
A19: v8 | B19: 2020-07-31 | C19: YSO | D19: > Protected the workbook
A20: v8.1 | B20: 2020-08-28 | C20: YSO | D20: > Removed Other Income (Net) from the tax calculation
A21: v10 | B21: 2021-03-25 | C21: BMCG | D21: > Updated cost of living calculation ONS(new)(2) (will remove previous ONS when testing is complete ) > introduced the stressing of 5-year fixed mortgages > removes DSR calculation formatting from 'Summary Calculations' sheet > removes DI ratio calculation formatting from 'Summary Calculations' sheet
A22: v10.1 | B22: 2021-04-09 | C22: BMCG | D22: > fixed issue on stressed mortgage calculation not pullin correct stress through
A23: v10.1.1 | B23: 2021-04-13 | C23: BMCG | D23: > updated rates sheet with interest rates from > updated tax rates for 2021/22
A24: v10.1.5 | B24: 2021-04-15 | C24: BMCG | D24: > Unneccessary sheets hidden
A25: v10.2 | B25: 2021-05-25 | C25: BMCG | D25: > Updated stress rates on 5 year fixed products to 2% (2/3 year fixed at 3%)
A26: v11 | B26: 2021-06-03 | C26: BMCG | D26: > Update the Gross Assessible income on Applicant sheets to exclude specific other incomes
A27: v12 | B27: 2021-06-10 | C27: ARSTR | D27: > Added Input sheet, created formulas upload into Loan Details, Applicant 1, Applicant 2, Household expenditure based on select value in a sheet Input
A28: v12.1 | B28: 2021-06-14 | C28: BMCG | D28: > updated macros on Input sheet so that changing the number of applicants alters formulas in other sheets
A29: v12.2 | B29: 2021-06-24 | C29: BMCG | D29: > updated student loan payment to take only what the customer declares in working out Net Monthly Income
A30: v13 | B30: 2021-06-25 | C30: BMCG | D30: > created 'Rates_upd' sheet for new input of Carbon Neutral products > within the 'Rates_upd' sheet there is scope for new products both fixed rate and base rate tracker
A31: v13.1 | B31: 2021-07-06 | C31: BMCG | D31: > Added in BRT - Carbon neutral product to drop down
A32: v14 | B32: 2021-08-16 | C32: BMCG | D32: > Added new Shared Ownership roduct line to the calculator > Updated discounts on Bonus Overtime and Commission > updated Input sheet to allow 35 years > updated Loan details sheet to allow 35 years > updated mortgage payments to reflect updated payments in CDE

Sheet Stress Rates (hidden)
A1: 7 New Mortgage Commitments
A4: New Product applied for | B4: Borrower Type | C4: E1B07 | D4: Stress Rate Additional Borrowing | E4: Stress Rate No Additional Borrowing
A5: Variable rate (BRT or SVR) Residential Mortgage, including self builds and additional variable rate RMCs. | B5: Other than Re-Mortgage | C5: All | D5: Existing variable rate plus 3% | E5: N/A
A6: 2 or 3 year fixed rate residential mortgage /additional 2 and 3 year fixed rate RMCs | C6: All | D6: Follow on (reversion) rate plus 3%
A7: 5 year fixed rate residential mortgage / additional 5 year fixed RMCs | C7: All | D7: No stress
A8: Variable rate (BRT or SVR) Residential Mortgage, including self builds and additional variable rate RMCs. | B8: Re-Mortgage | C8: All | D8: Existing variable rate plus 3% | E8: N/A (but to be built in for future use)
A9: 2 or 3 year fixed rate residential mortgage /additional 2 and 3 year fixed rate RMCs | C9: All | D9: Follow on (reversion) rate plus 3%
A10: 5 year fixed rate residential mortgage / additional 5 year fixed RMCs | C10: All | D10: No stress
A12: Variable rate (BRT) | B12: 0.03 | D12: Variable rate (BRT) | E12: 0.03
A13: Variable rate (BRT) - Carbon Neutral | B13: 0.03 | D13: Variable rate (BRT) - Carbon Neutral | E13: 0.03
A14: Variable rate (SVR) | B14: 0.03 | D14: 2 year fixed rate | E14: 0.03
A15: 2 year fixed rate | B15: 0.03 | D15: 5 year fixed rate | E15: 0.02
A16: 3 year fixed rate | B16: 0.03 | D16: 2 year fixed rate - Carbon Neutral | E16: 0.03
A17: 5 year fixed rate | B17: 0.02 | D17: 5 year fixed rate - Carbon Neutral | E17: 0.02
A18: 2 year fixed rate - Carbon Neutral | B18: 0.03
A19: 3 year fixed rate - Carbon Neutral | B19: 0.03
A20: 5 year fixed rate - Carbon Neutral | B20: 0.02
A22: Help to Buy: Equity Loan Stress Rate | B22: 0.03
A24: Disposable Income value | B24: 50
A26: Follow-On Rate | B26: 0.033
C28: LTV
C29: <=90% | D29: >90%
A30: Income | B30: <£50,000 | C30: 4.5 | D30: 4.25
B31: >=£50,000 | C31: 5 | D31: 4.25

Sheet CostOfLiving (hidden)
B2: Model Details | D2: Polynomial Coefficients | G2: Power Curve Coefficients | I2: Dependant Increase Rate | J2: Mangement Overlays
B3: Model Name | C3: Model Form | D3: a2 | E3: a1 | F3: a0 | G3: c | H3: m | J3: Floor | K3: Ceiling
B4: Danske 1 Adult 0 Dependant | C4: y = a2*x^2 + a1*a1 + a0 | D4: -6.173640629e-08 | E4: 0.0134694201 | F4: 425.9664574 | G4: N/A | H4: N/A | I4: N/A | J4: 505 | K4: 1150
B5: Danske 2 Adult 0 Dependant | C5: y = c*x^m | D5: N/A | E5: N/A | F5: N/A | G5: 8.456978662 | H5: -0.3280903663 | I5: N/A | J5: 850 | K5: 1375
B6: Danske Additional Dependant cost | C6: y = #Dependants*(Expenditure 1 Adult 0 Dependan)*16.8% + Adult Expenditure | D6: N/A | E6: N/A | F6: N/A | G6: N/A | H6: N/A | I6: 0.168 | J6: N/A | K6: N/A
B9: Number of Adults | C9: =MIN('Household Expenditure'!D5,2) -> 1
B10: Number of Dependants | C10: ='Household Expenditure'!D6 -> 0
C12: Gross Assessible Income | F12: 1 Adult 0 Dependnt Cost | G12: Dependant cost | H12: Additional Adult ratio increase | I12: Final Cost
B13: Main Household Income | C13: ='Applicant 1'!D129 + IF('Applicant 2'!D7="Yes",'Applicant 2'!D129,0) -> 0 | E13: Main Household Expenditure | F13: =IF(AND($C13>=7000,$C13<=94000),$D$4*$C13^2 +$E$4*$C13 + $F$4,IF($C13<7000,$J$4,$K$4)) -> 505 | G13: =$C$10*$I$6*$F$13 -> 0 | H13: =(1+$G$5*C13^$H$5) ->  | I13: =CEILING(IF($C$9=1,$F$13 + $G$13,IF($C$9=2,IF(AND($C$13>=16000,$C$13<=94000),$F$13*$H$13,IF($C$13<16000,$J$5,$K$5))+$G$13)),5) -> 505
B14: Co-Applicant 1 Income | C14: =IF('Applicant 2'!D7<>"Yes",'Applicant 2'!D129,0) -> 0 | E14: Co-Applicant 1 Expenditure | F14: =IF(AND($C14>=7000,$C14<=94000),$D$4*$C14^2 +$E$4*$C14 + $F$4,IF($C14<7000,$J$4,$K$4)) -> 505 | I14: =CEILING(IF(OR('Applicant 2'!D7="Yes", Number_of_Applicants<2),0,$F$14),5) -> 0
B15: Co-Applicant 2 Income | C15: =IF('Applicant 3'!D8<>"Yes",'Applicant 3'!D129,0) -> 0 | E15: Co-Applicant 2 Expenditure | F15: =IF(AND($C15>=7000,$C15<=94000),$D$4*$C15^2 +$E$4*$C15 + $F$4,IF($C15<7000,$J$4,$K$4)) -> 505 | I15: =CEILING(IF(Number_of_Applicants<3,0,$F$15),5) -> 0
B16: Co-Applicant 3 Income | C16: =IF('Applicant 4'!D9<>"Yes",'Applicant 4'!D129,0) -> 0 | E16: Co-Applicant 3 Expenditure | F16: 505 | I16: =CEILING(IF(Number_of_Applicants<4,0,$F$16),5) -> 0
E20: Total Cost of Living Costs | F20: =SUM($I$13:$I$16) -> 505

Sheet Rates (hidden)
E1: Purchase | J1: Remortgage | O1: Remortgage - Internal
E2: 4 | J2: 9 | O2: 14
C3: Residential Fixed Rates
C5: Purchaser Rates (First Time Buyer & Home Mover) | F5: Min. Loan Amount (Mortgage): £30k+ (£10k for Existing HL Customers) Min. Loan Amount (Additional Borrowing): £5k - (existing mortgage customer) £30k - (unencumbered property) | H5: Remortgager Rates (Switcher) | K5: Min. Loan Amount (Mortgage): £30k+ (£10k for Existing HL Customers) Min. Loan Amount (Additional Borrowing): £5k - (existing mortgage customer) £30k - (unencumbered property) | M5: Existing Customers
C6: Product | D6: LTV Tier | E6: Rate | H6: Product | I6: LTV Tier | J6: Rate | M6: Product | N6: LTV Tier | O6: Rate
A7: 2 year fixed rate | B7: 0 | C7: 2 Yr Fixed Rates 'FeeSaver' | D7: Up to 60% | E7: 0.017 | H7: 2 Yr Fixed Rates 'FeeSaver' | I7: Up to 60% | J7: 0.0145 | M7: 2 Yr Fixed Rates 'FeeSaver' | N7: Up to 60% | O7: 0.0145
B8: 0.605 | D8: 61-70% | E8: 0.0196 | I8: 61-70% | J8: 0.0167 | N8: 61-70% | O8: 0.0179
B9: 0.705 | D9: 71-75% | E9: 0.0196 | I9: 71-75% | J9: 0.0167 | N9: 71-75% | O9: 0.0179
B10: 0.755 | D10: 76-80% | E10: 0.023 | I10: 76-80% | J10: 0.0228 | N10: 76-80% | O10: 0.0231
B11: 0.805 | D11: 81-85% | E11: 0.0259 | I11: 81-85% | J11: 0.0284 | N11: 81-85% | O11: 0.0258
B12: 0.855 | D12: 86-90% | E12: 0.029 | I12: 86-90% | J12: 0.0341 | N12: 86-90% | O12: 0.0319 | Q12: 100
B13: 0.905 | D13: 91-95% | E13: 0.0354 | I13: 91-95% | J13: 0.0465 | N13: 91-95% | O13: 0.0358
B14: 0.955 | D14: Over 95% | I14: Over 95% | N14: Over 95% | O14: 0.0398
A15: 3 year fixed rate | B15: 0 | C15: 3 Yr Fixed Rates 'FeeSaver' | D15: Up to 60% | E15: n/a | H15: 3 Yr Fixed Rates 'FeeSaver' | I15: Up to 60% | J15: n/a | M15: 3 Yr Fixed Rates 'FeeSaver' | N15: Up to 60% | O15: n/a
B16: 0.605 | D16: 61-70% | E16: n/a | I16: 61-70% | J16: n/a | N16: 61-70% | O16: n/a
B17: 0.705 | D17: 71-75% | E17: n/a | I17: 71-75% | J17: n/a | N17: 71-75% | O17: n/a
B18: 0.755 | D18: 76-80% | E18: n/a | I18: 76-80% | J18: n/a | N18: 76-80% | O18: n/a
B19: 0.805 | D19: 81-85% | E19: n/a | I19: 81-85% | J19: n/a | N19: 81-85% | O19: n/a
B20: 0.855 | D20: 86-90% | E20: n/a | I20: 86-90% | J20: n/a | N20: 86-90% | O20: n/a
B21: 0.905 | D21: 91-95% | E21: n/a | I21: 91-95% | J21: n/a | N21: 91-95% | O21: n/a
B22: 0.955 | D22: Over 95% | I22: Over 95% | N22: Over 95%
A23: 5 year fixed rate | B23: 0 | C23: 5 Yr Fixed Rates 'FeeSaver' | D23: Up to 60% | E23: 0.0145 | H23: 5 Yr Fixed Rates 'FeeSaver' | I23: Up to 60% | J23: 0.0161 | M23: 5 Yr Fixed Rates 'FeeSaver' | N23: Up to 60% | O23: 0.0157
B24: 0.605 | D24: 61-70% | E24: 0.0169 | I24: 61-70% | J24: 0.0187 | N24: 61-70% | O24: 0.0186
B25: 0.705 | D25: 71-75% | E25: 0.0169 | I25: 71-75% | J25: 0.0187 | N25: 71-75% | O25: 0.019
B26: 0.755 | D26: 76-80% | E26: 0.0227 | I26: 76-80% | J26: 0.0242 | N26: 76-80% | O26: 0.0233
B27: 0.805 | D27: 81-85% | E27: 0.0274 | I27: 81-85% | J27: 0.029 | N27: 81-85% | O27: 0.029
B28: 0.855 | D28: 86-90% | E28: 0.033 | I28: 86-90% | J28: 0.0363 | N28: 86-90% | O28: 0.0321
B29: 0.905 | D29: 91-95% | E29: 0.038 | I29: 91-95% | J29: 0.0465 | N29: 91-95% | O29: 0.039
B30: 0.955 | D30: Over 95% | I30: Over 95% | N30: Over 95% | O30: 0.042
C32: Danske Follow-on Rate | D32: 0.033
C36: Base Rate Tracker and Danske Re:pay Rates
C38: Danske Bank Base Rate (UK) | D38: 0.001
C40: Base Rate Tracker
C41: Product Name | D41: LTV Tier | E41: Product | F41: Rate
A42: Variable rate (BRT) | B42: 0 | C42: Base Rate Tracker | D42: Up to 60% | E42: DBRR (UK) + 2.19% | F42: 0.0229
B43: 0.605 | D43: 61-80% | E43: DBRR (UK) + 2.69% | F43: 0.0279
B44: 0.805 | D44: 81-85% | E44: DBRR (UK) + 3.39% | F44: 0.0349
B45: 0.855 | D45: 86-90% | E45: DBRR (UK) + 4.29% | F45: 0.0439
B46: 0.905 | D46: 91-95% | E46: DBRR (UK) + 4.69% | F46: 0.0479
B47: 0.955 | D47: Over 95% | E47: DBRR (UK) + 5.01% | F47: 0.0511
C48: N.B. IPL BRT product rates on IPL sheet

Sheet Rates_upd (hidden)
B2: Product Type | C2: Loan Purchase | D2: Loan To Value | E2: Term | Q2: Product Type | R2: Loan Purchase | S2: Loan To Value
B3: Normal | C3: Purchase | D3: Up to 60% | E3: 2 year | Q3: Normal | R3: Purchase | S3: Up to 60%
B4: Carbon Neutral | C4: Remortgage | D4: 61-70% | E4: 3 year | Q4: Carbon Neutral | R4: Remortgage | S4: 61-80%
C5: Remortgage - Internal | D5: 71-75% | E5: 5 year | R5: Remortgage - Internal | S5: 81-85%
C6: Purchase - SO | D6: 76-80% | R6: Purchase - SO | S6: 86-90%
C7: Remortgage - SO | D7: 81-85% | R7: Remortgage - SO | S7: 91-95%
C8: Remortgage - Internal - SO | D8: 86-90% | R8: Remortgage - Internal - SO | S8: Over 95%
D9: 91-95%
D10: Over 95%
B12: Product Type | C12: Loan Purchase | D12: Loan To Value | Q12: Product Type | R12: Loan Purchase | S12: Loan To Value
B13: =IF(ISNUMBER(SEARCH("-",'Loan Details'!$H$10)),MID('Loan Details'!$H$10,SEARCH("-",'Loan Details'!$H$10)+2,LEN('Loan Details'!$H$10)-SEARCH("-",'Loan Details'!$H$10)+2),"Normal") -> Normal | C13: =IF('Loan Details'!$D$12="Yes",'Loan Details'!$D$7&" - SO",'Loan Details'!$D$7) -> 0 | D13: =IF('Loan Details'!$L$7<=0.605,"Up to 60%", IF('Loan Details'!$L$7<=0.705,"61-70%", IF('Loan Details'!$L$7<=0.755,"71-75%", IF('Loan Details'!$L$7<=0.805,"76-80%", IF('Loan Details'!$L$7<=0.855,"81-85%", IF('Loan Details'!$L$7<=0.905,"86-90%", IF('Loan Details'!$L$7<=0.955,"91-95%","Over 95%"))))))) -> Up to 60% | E13: =B13&"-"&C13&"-"&D13 -> Normal-0-Up to 60% | I13: Danske Follow-on Rate | J13: 0.033 | Q13: =IF(ISNUMBER(SEARCH("-",'Loan Details'!$H$10)),MID('Loan Details'!$H$10,SEARCH("-",'Loan Details'!$H$10)+2,LEN('Loan Details'!$H$10)-SEARCH("-",'Loan Details'!$H$10)+2),"Normal") -> Normal | R13: =IF('Loan Details'!$D$12="Yes",'Loan Details'!$D$7&" - SO",'Loan Details'!$D$7) -> 0 | S13: =IF('Loan Details'!$L$7<=0.605,"Up to 60%", IF('Loan Details'!$L$7<=0.805,"61-80%", IF('Loan Details'!$L$7<=0.855,"81-85%", IF('Loan Details'!$L$7<=0.905,"86-90%", IF('Loan Details'!$L$7<=0.955,"91-95%","Over 95%"))))) -> Up to 60% | T13: =Q13&"-"&R13&"-"&S13 -> Normal-0-Up to 60%
I14: Danske Bank Base Rate (UK) | J14: 0.001
B15: Fixed Rate Term | C15: Fixed Rate Interest | Q15: Fixed Rate Interest
B16: =LEFT('Loan Details'!$H$10,6) -> 0 | C16: =INDEX($F$20:$M$204,MATCH($E$13,$E$20:$E$204,0),MATCH($B$16,$F$19:$M$19,0)) ->  | Q16: =INDEX($U$20:$U$204,MATCH($T$13,$T$20:$T$204,0),1) -> 
B18: Product Type | C18: Loan Purpose | D18: Loan to Value | F18: Fixed Rate Term | Q18: Product Type | R18: Loan Purpose | S18: Loan to Value
F19: 2 year | G19: 3 year | H19: 5 year | U19: Interest Rate
B20: Normal | C20: Purchase | D20: Up to 60% | E20: =B20&"-"&C20&"-"&D20 -> Normal-Purchase-Up to 60% | F20: 0.017 | G20: n/a | H20: 0.0145 | Q20: Normal | R20: Purchase | S20: Up to 60% | T20: =Q20&"-"&R20&"-"&S20 -> Normal-Purchase-Up to 60% | U20: 0.0229
B21: Normal | C21: Purchase | D21: 61-70% | E21: Normal-Purchase-61-70% | F21: 0.0196 | G21: n/a | H21: 0.0169 | Q21: Normal | R21: Purchase | S21: 61-80% | T21: =Q21&"-"&R21&"-"&S21 -> Normal-Purchase-61-80% | U21: 0.0279
B22: Normal | C22: Purchase | D22: 71-75% | E22: Normal-Purchase-71-75% | F22: 0.0196 | G22: n/a | H22: 0.0169 | Q22: Normal | R22: Purchase | S22: 81-85% | T22: Normal-Purchase-81-85% | U22: 0.0349
B23: Normal | C23: Purchase | D23: 76-80% | E23: Normal-Purchase-76-80% | F23: 0.023 | G23: n/a | H23: 0.0227 | Q23: Normal | R23: Purchase | S23: 86-90% | T23: Normal-Purchase-86-90% | U23: 0.0439
B24: Normal | C24: Purchase | D24: 81-85% | E24: Normal-Purchase-81-85% | F24: 0.0259 | G24: n/a | H24: 0.0274 | Q24: Normal | R24: Purchase | S24: 91-95% | T24: Normal-Purchase-91-95% | U24: 0.0479
B25: Normal | C25: Purchase | D25: 86-90% | E25: Normal-Purchase-86-90% | F25: 0.029 | G25: n/a | H25: 0.033 | Q25: Normal | R25: Purchase | S25: Over 95% | T25: Normal-Purchase-Over 95% | U25: 0.0511
B26: Normal | C26: Purchase | D26: 91-95% | E26: Normal-Purchase-91-95% | F26: 0.0354 | G26: n/a | H26: 0.038 | Q26: Normal | R26: Remortgage | S26: Up to 60% | T26: Normal-Remortgage-Up to 60% | U26: 0.0229
B27: Normal | C27: Purchase | D27: Over 95% | E27: Normal-Purchase-Over 95% | Q27: Normal | R27: Remortgage | S27: 61-80% | T27: Normal-Remortgage-61-80% | U27: 0.0279
B28: Normal | C28: Remortgage | D28: Up to 60% | E28: Normal-Remortgage-Up to 60% | F28: 0.0145 | G28: n/a | H28: 0.0122 | Q28: Normal | R28: Remortgage | S28: 81-85% | T28: Normal-Remortgage-81-85% | U28: 0.0349
B29: Normal | C29: Remortgage | D29: 61-70% | E29: Normal-Remortgage-61-70% | F29: 0.0154 | G29: n/a | H29: 0.0149 | Q29: Normal | R29: Remortgage | S29: 86-90% | T29: Normal-Remortgage-86-90% | U29: 0.0439
B30: Normal | C30: Remortgage | D30: 71-75% | E30: Normal-Remortgage-71-75% | F30: 0.0154 | G30: n/a | H30: 0.0149 | Q30: Normal | R30: Remortgage | S30: 91-95% | T30: Normal-Remortgage-91-95% | U30: 0.0479
B31: Normal | C31: Remortgage | D31: 76-80% | E31: Normal-Remortgage-76-80% | F31: 0.0214 | G31: n/a | H31: 0.0217 | Q31: Normal | R31: Remortgage | S31: Over 95% | T31: Normal-Remortgage-Over 95%
B32: Normal | C32: Remortgage | D32: 81-85% | E32: Normal-Remortgage-81-85% | F32: 0.0222 | G32: n/a | H32: 0.0257 | Q32: Normal | R32: Remortgage - Internal | S32: Up to 60% | T32: =Q32&"-"&R32&"-"&S32 -> Normal-Remortgage - Internal-Up to 60% | U32: 0.0229
B33: Normal | C33: Remortgage | D33: 86-90% | E33: Normal-Remortgage-86-90% | F33: 0.026 | G33: n/a | H33: 0.0305 | Q33: Normal | R33: Remortgage - Internal | S33: 61-80% | T33: Normal-Remortgage - Internal-61-80% | U33: 0.0279
B34: Normal | C34: Remortgage | D34: 91-95% | E34: Normal-Remortgage-91-95% | F34: 0.0341 | G34: n/a | H34: 0.0362 | Q34: Normal | R34: Remortgage - Internal | S34: 81-85% | T34: Normal-Remortgage - Internal-81-85% | U34: 0.0349
B35: Normal | C35: Remortgage | D35: Over 95% | E35: Normal-Remortgage-Over 95% | Q35: Normal | R35: Remortgage - Internal | S35: 86-90% | T35: Normal-Remortgage - Internal-86-90% | U35: 0.0439
B36: Normal | C36: Remortgage - Internal | D36: Up to 60% | E36: Normal-Remortgage - Internal-Up to 60% | F36: 0.0129 | G36: n/a | H36: 0.0115 | Q36: Normal | R36: Remortgage - Internal | S36: 91-95% | T36: Normal-Remortgage - Internal-91-95% | U36: 0.0479
B37: Normal | C37: Remortgage - Internal | D37: 61-70% | E37: Normal-Remortgage - Internal-61-70% | F37: 0.0138 | G37: n/a | H37: 0.0142 | Q37: Normal | R37: Remortgage - Internal | S37: Over 95% | T37: Normal-Remortgage - Internal-Over 95%
B38: Normal | C38: Remortgage - Internal | D38: 71-75% | E38: Normal-Remortgage - Internal-71-75% | F38: 0.0138 | G38: n/a | H38: 0.0142 | Q38: Normal | R38: Purchase - SO | S38: Up to 60% | T38: Normal-Purchase - SO-Up to 60% | U38: 0.0249
B39: Normal | C39: Remortgage - Internal | D39: 76-80% | E39: Normal-Remortgage - Internal-76-80% | F39: 0.0198 | G39: n/a | H39: 0.021 | Q39: Normal | R39: Purchase - SO | S39: 61-80% | T39: =Q39&"-"&R39&"-"&S39 -> Normal-Purchase - SO-61-80% | U39: 0.0299
B40: Normal | C40: Remortgage - Internal | D40: 81-85% | E40: Normal-Remortgage - Internal-81-85% | F40: 0.0206 | G40: n/a | H40: 0.025 | Q40: Normal | R40: Purchase - SO | S40: 81-85% | T40: Normal-Purchase - SO-81-85% | U40: 0.0369
B41: Normal | C41: Remortgage - Internal | D41: 86-90% | E41: Normal-Remortgage - Internal-86-90% | F41: 0.0244 | G41: n/a | H41: 0.0298 | Q41: Normal | R41: Purchase - SO | S41: 86-90% | T41: Normal-Purchase - SO-86-90% | U41: 0.0459
B42: Normal | C42: Remortgage - Internal | D42: 91-95% | E42: Normal-Remortgage - Internal-91-95% | F42: 0.0325 | G42: n/a | H42: 0.0355 | Q42: Normal | R42: Purchase - SO | S42: 91-95% | T42: Normal-Purchase - SO-91-95% | U42: 0.0499
B43: Normal | C43: Remortgage - Internal | D43: Over 95% | E43: Normal-Remortgage - Internal-Over 95% | F43: 0.0345 | G43: n/a | H43: 0.0375 | Q43: Normal | R43: Purchase - SO | S43: Over 95% | T43: Normal-Purchase - SO-Over 95%
B44: Normal | C44: Purchase - SO | D44: Up to 60% | E44: =B44&"-"&C44&"-"&D44 -> Normal-Purchase - SO-Up to 60% | F44: 0.019 | G44: n/a | H44: 0.0165 | Q44: Normal | R44: Remortgage - SO | S44: Up to 60% | T44: Normal-Remortgage - SO-Up to 60% | U44: 0.0249
B45: Normal | C45: Purchase - SO | D45: 61-70% | E45: Normal-Purchase - SO-61-70% | F45: 0.0216 | G45: n/a | H45: 0.0189 | Q45: Normal | R45: Remortgage - SO | S45: 61-80% | T45: Normal-Remortgage - SO-61-80% | U45: 0.0299
B46: Normal | C46: Purchase - SO | D46: 71-75% | E46: Normal-Purchase - SO-71-75% | F46: 0.0216 | G46: n/a | H46: 0.0189 | Q46: Normal | R46: Remortgage - SO | S46: 81-85% | T46: Normal-Remortgage - SO-81-85% | U46: 0.0369
B47: Normal | C47: Purchase - SO | D47: 76-80% | E47: Normal-Purchase - SO-76-80% | F47: 0.025 | G47: n/a | H47: 0.0247 | Q47: Normal | R47: Remortgage - SO | S47: 86-90% | T47: Normal-Remortgage - SO-86-90% | U47: 0.0459
B48: Normal | C48: Purchase - SO | D48: 81-85% | E48: Normal-Purchase - SO-81-85% | F48: 0.0279 | G48: n/a | H48: 0.0294 | Q48: Normal | R48: Remortgage - SO | S48: 91-95% | T48: Normal-Remortgage - SO-91-95% | U48: 0.0499
B49: Normal | C49: Purchase - SO | D49: 86-90% | E49: Normal-Purchase - SO-86-90% | F49: 0.031 | G49: n/a | H49: 0.035 | Q49: Normal | R49: Remortgage - SO | S49: Over 95% | T49: Normal-Remortgage - SO-Over 95%
B50: Normal | C50: Purchase - SO | D50: 91-95% | E50: Normal-Purchase - SO-91-95% | F50: 0.0374 | G50: n/a | H50: 0.04 | Q50: Normal | R50: Remortgage - Internal - SO | S50: Up to 60% | T50: Normal-Remortgage - Internal - SO-Up to 60% | U50: 0.0249
B51: Normal | C51: Purchase - SO | D51: Over 95% | E51: Normal-Purchase - SO-Over 95% | Q51: Normal | R51: Remortgage - Internal - SO | S51: 61-80% | T51: Normal-Remortgage - Internal - SO-61-80% | U51: 0.0299
B52: Normal | C52: Remortgage - SO | D52: Up to 60% | E52: Normal-Remortgage - SO-Up to 60% | F52: 0.0165 | G52: n/a | H52: 0.0142 | Q52: Normal | R52: Remortgage - Internal - SO | S52: 81-85% | T52: Normal-Remortgage - Internal - SO-81-85% | U52: 0.0369
B53: Normal | C53: Remortgage - SO | D53: 61-70% | E53: Normal-Remortgage - SO-61-70% | F53: 0.0174 | G53: n/a | H53: 0.0169 | Q53: Normal | R53: Remortgage - Internal - SO | S53: 86-90% | T53: Normal-Remortgage - Internal - SO-86-90% | U53: 0.0459
B54: Normal | C54: Remortgage - SO | D54: 71-75% | E54: Normal-Remortgage - SO-71-75% | F54: 0.0174 | G54: n/a | H54: 0.0169 | Q54: Normal | R54: Remortgage - Internal - SO | S54: 91-95% | T54: Normal-Remortgage - Internal - SO-91-95% | U54: 0.0499
B55: Normal | C55: Remortgage - SO | D55: 76-80% | E55: Normal-Remortgage - SO-76-80% | F55: 0.0234 | G55: n/a | H55: 0.0237 | Q55: Normal | R55: Remortgage - Internal - SO | S55: Over 95% | T55: Normal-Remortgage - Internal - SO-Over 95%
B56: Normal | C56: Remortgage - SO | D56: 81-85% | E56: Normal-Remortgage - SO-81-85% | F56: 0.0242 | G56: n/a | H56: 0.0277 | Q56: Carbon Neutral | R56: Purchase | S56: Up to 60% | T56: Carbon Neutral-Purchase-Up to 60% | U56: 0.0226
B57: Normal | C57: Remortgage - SO | D57: 86-90% | E57: Normal-Remortgage - SO-86-90% | F57: 0.028 | G57: n/a | H57: 0.0325 | Q57: Carbon Neutral | R57: Purchase | S57: 61-80% | T57: =Q57&"-"&R57&"-"&S57 -> Carbon Neutral-Purchase-61-80% | U57: 0.0276
B58: Normal | C58: Remortgage - SO | D58: 91-95% | E58: Normal-Remortgage - SO-91-95% | F58: 0.0361 | G58: n/a | H58: 0.0381 | Q58: Carbon Neutral | R58: Purchase | S58: 81-85% | T58: Carbon Neutral-Purchase-81-85% | U58: 0.0346
B59: Normal | C59: Remortgage - SO | D59: Over 95% | E59: Normal-Remortgage - SO-Over 95% | Q59: Carbon Neutral | R59: Purchase | S59: 86-90% | T59: Carbon Neutral-Purchase-86-90% | U59: 0.0436
B60: Normal | C60: Remortgage - Internal - SO | D60: Up to 60% | E60: =B60&"-"&C60&"-"&D60 -> Normal-Remortgage - Internal - SO-Up to 60% | F60: 0.0149 | G60: n/a | H60: 0.0135 | Q60: Carbon Neutral | R60: Purchase | S60: 91-95% | T60: Carbon Neutral-Purchase-91-95% | U60: 0.0476
B61: Normal | C61: Remortgage - Internal - SO | D61: 61-70% | E61: Normal-Remortgage - Internal - SO-61-70% | F61: 0.0158 | G61: n/a | H61: 0.0162 | Q61: Carbon Neutral | R61: Purchase | S61: Over 95% | T61: Carbon Neutral-Purchase-Over 95%
B62: Normal | C62: Remortgage - Internal - SO | D62: 71-75% | E62: Normal-Remortgage - Internal - SO-71-75% | F62: 0.0158 | G62: n/a | H62: 0.0162 | Q62: Carbon Neutral | R62: Remortgage | S62: Up to 60% | T62: Carbon Neutral-Remortgage-Up to 60% | U62: 0.0226
B63: Normal | C63: Remortgage - Internal - SO | D63: 76-80% | E63: Normal-Remortgage - Internal - SO-76-80% | F63: 0.0218 | G63: n/a | H63: 0.023 | Q63: Carbon Neutral | R63: Remortgage | S63: 61-80% | T63: Carbon Neutral-Remortgage-61-80% | U63: 0.0276
B64: Normal | C64: Remortgage - Internal - SO | D64: 81-85% | E64: Normal-Remortgage - Internal - SO-81-85% | F64: 0.0226 | G64: n/a | H64: 0.027 | Q64: Carbon Neutral | R64: Remortgage | S64: 81-85% | T64: Carbon Neutral-Remortgage-81-85% | U64: 0.0346
B65: Normal | C65: Remortgage - Internal - SO | D65: 86-90% | E65: Normal-Remortgage - Internal - SO-86-90% | F65: 0.0264 | G65: n/a | H65: 0.0318 | Q65: Carbon Neutral | R65: Remortgage | S65: 86-90% | T65: Carbon Neutral-Remortgage-86-90% | U65: 0.0436
B66: Normal | C66: Remortgage - Internal - SO | D66: 91-95% | E66: Normal-Remortgage - Internal - SO-91-95% | F66: 0.0345 | G66: n/a | H66: 0.0375 | Q66: Carbon Neutral | R66: Remortgage | S66: 91-95% | T66: Carbon Neutral-Remortgage-91-95% | U66: 0.0476
B67: Normal | C67: Remortgage - Internal - SO | D67: Over 95% | E67: Normal-Remortgage - Internal - SO-Over 95% | G67: n/a | Q67: Carbon Neutral | R67: Remortgage | S67: Over 95% | T67: Carbon Neutral-Remortgage-Over 95%
B68: Carbon Neutral | C68: Purchase | D68: Up to 60% | E68: Carbon Neutral-Purchase-Up to 60% | F68: 0.0167 | G68: n/a | H68: 0.015 | Q68: Carbon Neutral | R68: Purchase - SO | S68: Up to 60% | T68: Carbon Neutral-Purchase - SO-Up to 60% | U68: 0.0246
B69: Carbon Neutral | C69: Purchase | D69: 61-70% | E69: Carbon Neutral-Purchase-61-70% | F69: 0.0193 | G69: n/a | H69: 0.0174 | Q69: Carbon Neutral | R69: Purchase - SO | S69: 61-80% | T69: =Q69&"-"&R69&"-"&S69 -> Carbon Neutral-Purchase - SO-61-80% | U69: 0.0296
B70: Carbon Neutral | C70: Purchase | D70: 71-75% | E70: Carbon Neutral-Purchase-71-75% | F70: 0.0193 | G70: n/a | H70: 0.0174 | Q70: Carbon Neutral | R70: Purchase - SO | S70: 81-85% | T70: Carbon Neutral-Purchase - SO-81-85% | U70: 0.0366
B71: Carbon Neutral | C71: Purchase | D71: 76-80% | E71: Carbon Neutral-Purchase-76-80% | F71: 0.0227 | G71: n/a | H71: 0.0232 | Q71: Carbon Neutral | R71: Purchase - SO | S71: 86-90% | T71: Carbon Neutral-Purchase - SO-86-90% | U71: 0.0456
B72: Carbon Neutral | C72: Purchase | D72: 81-85% | E72: Carbon Neutral-Purchase-81-85% | F72: 0.0256 | G72: n/a | H72: 0.0279 | Q72: Carbon Neutral | R72: Purchase - SO | S72: 91-95% | T72: Carbon Neutral-Purchase - SO-91-95% | U72: 0.0496
B73: Carbon Neutral | C73: Purchase | D73: 86-90% | E73: Carbon Neutral-Purchase-86-90% | F73: 0.0287 | G73: n/a | H73: 0.0335 | Q73: Carbon Neutral | R73: Purchase - SO | S73: Over 95% | T73: Carbon Neutral-Purchase - SO-Over 95%
B74: Carbon Neutral | C74: Purchase | D74: 91-95% | E74: Carbon Neutral-Purchase-91-95% | F74: 0.0351 | G74: n/a | H74: 0.0385 | Q74: Carbon Neutral | R74: Remortgage - SO | S74: Up to 60% | T74: Carbon Neutral-Remortgage - SO-Up to 60% | U74: 0.0246
B75: Carbon Neutral | C75: Purchase | D75: Over 95% | E75: Carbon Neutral-Purchase-Over 95% | Q75: Carbon Neutral | R75: Remortgage - SO | S75: 61-80% | T75: Carbon Neutral-Remortgage - SO-61-80% | U75: 0.0296
B76: Carbon Neutral | C76: Remortgage | D76: Up to 60% | E76: Carbon Neutral-Remortgage-Up to 60% | F76: 0.0145 | G76: n/a | H76: 0.0122 | Q76: Carbon Neutral | R76: Remortgage - SO | S76: 81-85% | T76: Carbon Neutral-Remortgage - SO-81-85% | U76: 0.0366
B77: Carbon Neutral | C77: Remortgage | D77: 61-70% | E77: Carbon Neutral-Remortgage-61-70% | F77: 0.0154 | G77: n/a | H77: 0.0149 | Q77: Carbon Neutral | R77: Remortgage - SO | S77: 86-90% | T77: Carbon Neutral-Remortgage - SO-86-90% | U77: 0.0456
B78: Carbon Neutral | C78: Remortgage | D78: 71-75% | E78: Carbon Neutral-Remortgage-71-75% | F78: 0.0154 | G78: n/a | H78: 0.0149 | Q78: Carbon Neutral | R78: Remortgage - SO | S78: 91-95% | T78: Carbon Neutral-Remortgage - SO-91-95% | U78: 0.0496
B79: Carbon Neutral | C79: Remortgage | D79: 76-80% | E79: Carbon Neutral-Remortgage-76-80% | F79: 0.0214 | G79: n/a | H79: 0.0217 | Q79: Carbon Neutral | R79: Remortgage - SO | S79: Over 95% | T79: Carbon Neutral-Remortgage - SO-Over 95%
B80: Carbon Neutral | C80: Remortgage | D80: 81-85% | E80: Carbon Neutral-Remortgage-81-85% | F80: 0.0222 | G80: n/a | H80: 0.0257 | T80: =Q80&"-"&R80&"-"&S80 -> --
B81: Carbon Neutral | C81: Remortgage | D81: 86-90% | E81: Carbon Neutral-Remortgage-86-90% | F81: 0.026 | G81: n/a | H81: 0.0305 | T81: --
B82: Carbon Neutral | C82: Remortgage | D82: 91-95% | E82: Carbon Neutral-Remortgage-91-95% | F82: 0.0341 | G82: n/a | H82: 0.0362 | T82: --
B83: Carbon Neutral | C83: Remortgage | D83: Over 95% | E83: Carbon Neutral-Remortgage-Over 95% | T83: --
B84: Carbon Neutral | C84: Purchase - SO | D84: Up to 60% | E84: =B84&"-"&C84&"-"&D84 -> Carbon Neutral-Purchase - SO-Up to 60% | F84: 0.0187 | G84: n/a | H84: 0.017 | T84: --
B85: Carbon Neutral | C85: Purchase - SO | D85: 61-70% | E85: Carbon Neutral-Purchase - SO-61-70% | F85: 0.0213 | G85: n/a | H85: 0.0194 | T85: --
B86: Carbon Neutral | C86: Purchase - SO | D86: 71-75% | E86: Carbon Neutral-Purchase - SO-71-75% | F86: 0.0213 | G86: n/a | H86: 0.0194 | T86: --
B87: Carbon Neutral | C87: Purchase - SO | D87: 76-80% | E87: Carbon Neutral-Purchase - SO-76-80% | F87: 0.0247 | G87: n/a | H87: 0.0252 | T87: --
B88: Carbon Neutral | C88: Purchase - SO | D88: 81-85% | E88: Carbon Neutral-Purchase - SO-81-85% | F88: 0.0276 | G88: n/a | H88: 0.0299 | T88: --
B89: Carbon Neutral | C89: Purchase - SO | D89: 86-90% | E89: Carbon Neutral-Purchase - SO-86-90% | F89: 0.0307 | G89: n/a | H89: 0.0355 | T89: --
B90: Carbon Neutral | C90: Purchase - SO | D90: 91-95% | E90: Carbon Neutral-Purchase - SO-91-95% | F90: 0.0371 | G90: n/a | H90: 0.0405 | T90: --
B91: Carbon Neutral | C91: Purchase - SO | D91: Over 95% | E91: Carbon Neutral-Purchase - SO-Over 95% | T91: --
B92: Carbon Neutral | C92: Remortgage - SO | D92: Up to 60% | E92: Carbon Neutral-Remortgage - SO-Up to 60% | F92: 0.0165 | G92: n/a | H92: 0.0142 | T92: --
B93: Carbon Neutral | C93: Remortgage - SO | D93: 61-70% | E93: Carbon Neutral-Remortgage - SO-61-70% | F93: 0.0174 | G93: n/a | H93: 0.0169 | T93: --
B94: Carbon Neutral | C94: Remortgage - SO | D94: 71-75% | E94: Carbon Neutral-Remortgage - SO-71-75% | F94: 0.0174 | G94: n/a | H94: 0.0169 | T94: --
B95: Carbon Neutral | C95: Remortgage - SO | D95: 76-80% | E95: Carbon Neutral-Remortgage - SO-76-80% | F95: 0.0234 | G95: n/a | H95: 0.0237 | T95: --
B96: Carbon Neutral | C96: Remortgage - SO | D96: 81-85% | E96: Carbon Neutral-Remortgage - SO-81-85% | F96: 0.0242 | G96: n/a | H96: 0.0277 | T96: --
B97: Carbon Neutral | C97: Remortgage - SO | D97: 86-90% | E97: Carbon Neutral-Remortgage - SO-86-90% | F97: 0.028 | G97: n/a | H97: 0.0325 | T97: --
B98: Carbon Neutral | C98: Remortgage - SO | D98: 91-95% | E98: Carbon Neutral-Remortgage - SO-91-95% | F98: 0.0361 | G98: n/a | H98: 0.0382 | T98: --
B99: Carbon Neutral | C99: Remortgage - SO | D99: Over 95% | E99: Carbon Neutral-Remortgage - SO-Over 95% | T99: --
E100: =B100&"-"&C100&"-"&D100 -> -- | T100: --
E101: -- | T101: --
E102: -- | T102: --
E103: -- | T103: --
E104: -- | T104: --
E105: -- | T105: --
E106: -- | T106: --
E107: -- | T107: --
E108: -- | T108: --
E109: -- | T109: --
E110: -- | T110: --
E111: -- | T111: --
E112: -- | T112: --
E113: -- | T113: --
E114: -- | T114: --
E115: -- | T115: --
E116: -- | T116: --
E117: -- | T117: --
E118: -- | T118: --
E119: -- | T119: --
E120: -- | T120: --
E121: -- | T121: --
E122: -- | T122: --
E123: -- | T123: --
E124: -- | T124: --
E125: -- | T125: --
E126: -- | T126: --
E127: -- | T127: --
E128: -- | T128: --
E129: -- | T129: --
E130: -- | T130: --
E131: -- | T131: --
E132: -- | T132: --
E133: -- | T133: =Q133&"-"&R133&"-"&S133 -> --
E134: -- | T134: --
E135: -- | T135: --
E136: -- | T136: --
E137: -- | T137: --
E138: -- | T138: --
E139: -- | T139: --
E140: -- | T140: --
E141: -- | T141: --
E142: -- | T142: --
E143: -- | T143: --
E144: -- | T144: --
E145: -- | T145: --
E146: -- | T146: --
E147: -- | T147: --
E148: -- | T148: --
E149: =B149&"-"&C149&"-"&D149 -> -- | T149: --
E150: -- | T150: --
E151: -- | T151: --
E152: -- | T152: --
E153: -- | T153: --
E154: -- | T154: --
E155: -- | T155: --
E156: -- | T156: --
E157: -- | T157: --
E158: -- | T158: --
E159: -- | T159: --
E160: -- | T160: --
E161: -- | T161: --
E162: -- | T162: --
E163: -- | T163: --
E164: -- | T164: --
E165: -- | T165: --
E166: -- | T166: --
E167: -- | T167: --
E168: -- | T168: --
E169: -- | T169: --
E170: -- | T170: --
E171: -- | T171: --
E172: -- | T172: --
E173: -- | T173: --
E174: -- | T174: --
E175: -- | T175: --
E176: -- | T176: --
E177: -- | T177: --
E178: -- | T178: --
E179: -- | T179: --
E180: -- | T180: --
E181: -- | T181: --
E182: -- | T182: --
E183: -- | T183: --
E184: -- | T184: --
E185: -- | T185: --
E186: -- | T186: --
E187: -- | T187: --
E188: -- | T188: --
E189: -- | T189: --
E190: -- | T190: --
E191: -- | T191: --
E192: -- | T192: --
E193: -- | T193: --
E194: -- | T194: --
E195: -- | T195: --
E196: -- | T196: --
E197: -- | T197: =Q197&"-"&R197&"-"&S197 -> --
E198: -- | T198: --
E199: -- | T199: --
E200: -- | T200: --
E201: -- | T201: --
E202: -- | T202: --
E203: -- | T203: --
... 1 more rows

Sheet Tax Applicant 1 (hidden)
B1: UK Taxation
B3: Additional Deduction Fields
B4: Age | C4: ='Applicant 1'!H5 -> 31 | D4: years
B5: Student Loan Payment | C5: =IF('Applicant 1'!D91>0,"Plan1","No") -> No | D5: (Plan2/No)
B6: Blind | C6: No | D6: (Yes/No)
B7: Pension Contributions | C7: ='Applicant 1'!H86*12 -> 0 | D7: per year
B8: Childcare Vouchers | C8: ='Applicant 1'!D87*12 -> 0 | D8: per year
B10: Income Type
B11: Basic Salary | C11: =IF('Applicant 1'!D11<>"Self Employed",'Applicant 1'!H34,0) -> 0 | D11: per year
B12: All employments | C12: =IF('Applicant 1'!D11="Self Employed",'Applicant 1'!H20,0) -> 0 | D12: per year
B13: Pension Income (incl. Private, Company and State) | C13: ='Applicant 1'!D44+'Applicant 1'!D45+'Applicant 1'!D43 -> 0 | D13: per year
B14: Profit from Self Employment | C14: ='Applicant 1'!D42 -> 0 | D14: per year
B15: Other | D15: per year
B16: Deposit Interest (Savings) Income | C16: ='Applicant 1'!D49 -> 0 | D16: per year
B17: Annuities Income | C17: ='Applicant 1'!D51 -> 0 | D17: per year
B18: Trust Income | C18: ='Applicant 1'!D50 -> 0 | D18: per year
B19: Dividend Income | C19: ='Applicant 1'!D48 -> 0 | D19: per year
B20: Investment Income | C20: ='Applicant 1'!D47 -> 0 | D20: per year
B22: Total Gross Income | C22: =SUM(C11:C20) -> 0 | D22: per year
B24: National Insurance Income | C24: =C11+C12 -> 0 | D24: per year
B25: Self Employed Profit National Insurance Income* | C25: =C14 -> 0 | D25: per year
B27: Non-Savings Income minus pension contributions and child care vouchers | C27: =SUM(C11:C15)-SUM(C7:C8) -> 0 | D27: per year
B28: Interest Income | C28: =SUM(C16:C18) -> 0 | D28: per year
B29: Investment Income (Top Slice) | C29: =SUM(C19:C20) -> 0 | D29: per year
B31: Total Taxable Income | C31: =SUM(C27:C29) -> 0 | D31: per year
B33: Total Employment PAYE tax** | C33: =C77 -> 0 | D33: per year
B34: Total Employment National Insurance | C34: =C90 -> 0 | D34: per year
B35: Student Loan Payment | C35: =IF(UPPER(LEFT(C5,1))<>"N",'Applicant 1'!D91*12,0) -> 0 | D35: per year
B36: Class2 NIC*** | C36: =C96 -> 0 | D36: per year
B37: Class4 NIC*** | C37: =C110 -> 0 | D37: per year
B38: Interest Income Tax **** | C38: =C147 -> 0 | D38: per year
B39: Investment Income Tax ***** | C39: =C170 -> 0 | D39: per year
B41: Total deductions | C41: =SUM(C33:C39) -> 0 | D41: per year
B43: Annual Net Pay : | C43: =C31-C41 -> 0 | D43: per year
B44: Monthly Net pay : | C44: =C43/12 -> 0 | D44: per month
B45: Weekly Net pay : | C45: =C43/52 -> 0 | D45: per week
B47: * Profit from Self Employment
B48: ** PAYE Tax on Employment and Self Employment Incomes
B49: *** Self Employed National Insurance
B50: **** Tax on Deposit Interest (Savings) and Annuities Income
B51: ***** Tax on Dividend and Investment Income
B53: Personal Allowance
B55: Basic | C55: =G55 -> 12570 | F55: Basic | G55: ='Tax Rates'!B5 -> 12570
B56: Age related contribution | C56: =(IF(C4<65,0,IF(C4<75,G56-G55,G57-G55))) -> 0 | F56: Age 65-74 | G56: =G55 -> 12570
B57: Age related taper deduction | C57: =IF((C11-G60)<0,0,IF((C11-G60)/2>C56,C56,(C11-G60)/2)) -> 0 | F57: Age 75 and over | G57: =G55 -> 12570
B58: Allowance after age adjust | C58: =C55+C56-C57 -> 12570 | F58: Blind persons allowance | G58: ='Tax Rates'!B90 -> 2520
B60: Taper deduction | C60: =IF(((C22-C7)-G61)<0,0,IF(((C22-C7)-G61)/2>C58,C58,((C22-C7)-G61)/2)) -> 0 | F60: Age related threshold | G60: 27700
F61: Taper threshold | G61: 100000
B62: Personal Allowance | C62: =C58-C60 -> 12570
B64: Non-Savings Income Tax (Basic Salary/Self Employed/Penison(s)/IncomeEarnedAsSoleProprietorOrPartner/Trust/Other)
B66: Taxable Employment Income | C66: =C27 -> 0 | F66: Personal Allowance | G66: =C62 -> 12570
F67: Blind persons allowance | G67: =IF(UPPER(LEFT(C6,1))="Y",G58,0) -> 0
B68: Income less personal allowance | C68: =IF(C66>G68,C66-G68,0) -> 0 | F68: Total Allowances | G68: =G67+G66 -> 12570
C70: Tax | D70: Value Being Taxed | F70: Rate | G70: Start of Band | H70: End of Band | I70: Difference
B71: =TEXT(F71,"0.0%") & " Rate" -> 20.0% Rate | C71: =D71*F71 -> 0 | D71: =MIN(C68,I71) -> 0 | F71: ='Tax Rates'!B42 -> 0.2 | G71: 0 | H71: ='Tax Rates'!B38 -> 37700 | I71: =H71-G71 -> 37700
B72: =TEXT(F72,"0.0%") & " Rate" -> 40.0% Rate | C72: =D72*F72 -> 0 | D72: =IF($C$68>G72,MIN($C$68-G72,I72),0) -> 0 | F72: ='Tax Rates'!B43 -> 0.4 | G72: =H71+1 -> 37701 | H72: ='Tax Rates'!B39 -> 150000 | I72: =H72-G72 -> 112299
B73: =TEXT(F73,"0.0%") & " Rate" -> 45.0% Rate | C73: =D73*F73 -> 0 | D73: =IF($C$68>G73,$C$68-G73,0) -> 0 | F73: ='Tax Rates'!B44 -> 0.45 | G73: =H72+1 -> 150001 | H73: 99999999 | I73: =H73-G73 -> 99849998
B75: Less tax on trusts
K76: =12500/52 -> 240.3846154
B77: Income Tax | C77: =SUM(C71:C73) -> 0
B79: National Insurance (From Basic Salary income)
B81: Weekly Income (Gross) | C81: =C24/52 -> 0 | F81: State Pension Age | G81: 65 | H81: years
C83: Tax | D83: Carry Over | F83: Rate | G83: Start of Band | H83: End of Band | I83: Difference
B84: =TEXT(F84,"0.0%") & " Rate" -> 0.0% Rate | C84: =IF(C81>=G84,IF(C81>=I84,I84*F84,C81*F84),0) -> 0 | D84: =IF((C81-I84)>0,C81-I84,0) -> 0 | F84: ='Tax Rates'!B49 -> 0 | G84: 0 | H84: ='Tax Rates'!B54 -> 184 | I84: =H84-G84 -> 184 | K84: =183*52 -> 9516
B85: =TEXT(F85,"0.0%") & " Rate" -> 12.0% Rate | C85: =IF(D84>0,IF(D84>=I85,I85*F85,D84*F85),0) -> 0 | D85: =IF((D84-I85)>0,D84-I85,0) -> 0 | F85: ='Tax Rates'!B50 -> 0.12 | G85: =H84+0.01 -> 184.01 | H85: ='Tax Rates'!B55 -> 967 | I85: =H85-G85+0.01 -> 783
B86: =TEXT(F86,"0.0%") & " Rate" -> 2.0% Rate | C86: =IF(D85>0,IF(D85>=I86,I86*F86,D85*F86),0) -> 0 | D86: =IF((D85-I86)>0,D85-I86,0) -> 0 | F86: ='Tax Rates'!B51 -> 0.02 | G86: =H85+0.01 -> 967.01 | H86: 99999999.99 | I86: =H86-G86+0.01 -> 99999032.99
B88: Total Weekly NI | C88: =SUM(C84:C86) -> 0
B89: Age related deduction | C89: =IF(C4>=G81,C88*52,0) -> 0
B90: Total Annual NI | C90: =(C88*52)-C89 -> 0
L91: NIC annual maxima where employed and self employed
B92: Self Employed National Insurance
K93: STEPS
B94: Class 2 Threshold | C94: ='Tax Rates'!B63 -> 6515 | K94: 1 | L94: =H105 -> 50270 | M94: =H104 -> 9569 | N94: =IF(C14>0,L94-M94,0) -> 0
B95: Class 2 Weekly Rate | C95: ='Tax Rates'!B64 -> 3.05 | K95: 2 | L95: =N94 -> 0 | M95: =F105 -> 0.09 | N95: =M95*L95 -> 0
B96: Total Annual Class 2 NIC | C96: =IF(C25=0,0,IF(SUM(C24:C25)>C94,C95*52)) -> 0 | K96: 3 | L96: =N95 -> 0
L97: =53*$C$95 -> 161.65 | N97: =L97+L96 -> 161.65
B98: Class 4 Taxable Income | C98: =C25 -> 0 | P98: Comparative total
K99: 4 | M99: =N97 -> 161.65 | P99: Class 1 NIC @12% | R99: =-M100 -> 0
B100: Tax at 2% if employed and self employed | C100: Tax | F100: Rate | M100: =-C85*52 -> 0 | P100: Class 2 NIC | R100: =-M101 -> 0
B101: =TEXT(F101,"0.0%") -> 2.0% | C101: =D101*F101 -> 0 | D101: =IF(C25=0,0,IF(SUM(C11:C12)>12500,C98-9500,0)) -> 0 | F101: ='Tax Rates'!B67 -> 0.02 | M101: =-C96 -> 0 | N101: =SUM(M99:M101) -> 161.65 | P101: Class 4 NIC @9% | R101: =C25*0.09 -> 0
R102: =SUM(R99:R101) -> 0
C103: Tax | D103: Carry Over | F103: Rate | G103: Start of Band | H103: End of Band | I103: Difference | L103: Case 1 | N103: =IF(N101>R102,N101,0) -> 161.65
B104: =TEXT(F104,"0.0%") & " Rate" -> 0.0% Rate | C104: =IF(C101>=G104,IF(C101>=I104,I104*F104,C101*F104),0) -> 0 | D104: =IF((C98-I104)>0,C98-I104,0) -> 0 | F104: ='Tax Rates'!B70 -> 0 | G104: 0 | H104: ='Tax Rates'!B75 -> 9569 | I104: =H104-G104 -> 9569 | L104: Case 2 | N104: =IF(AND(N101>0,N101<R102),N101,0) -> 0 | O104: need to add additional 2%
B105: =TEXT(F105,"0.0%") & " Rate" -> 9.0% Rate | C105: =IF(D104>0,IF(D104>=I105,I105*F105,D104*F105),0) -> 0 | D105: =IF((D104-I105)>0,D104-I105,0) -> 0 | F105: ='Tax Rates'!B71 -> 0.09 | G105: =IF(H104>=1,H104+1,H104) -> 9570 | H105: ='Tax Rates'!B76 -> 50270 | I105: =H105-G105 -> 40700 | L105: Case 3 | N105: =IF(N101<0,N101,0) -> 0 | O105: NIC4 @9% is NIL
B106: =TEXT(F106,"0.0%") & " Rate" -> 2.0% Rate | C106: =IF(D105>0,IF(D105>=I106,I106*F106,D105*F106),0) -> 0 | D106: =IF((D105-I106)>0,D105-I106,0) -> 0 | F106: ='Tax Rates'!B72 -> 0.02 | G106: =H105+1 -> 50271 | H106: 99999999 | I106: =H106-G106+1 -> 99949729
L107: Step5-9 only for Case 2 & 3
B108: Total Class 4 NIC (where no Class 1 NIC) | C108: =IF(D101>0,C101,SUM(C104:C106)) -> 0 | K108: 5 | L108: =IF(OR(N105>0,N104>0),N101,0) -> 0 | M108: =100/9 -> 11.11111111 | N108: =L108*M108 -> 0
K109: 6 | L109: =MIN(C25,H105) -> 0 | M109: =-I104 -> -9569 | N109: =L109+M109 -> -9569
B110: Total Annual Class 4 NIC payable | C110: =IF(C90<0.01,C108,IF(N103>0,R101,IF(N104>0,N119,IF(N105<0,N119,0)))) -> 0 | K110: 7 | N110: =N109-N108 -> -9569
L111: If STEP 7 negative then Nil
B112: Student Loan Repayment | K112: 8 | L112: =IF(N110<0,0,N110) -> 0 | M112: =$F$106 -> 0.02 | N112: =L112*M112 -> 0
K113: 9 | L113: =C25 -> 0 | M113: =-H105 -> -50270 | N113: =IF((L113+M113)<0,0,(L113+M113)*$F$106) -> 0
B114: Threshold | C114: =IF(RIGHT(C5,1)="1",G115/12,IF(RIGHT(C5,1)="2",H115/12,0)) -> 0 | G114: Plan 1 | H114: Plan 2
B115: Income above threshold | C115: =IF(SUM(C27,C14)/12-C114<0,0,SUM(C27,C14)/12-C114) -> 0 | F115: Repayment Threshold | G115: ='Tax Rates'!B27*12 -> 19884 | H115: ='Tax Rates'!B28*12 -> 27288 | L115: Total Class 4 NIC
B116: Repayment (if applicable) | C116: =FLOOR(C115*G116,1)*12 -> 0 | F116: Repayment Rate | G116: ='Tax Rates'!B31 -> 0.09 | H116: ='Tax Rates'!B32 -> 0.09 | L116: Step 4 | N116: =IF(N101<0,0,N101) -> 161.65
L117: Step 8 | N117: =N112 -> 0
L118: Step 9 | N118: =N113 -> 0
B119: Interest Income Tax (Deposit Interest (Savings), Annuities, Trust) | N119: =SUM(N116:N118) -> 161.65
B121: Interest Income | C121: =C28 -> 0
B123: Non-Savings Income minus allowance | C123: =C68 -> 0
B124: Gross Income (for allowance calculation) | C124: =C31 -> 0
C126: Calculated Allowance | F126: Start of Band | G126: End of Band | H126: Difference | I126: Within Band
C127: =IF(I127=1,'Tax Rates'!B9,0) -> 5000 | F127: 0 | G127: ='Tax Rates'!B15 -> 12570 | H127: =G127-F127 -> 12570 | I127: =IF(AND($C$124>=$F127,$C$124<=$G127),1,0) -> 1
C128: =IF(I128=1,'Tax Rates'!B9-(C123-G127),0) -> 0 | F128: =IF(G127>=1,G127+1,G127) -> 12571 | G128: ='Tax Rates'!B16 -> 17570 | H128: =G128-F128 -> 4999 | I128: =IF(AND($C$124>=$F128,$C$124<=$G128),1,0) -> 0
C129: =IF(I129=1,'Tax Rates'!B10,0) -> 0 | F129: =G128+1 -> 17571 | G129: ='Tax Rates'!B17 -> 50270 | H129: =G129-F129+1 -> 32700 | I129: 0
C130: =IF(I130=1,'Tax Rates'!B11,0) -> 0 | F130: =G129+1 -> 50271 | G130: ='Tax Rates'!B18 -> 150000 | H130: =G130-F130+1 -> 99730 | I130: 0
C131: =IF(I131=1,'Tax Rates'!B12,0) -> 0 | F131: =G130+1 -> 150001 | G131: 99999999 | H131: =G131-F131+1 -> 99849999 | I131: 0
B133: Interest Income Tax Allowance | C133: =SUM(C127:C131) -> 5000
D135: Taxable Interest Income by tax band | F135: Start of Band | G135: End of Band | H135: Scenario check 1 | I135: Pay+Interest check | J135: Pay+Allowance check | K135: Scenaio Check 2 | L135: Basic | M135: Upper | N135: Additional | O135: Allowance 2 | P135: Allowance 3
C136: Basic Tax Band | D136: =IF(H136=1,L136,IF(H137=1,L137,IF(H138=1,L138,0))) -> 32700 | F136: 0 | G136: ='Tax Rates'!B38 -> 37700 | H136: =IF(AND($C$123>=F136,$C$123<=G136),1,0) -> 1 | I136: =IF(AND($C$123+$C$121>F136,$C$123+$C$121<=G136),1,0) -> 0 | J136: =IF(AND($C$123+$C$133>F136,$C$123+$C$133<=G136),1,0) -> 1 | K136: =IF(AND(I136=1,J136=1),1,IF(AND(I136=0,J136=1),2,IF(AND(I136=0,J136=0),3,IF(AND(I136=1,J136=0),4,0)))) -> 2 | L136: =IF(K136=1,C121-C133,IF(K136=2,G136-C123-C133,IF(K136=3,0,IF(K136=4,0,0)))) -> 32700 | M136: =IF(K136=1,0,IF(K136=2,MIN(C123+C121-G136,G137-G136),IF(K136=3,MIN(C121-C133,G137-G136-O136),IF(K136=4,0,0)))) -> -37700 | N136: =IF(C123+C121>G137,IF(K136=1,0,IF(K136=2,C123+C121-G137,IF(K136=3,C123+C121-G137,IF(K136=4,0,0)))),0) -> 0 | O136: =$C$123+$C$133-G136 -> -32700 | P136: =$C$133-O136 -> 37700
C137: Upper Tax Band | D137: =IF(H136=1,M136,IF(H137=1,M137,IF(H138=1,M138,0))) -> -37700 | F137: 37501 | G137: ='Tax Rates'!B39 -> 150000 | H137: =IF(AND($C$123>=F137,$C$123<=G137),1,0) -> 0 | I137: =IF(AND($C$123+$C$121>F137,$C$123+$C$121<=G137),1,0) -> 0 | J137: =IF(AND($C$123+$C$133>F137,$C$123+$C$133<=G137),1,0) -> 0 | K137: =IF(AND(I137=1,J137=1),1,IF(AND(I137=0,J137=1),2,IF(AND(I137=0,J137=0),3,IF(AND(I137=1,J137=0),4,0)))) -> 3 | L137: 0 | M137: =IF(K137=1,C121-C133,IF(K137=2,G137-C123-C133,IF(K137=3,0,IF(K137=4,0,0)))) -> 0 | N137: =IF(K137=1,0,IF(K137=2,C123+C121-G137,IF(K137=3,C121-C133,IF(K137=4,0,0)))) -> -5000 | O137: =$C$123+$C$133-G137 -> -145000 | P137: =$C$133-O137 -> 150000
C138: Additional Tax Band | D138: =IF(H136=1,N136,IF(H137=1,N137,IF(H138=1,N138,0))) -> 0 | F138: 150001 | G138: 99999999 | H138: =IF(AND($C$123>=F138,$C$123<=G138),1,0) -> 0 | I138: 0 | J138: =IF(AND($C$123+$C$133>F138,$C$123+$C$133<=G138),1,0) -> 0 | K138: =IF(AND(I138=1,J138=1),1,IF(AND(I138=0,J138=1),2,IF(AND(I138=0,J138=0),3,IF(AND(I138=1,J138=0),4,0)))) -> 3 | L138: 0 | M138: 0 | N138: =C121-C133 -> -5000 | O138: =$C$123+$C$133-G138 -> -99994999 | P138: 99999999
C142: Tax | D142: Value Being Taxed | F142: Rate
B143: =TEXT(F143,"0.0%") & " Rate" -> 20.0% Rate | C143: =D143*F143 -> 6540 | D143: =D136 -> 32700 | F143: ='Tax Rates'!B42 -> 0.2
B144: =TEXT(F144,"0.0%") & " Rate" -> 40.0% Rate | C144: =D144*F144 -> -15080 | D144: =D137 -> -37700 | F144: ='Tax Rates'!B43 -> 0.4
B145: =TEXT(F145,"0.0%") & " Rate" -> 45.0% Rate | C145: =D145*F145 -> 0 | D145: =D138 -> 0 | F145: ='Tax Rates'!B44 -> 0.45
B147: Interest Income Tax | C147: =IF(OR(C121<=C133,C121=0),0,SUM(C143:C145)) -> 0
B150: Investment Income Tax (Dividend/Investment)
B152: Investment Income | C152: =C29 -> 0
B153: Dividend/Investment Income Allowance | C153: ='Tax Rates'!B22 -> 2000
B155: Non-Savings Income minus personal allowance and Interest Income | C155: =C68+C28 -> 0
D158: Taxable Interest Income by tax band | F158: Start of Band | G158: End of Band | H158: Scenario check 1 | I158: Pay+Investment check | J158: Pay+Allowance check | K158: Scenaio Check 2 | L158: Basic | M158: Upper | N158: Additional | O158: Allowance 2 | P158: Allowance 3
C159: Basic Tax Band | D159: =IF(H159=1,L159,IF(H160=1,L160,IF(H161=1,L161,0))) -> 35700 | F159: 0 | G159: ='Tax Rates'!B38 -> 37700 | H159: =IF(AND($C$155>=F159,$C$155<=G159),1,0) -> 1 | I159: =IF(AND($C$155+$C$152>F159,$C$155+$C$152<=G159),1,0) -> 0 | J159: =IF(AND($C$155+$C$153>F159,$C$155+$C$153<=G159),1,0) -> 1 | K159: =IF(AND(I159=1,J159=1),1,IF(AND(I159=0,J159=1),2,IF(AND(I159=0,J159=0),3,IF(AND(I159=1,J159=0),4,0)))) -> 2 | L159: =IF(K159=1,C152-C153,IF(K159=2,G159-C155-C153,IF(K159=3,0,IF(K159=4,0,0)))) -> 35700 | M159: =IF(K159=1,0,IF(K159=2,MIN(C155+C152-G159,G160-G159),IF(K159=3,MIN(C152-C153,G160-G159-O159),IF(K159=4,0,0)))) -> -37700 | N159: =IF(C153+C152>G160,IF(K159=1,0,IF(K159=2,C153+C152-G160,IF(K159=3,C153+C152-G160,IF(K159=4,0,0)))),0) -> 0 | O159: =$C$155+$C$153-G159 -> -35700 | P159: =$C$153-O159 -> 37700
C160: Upper Tax Band | D160: =IF(H159=1,M159,IF(H160=1,M160,IF(H161=1,M161,0))) -> -37700 | F160: 37501 | G160: ='Tax Rates'!B39 -> 150000 | H160: =IF(AND($C$155>=F160,$C$155<=G160),1,0) -> 0 | I160: =IF(AND($C$155+$C$152>F160,$C$155+$C$152<=G160),1,0) -> 0 | J160: =IF(AND($C$155+$C$153>F160,$C$155+$C$153<=G160),1,0) -> 0 | K160: =IF(AND(I160=1,J160=1),1,IF(AND(I160=0,J160=1),2,IF(AND(I160=0,J160=0),3,IF(AND(I160=1,J160=0),4,0)))) -> 3 | L160: 0 | M160: =IF(K160=1,C152-C153,IF(K160=2,G160-C155-C153,IF(K160=3,0,IF(K160=4,0,0)))) -> 0 | N160: =IF(K160=1,0,IF(K160=2,C155+C152-G160,IF(K160=3,C152-C153,IF(K160=4,0,0)))) -> -2000 | O160: =$C$155+$C$153-G160 -> -148000 | P160: =$C$153-O160 -> 150000
C161: Additional Tax Band | D161: =IF(H159=1,N159,IF(H160=1,N160,IF(H161=1,N161,0))) -> 0 | F161: 150001 | G161: 99999999 | H161: =IF(AND($C$155>=F161,$C$155<=G161),1,0) -> 0 | I161: 0 | J161: =IF(AND($C$155+$C$153>F161,$C$155+$C$153<=G161),1,0) -> 0 | K161: 3 | L161: 0 | M161: 0 | N161: =C152-C153 -> -2000 | O161: =$C$155+$C$153-G161 -> -99997999 | P161: =$C$153-O161 -> 99999999
C165: Tax | D165: Value Being Taxed | F165: Rate
B166: =TEXT(F166,"0.0%") & " Rate" -> 7.5% Rate | C166: =D166*F166 -> 2677.5 | D166: =D159 -> 35700 | F166: ='Tax Rates'!B83 -> 0.075
B167: =TEXT(F167,"0.0%") & " Rate" -> 32.5% Rate | C167: =D167*F167 -> -12252.5 | D167: =D160 -> -37700 | F167: ='Tax Rates'!B84 -> 0.325
B168: =TEXT(F168,"0.0%") & " Rate" -> 38.1% Rate | C168: =D168*F168 -> 0 | D168: 0 | F168: ='Tax Rates'!B85 -> 0.381
B170: Investment Income Tax | C170: =IF(OR(C152=0,C152<=C153),0,SUM(C166:C168)) -> 0

Sheet Tax Applicant 2 (hidden)
B1: UK Taxation
B3: Additional Deduction Fields
B4: Age | C4: ='Applicant 2'!H5 -> Input DOB | D4: years
B5: Student Loan Payment | C5: =IF('Applicant 2'!D91>0,"Plan2","No") -> No | D5: (Plan2/No)
B6: Blind | C6: No | D6: (Yes/No)
B7: Pension Contributions | C7: ='Applicant 2'!H86*12 -> 0 | D7: per year
B8: Childcare Vouchers | C8: ='Applicant 2'!D87*12 -> 0 | D8: per year
B10: Income Type
B11: Basic Salary | C11: =IF('Applicant 2'!D11<>"Self Employed",'Applicant 2'!H34,0) -> 0 | D11: per year
B12: All employments | C12: =IF('Applicant 2'!D11="Self Employed",'Applicant 2'!H20,0) -> 0 | D12: per year
B13: Pension Income (incl. Private, Company and State) | C13: ='Applicant 2'!D44+'Applicant 2'!D45+'Applicant 2'!D43 -> 0 | D13: per year
B14: Profit from Self Employment | C14: ='Applicant 2'!D42 -> 0 | D14: per year
B15: Other | D15: per year
B16: Deposit Interest (Savings) Income | C16: ='Applicant 2'!D49 -> 0 | D16: per year
B17: Annuities Income | C17: ='Applicant 2'!D51 -> 0 | D17: per year
B18: Trust Income | C18: ='Applicant 2'!D50 -> 0 | D18: per year
B19: Dividend Income | C19: ='Applicant 2'!D48 -> 0 | D19: per year
B20: Investment Income | C20: ='Applicant 2'!D47 -> 0 | D20: per year
B22: Total Gross Income | C22: =SUM(C11:C20) -> 0 | D22: per year
B24: National Insurance Income | C24: =C11+C12 -> 0 | D24: per year
B25: Self Employed Profit National Insurance Income* | C25: =C14 -> 0 | D25: per year
B27: Non-Savings Income minus pension contributions and child care vouchers | C27: =SUM(C11:C15)-SUM(C7:C8) -> 0 | D27: per year
B28: Interest Income | C28: =SUM(C16:C18) -> 0 | D28: per year
B29: Investment Income (Top Slice) | C29: =SUM(C19:C20) -> 0 | D29: per year
B31: Total Taxable Income | C31: =SUM(C27:C29) -> 0 | D31: per year
B33: Total Employment PAYE tax** | C33: =C77 -> 0 | D33: per year
B34: Total Employment National Insurance | C34: =C90 -> 0 | D34: per year
B35: Student Loan Payment | C35: =IF(UPPER(LEFT(C5,1))<>"N",'Applicant 2'!D91*12,0) -> 0 | D35: per year
B36: Class2 NIC*** | C36: =C96 -> 0 | D36: per year
B37: Class4 NIC*** | C37: =C110 -> 0 | D37: per year
B38: Interest Income Tax **** | C38: =C147 -> 0 | D38: per year
B39: Investment Income Tax ***** | C39: =C170 -> 0 | D39: per year
B41: Total deductions | C41: =SUM(C33:C39) -> 0 | D41: per year
B43: Annual Net Pay : | C43: =C31-C41 -> 0 | D43: per year
B44: Monthly Net pay : | C44: =C43/12 -> 0 | D44: per month
B45: Weekly Net pay : | C45: =C43/52 -> 0 | D45: per week
B47: * Profit from Self Employment
B48: ** PAYE Tax on Employment and Self Employment Incomes
B49: *** Self Employed National Insurance
B50: **** Tax on Deposit Interest (Savings) and Annuities Income
B51: ***** Tax on Dividend and Investment Income
B53: Personal Allowance
B55: Basic | C55: =G55 -> 12570 | F55: Basic | G55: ='Tax Rates'!B5 -> 12570
B56: Age related contribution | C56: =(IF(C4<65,0,IF(C4<75,G56-G55,G57-G55))) -> 0 | F56: Age 65-74 | G56: =G55 -> 12570
B57: Age related taper deduction | C57: =IF((C11-G60)<0,0,IF((C11-G60)/2>C56,C56,(C11-G60)/2)) -> 0 | F57: Age 75 and over | G57: =G55 -> 12570
B58: Allowance after age adjust | C58: =C55+C56-C57 -> 12570 | F58: Blind persons allowance | G58: ='Tax Rates'!B90 -> 2520
B60: Taper deduction | C60: =IF(((C22-C7)-G61)<0,0,IF(((C22-C7)-G61)/2>C58,C58,((C22-C7)-G61)/2)) -> 0 | F60: Age related threshold | G60: 27700
F61: Taper threshold | G61: 100000
B62: Personal Allowance | C62: =C58-C60 -> 12570
B64: Non-Savings Income Tax (Basic Salary/Self Employed/Penison(s)/IncomeEarnedAsSoleProprietorOrPartner/Trust/Other)
B66: Taxable Employment Income | C66: =C27 -> 0 | F66: Personal Allowance | G66: =C62 -> 12570
F67: Blind persons allowance | G67: =IF(UPPER(LEFT(C6,1))="Y",G58,0) -> 0
B68: Income less personal allowance | C68: =IF(C66>G68,C66-G68,0) -> 0 | F68: Total Allowances | G68: =G67+G66 -> 12570
C70: Tax | D70: Value Being Taxed | F70: Rate | G70: Start of Band | H70: End of Band | I70: Difference
B71: =TEXT(F71,"0.0%") & " Rate" -> 20.0% Rate | C71: =D71*F71 -> 0 | D71: =MIN(C68,I71) -> 0 | F71: ='Tax Rates'!B42 -> 0.2 | G71: 0 | H71: ='Tax Rates'!B38 -> 37700 | I71: =H71-G71 -> 37700
B72: =TEXT(F72,"0.0%") & " Rate" -> 40.0% Rate | C72: =D72*F72 -> 0 | D72: =IF($C$68>G72,MIN($C$68-G72,I72),0) -> 0 | F72: ='Tax Rates'!B43 -> 0.4 | G72: =H71+1 -> 37701 | H72: ='Tax Rates'!B39 -> 150000 | I72: =H72-G72 -> 112299
B73: =TEXT(F73,"0.0%") & " Rate" -> 45.0% Rate | C73: =D73*F73 -> 0 | D73: =IF($C$68>G73,$C$68-G73,0) -> 0 | F73: ='Tax Rates'!B44 -> 0.45 | G73: =H72+1 -> 150001 | H73: 99999999 | I73: =H73-G73 -> 99849998
B75: Less tax on trusts
K76: =12500/52 -> 240.3846154
B77: Income Tax | C77: =SUM(C71:C73) -> 0
B79: National Insurance (From Basic Salary income)
B81: Weekly Income (Gross) | C81: =C24/52 -> 0 | F81: State Pension Age | G81: 65 | H81: years
C83: Tax | D83: Carry Over | F83: Rate | G83: Start of Band | H83: End of Band | I83: Difference
B84: =TEXT(F84,"0.0%") & " Rate" -> 0.0% Rate | C84: =IF(C81>=G84,IF(C81>=I84,I84*F84,C81*F84),0) -> 0 | D84: =IF((C81-I84)>0,C81-I84,0) -> 0 | F84: ='Tax Rates'!B49 -> 0 | G84: 0 | H84: ='Tax Rates'!B54 -> 184 | I84: =H84-G84 -> 184 | K84: =183*52 -> 9516
B85: =TEXT(F85,"0.0%") & " Rate" -> 12.0% Rate | C85: =IF(D84>0,IF(D84>=I85,I85*F85,D84*F85),0) -> 0 | D85: =IF((D84-I85)>0,D84-I85,0) -> 0 | F85: ='Tax Rates'!B50 -> 0.12 | G85: =H84+0.01 -> 184.01 | H85: ='Tax Rates'!B55 -> 967 | I85: =H85-G85+0.01 -> 783
B86: =TEXT(F86,"0.0%") & " Rate" -> 2.0% Rate | C86: =IF(D85>0,IF(D85>=I86,I86*F86,D85*F86),0) -> 0 | D86: =IF((D85-I86)>0,D85-I86,0) -> 0 | F86: ='Tax Rates'!B51 -> 0.02 | G86: =H85+0.01 -> 967.01 | H86: 99999999.99 | I86: =H86-G86+0.01 -> 99999032.99
B88: Total Weekly NI | C88: =SUM(C84:C86) -> 0
B89: Age related deduction | C89: =IF(C4>=G81,C88*52,0) -> 0
B90: Total Annual NI | C90: =(C88*52)-C89 -> 0
L91: NIC annual maxima where employed and self employed
B92: Self Employed National Insurance
K93: STEPS
B94: Class 2 Threshold | C94: ='Tax Rates'!B63 -> 6515 | K94: 1 | L94: =H105 -> 50270 | M94: =H104 -> 9569 | N94: =IF(C14>0,L94-M94,0) -> 0
B95: Class 2 Weekly Rate | C95: ='Tax Rates'!B64 -> 3.05 | K95: 2 | L95: =N94 -> 0 | M95: =F105 -> 0.09 | N95: =M95*L95 -> 0
B96: Total Annual Class 2 NIC | C96: =IF(C25=0,0,IF(SUM(C24:C25)>C94,C95*52)) -> 0 | K96: 3 | L96: =N95 -> 0
L97: =53*$C$95 -> 161.65 | N97: =L97+L96 -> 161.65
B98: Class 4 Taxable Income | C98: =C25 -> 0 | P98: Comparative total
K99: 4 | M99: =N97 -> 161.65 | P99: Class 1 NIC @12% | R99: =-M100 -> 0
B100: Tax at 2% if employed and self employed | C100: Tax | F100: Rate | M100: =-C85*52 -> 0 | P100: Class 2 NIC | R100: =-M101 -> 0
B101: =TEXT(F101,"0.0%") -> 2.0% | C101: =D101*F101 -> 0 | D101: =IF(C25=0,0,IF(SUM(C11:C12)>12500,C98-9500,0)) -> 0 | F101: ='Tax Rates'!B67 -> 0.02 | M101: =-C96 -> 0 | N101: =SUM(M99:M101) -> 161.65 | P101: Class 4 NIC @9% | R101: =C25*0.09 -> 0
R102: =SUM(R99:R101) -> 0
C103: Tax | D103: Carry Over | F103: Rate | G103: Start of Band | H103: End of Band | I103: Difference | L103: Case 1 | N103: =IF(N101>R102,N101,0) -> 161.65
B104: =TEXT(F104,"0.0%") & " Rate" -> 0.0% Rate | C104: =IF(C101>=G104,IF(C101>=I104,I104*F104,C101*F104),0) -> 0 | D104: =IF((C98-I104)>0,C98-I104,0) -> 0 | F104: ='Tax Rates'!B70 -> 0 | G104: 0 | H104: ='Tax Rates'!B75 -> 9569 | I104: =H104-G104 -> 9569 | L104: Case 2 | N104: =IF(AND(N101>0,N101<R102),N101,0) -> 0 | O104: need to add additional 2%
B105: =TEXT(F105,"0.0%") & " Rate" -> 9.0% Rate | C105: =IF(D104>0,IF(D104>=I105,I105*F105,D104*F105),0) -> 0 | D105: =IF((D104-I105)>0,D104-I105,0) -> 0 | F105: ='Tax Rates'!B71 -> 0.09 | G105: =IF(H104>=1,H104+1,H104) -> 9570 | H105: ='Tax Rates'!B76 -> 50270 | I105: =H105-G105 -> 40700 | L105: Case 3 | N105: =IF(N101<0,N101,0) -> 0 | O105: NIC4 @9% is NIL
B106: =TEXT(F106,"0.0%") & " Rate" -> 2.0% Rate | C106: =IF(D105>0,IF(D105>=I106,I106*F106,D105*F106),0) -> 0 | D106: =IF((D105-I106)>0,D105-I106,0) -> 0 | F106: ='Tax Rates'!B72 -> 0.02 | G106: =H105+1 -> 50271 | H106: 99999999 | I106: =H106-G106+1 -> 99949729
L107: Step5-9 only for Case 2 & 3
B108: Total Class 4 NIC (where no Class 1 NIC) | C108: =IF(D101>0,C101,SUM(C104:C106)) -> 0 | K108: 5 | L108: =IF(OR(N105>0,N104>0),N101,0) -> 0 | M108: =100/9 -> 11.11111111 | N108: =L108*M108 -> 0
K109: 6 | L109: =MIN(C25,H105) -> 0 | M109: =-I104 -> -9569 | N109: =L109+M109 -> -9569
B110: Total Annual Class 4 NIC payable | C110: =IF(C90<0.01,C108,IF(N103>0,R101,IF(N104>0,N119,IF(N105<0,N119,0)))) -> 0 | K110: 7 | N110: =N109-N108 -> -9569
L111: If STEP 7 negative then Nil
B112: Student Loan Repayment | K112: 8 | L112: =IF(N110<0,0,N110) -> 0 | M112: =$F$106 -> 0.02 | N112: =L112*M112 -> 0
K113: 9 | L113: =C25 -> 0 | M113: =-H105 -> -50270 | N113: =IF((L113+M113)<0,0,(L113+M113)*$F$106) -> 0
B114: Threshold | C114: =IF(RIGHT(C5,1)="1",G115/12,IF(RIGHT(C5,1)="2",H115/12,0)) -> 0 | G114: Plan 1 | H114: Plan 2
B115: Income above threshold | C115: =IF(SUM(C11:C12,C14)/12-C114<0,0,SUM(C11:C12,C14)/12-C114) -> 0 | F115: Repayment Threshold | G115: ='Tax Rates'!B27*12 -> 19884 | H115: ='Tax Rates'!B28*12 -> 27288 | L115: Total Class 4 NIC
B116: Repayment (if applicable) | C116: =FLOOR(C115*G116,1)*12 -> 0 | F116: Repayment Rate | G116: ='Tax Rates'!B31 -> 0.09 | H116: ='Tax Rates'!B32 -> 0.09 | L116: Step 4 | N116: =IF(N101<0,0,N101) -> 161.65
L117: Step 8 | N117: =N112 -> 0
L118: Step 9 | N118: =N113 -> 0
B119: Interest Income Tax (Deposit Interest (Savings), Annuities, Trust) | N119: =SUM(N116:N118) -> 161.65
B121: Interest Income | C121: =C28 -> 0
B123: Non-Savings Income minus allowance | C123: =C68 -> 0
B124: Gross Income (for allowance calculation) | C124: =C31 -> 0
C126: Calculated Allowance | F126: Start of Band | G126: End of Band | H126: Difference | I126: Within Band
C127: =IF(I127=1,'Tax Rates'!B9,0) -> 5000 | F127: 0 | G127: ='Tax Rates'!B15 -> 12570 | H127: =G127-F127 -> 12570 | I127: =IF(AND($C$124>=$F127,$C$124<=$G127),1,0) -> 1
C128: =IF(I128=1,'Tax Rates'!B9-(C123-G127),0) -> 0 | F128: =IF(G127>=1,G127+1,G127) -> 12571 | G128: ='Tax Rates'!B16 -> 17570 | H128: =G128-F128 -> 4999 | I128: =IF(AND($C$124>=$F128,$C$124<=$G128),1,0) -> 0
C129: =IF(I129=1,'Tax Rates'!B10,0) -> 0 | F129: =G128+1 -> 17571 | G129: ='Tax Rates'!B17 -> 50270 | H129: =G129-F129+1 -> 32700 | I129: 0
C130: =IF(I130=1,'Tax Rates'!B11,0) -> 0 | F130: =G129+1 -> 50271 | G130: ='Tax Rates'!B18 -> 150000 | H130: =G130-F130+1 -> 99730 | I130: 0
C131: =IF(I131=1,'Tax Rates'!B12,0) -> 0 | F131: =G130+1 -> 150001 | G131: 99999999 | H131: =G131-F131+1 -> 99849999 | I131: 0
B133: Interest Income Tax Allowance | C133: =SUM(C127:C131) -> 5000
D135: Taxable Interest Income by tax band | F135: Start of Band | G135: End of Band | H135: Scenario check 1 | I135: Pay+Interest check | J135: Pay+Allowance check | K135: Scenaio Check 2 | L135: Basic | M135: Upper | N135: Additional | O135: Allowance 2 | P135: Allowance 3
C136: Basic Tax Band | D136: =IF(H136=1,L136,IF(H137=1,L137,IF(H138=1,L138,0))) -> 32700 | F136: 0 | G136: ='Tax Rates'!B38 -> 37700 | H136: =IF(AND($C$123>=F136,$C$123<=G136),1,0) -> 1 | I136: =IF(AND($C$123+$C$121>F136,$C$123+$C$121<=G136),1,0) -> 0 | J136: =IF(AND($C$123+$C$133>F136,$C$123+$C$133<=G136),1,0) -> 1 | K136: =IF(AND(I136=1,J136=1),1,IF(AND(I136=0,J136=1),2,IF(AND(I136=0,J136=0),3,IF(AND(I136=1,J136=0),4,0)))) -> 2 | L136: =IF(K136=1,C121-C133,IF(K136=2,G136-C123-C133,IF(K136=3,0,IF(K136=4,0,0)))) -> 32700 | M136: =IF(K136=1,0,IF(K136=2,MIN(C123+C121-G136,G137-G136),IF(K136=3,MIN(C121-C133,G137-G136-O136),IF(K136=4,0,0)))) -> -37700 | N136: =IF(C123+C121>G137,IF(K136=1,0,IF(K136=2,C123+C121-G137,IF(K136=3,C123+C121-G137,IF(K136=4,0,0)))),0) -> 0 | O136: =$C$123+$C$133-G136 -> -32700 | P136: =$C$133-O136 -> 37700
C137: Upper Tax Band | D137: =IF(H136=1,M136,IF(H137=1,M137,IF(H138=1,M138,0))) -> -37700 | F137: 37501 | G137: ='Tax Rates'!B39 -> 150000 | H137: =IF(AND($C$123>=F137,$C$123<=G137),1,0) -> 0 | I137: =IF(AND($C$123+$C$121>F137,$C$123+$C$121<=G137),1,0) -> 0 | J137: =IF(AND($C$123+$C$133>F137,$C$123+$C$133<=G137),1,0) -> 0 | K137: =IF(AND(I137=1,J137=1),1,IF(AND(I137=0,J137=1),2,IF(AND(I137=0,J137=0),3,IF(AND(I137=1,J137=0),4,0)))) -> 3 | L137: 0 | M137: =IF(K137=1,C121-C133,IF(K137=2,G137-C123-C133,IF(K137=3,0,IF(K137=4,0,0)))) -> 0 | N137: =IF(K137=1,0,IF(K137=2,C123+C121-G137,IF(K137=3,C121-C133,IF(K137=4,0,0)))) -> -5000 | O137: =$C$123+$C$133-G137 -> -145000 | P137: =$C$133-O137 -> 150000
C138: Additional Tax Band | D138: =IF(H136=1,N136,IF(H137=1,N137,IF(H138=1,N138,0))) -> 0 | F138: 150001 | G138: 99999999 | H138: =IF(AND($C$123>=F138,$C$123<=G138),1,0) -> 0 | I138: 0 | J138: =IF(AND($C$123+$C$133>F138,$C$123+$C$133<=G138),1,0) -> 0 | K138: =IF(AND(I138=1,J138=1),1,IF(AND(I138=0,J138=1),2,IF(AND(I138=0,J138=0),3,IF(AND(I138=1,J138=0),4,0)))) -> 3 | L138: 0 | M138: 0 | N138: =C121-C133 -> -5000 | O138: =$C$123+$C$133-G138 -> -99994999 | P138: 99999999
C142: Tax | D142: Value Being Taxed | F142: Rate
B143: =TEXT(F143,"0.0%") & " Rate" -> 20.0% Rate | C143: =D143*F143 -> 6540 | D143: =D136 -> 32700 | F143: ='Tax Rates'!B42 -> 0.2
B144: =TEXT(F144,"0.0%") & " Rate" -> 40.0% Rate | C144: =D144*F144 -> -15080 | D144: =D137 -> -37700 | F144: ='Tax Rates'!B43 -> 0.4
B145: =TEXT(F145,"0.0%") & " Rate" -> 45.0% Rate | C145: =D145*F145 -> 0 | D145: =D138 -> 0 | F145: ='Tax Rates'!B44 -> 0.45
B147: Interest Income Tax | C147: =IF(OR(C121<=C133,C121=0),0,SUM(C143:C145)) -> 0
B150: Investment Income Tax (Dividend/Investment)
B152: Investment Income | C152: =C29 -> 0
B153: Dividend/Investment Income Allowance | C153: ='Tax Rates'!B22 -> 2000
B155: Non-Savings Income minus personal allowance and Interest Income | C155: =C68+C28 -> 0
D158: Taxable Interest Income by tax band | F158: Start of Band | G158: End of Band | H158: Scenario check 1 | I158: Pay+Investment check | J158: Pay+Allowance check | K158: Scenaio Check 2 | L158: Basic | M158: Upper | N158: Additional | O158: Allowance 2 | P158: Allowance 3
C159: Basic Tax Band | D159: =IF(H159=1,L159,IF(H160=1,L160,IF(H161=1,L161,0))) -> 35700 | F159: 0 | G159: ='Tax Rates'!B38 -> 37700 | H159: =IF(AND($C$155>=F159,$C$155<=G159),1,0) -> 1 | I159: =IF(AND($C$155+$C$152>F159,$C$155+$C$152<=G159),1,0) -> 0 | J159: =IF(AND($C$155+$C$153>F159,$C$155+$C$153<=G159),1,0) -> 1 | K159: =IF(AND(I159=1,J159=1),1,IF(AND(I159=0,J159=1),2,IF(AND(I159=0,J159=0),3,IF(AND(I159=1,J159=0),4,0)))) -> 2 | L159: =IF(K159=1,C152-C153,IF(K159=2,G159-C155-C153,IF(K159=3,0,IF(K159=4,0,0)))) -> 35700 | M159: =IF(K159=1,0,IF(K159=2,MIN(C155+C152-G159,G160-G159),IF(K159=3,MIN(C152-C153,G160-G159-O159),IF(K159=4,0,0)))) -> -37700 | N159: =IF(C153+C152>G160,IF(K159=1,0,IF(K159=2,C153+C152-G160,IF(K159=3,C153+C152-G160,IF(K159=4,0,0)))),0) -> 0 | O159: =$C$155+$C$153-G159 -> -35700 | P159: =$C$153-O159 -> 37700
C160: Upper Tax Band | D160: =IF(H159=1,M159,IF(H160=1,M160,IF(H161=1,M161,0))) -> -37700 | F160: 37501 | G160: ='Tax Rates'!B39 -> 150000 | H160: =IF(AND($C$155>=F160,$C$155<=G160),1,0) -> 0 | I160: =IF(AND($C$155+$C$152>F160,$C$155+$C$152<=G160),1,0) -> 0 | J160: =IF(AND($C$155+$C$153>F160,$C$155+$C$153<=G160),1,0) -> 0 | K160: =IF(AND(I160=1,J160=1),1,IF(AND(I160=0,J160=1),2,IF(AND(I160=0,J160=0),3,IF(AND(I160=1,J160=0),4,0)))) -> 3 | L160: 0 | M160: =IF(K160=1,C152-C153,IF(K160=2,G160-C155-C153,IF(K160=3,0,IF(K160=4,0,0)))) -> 0 | N160: =IF(K160=1,0,IF(K160=2,C155+C152-G160,IF(K160=3,C152-C153,IF(K160=4,0,0)))) -> -2000 | O160: =$C$155+$C$153-G160 -> -148000 | P160: =$C$153-O160 -> 150000
C161: Additional Tax Band | D161: =IF(H159=1,N159,IF(H160=1,N160,IF(H161=1,N161,0))) -> 0 | F161: 150001 | G161: 99999999 | H161: =IF(AND($C$155>=F161,$C$155<=G161),1,0) -> 0 | I161: 0 | J161: =IF(AND($C$155+$C$153>F161,$C$155+$C$153<=G161),1,0) -> 0 | K161: 3 | L161: 0 | M161: 0 | N161: =C152-C153 -> -2000 | O161: =$C$155+$C$153-G161 -> -99997999 | P161: =$C$153-O161 -> 99999999
C165: Tax | D165: Value Being Taxed | F165: Rate
B166: =TEXT(F166,"0.0%") & " Rate" -> 7.5% Rate | C166: =D166*F166 -> 2677.5 | D166: =D159 -> 35700 | F166: ='Tax Rates'!B83 -> 0.075
B167: =TEXT(F167,"0.0%") & " Rate" -> 32.5% Rate | C167: =D167*F167 -> -12252.5 | D167: =D160 -> -37700 | F167: ='Tax Rates'!B84 -> 0.325
B168: =TEXT(F168,"0.0%") & " Rate" -> 38.1% Rate | C168: =D168*F168 -> 0 | D168: 0 | F168: ='Tax Rates'!B85 -> 0.381
B170: Investment Income Tax | C170: =IF(OR(C152=0,C152<=C153),0,SUM(C166:C168)) -> 0

Sheet Tax Applicant 3 (hidden)
B1: UK Taxation
B3: Additional Deduction Fields
B4: Age | C4: ='Applicant 3'!H5 -> Input DOB | D4: years
B5: Student Loan Payment | C5: =IF('Applicant 3'!D91>0,"Plan2","No") -> No | D5: (Plan2/No)
B6: Blind | C6: No | D6: (Yes/No)
B7: Pension Contributions | C7: ='Applicant 3'!H86*12 -> 0 | D7: per year
B8: Childcare Vouchers | C8: ='Applicant 3'!D87*12 -> 0 | D8: per year
B10: Income Type
B11: Basic Salary | C11: =IF('Applicant 3'!D11<>"Self Employed",'Applicant 3'!H34,0) -> 0 | D11: per year
B12: All employments | C12: =IF('Applicant 3'!D11="Self Employed",'Applicant 3'!H20,0) -> 0 | D12: per year
B13: Pension Income (incl. Private, Company and State) | C13: ='Applicant 3'!D44+'Applicant 3'!D45+'Applicant 3'!D43 -> 0 | D13: per year
B14: Profit from Self Employment | C14: ='Applicant 3'!D42 -> 0 | D14: per year
B15: Other | D15: per year
B16: Deposit Interest (Savings) Income | C16: ='Applicant 3'!D49 -> 0 | D16: per year
B17: Annuities Income | C17: ='Applicant 3'!D51 -> 0 | D17: per year
B18: Trust Income | C18: ='Applicant 3'!D50 -> 0 | D18: per year
B19: Dividend Income | C19: ='Applicant 3'!D48 -> 0 | D19: per year
B20: Investment Income | C20: ='Applicant 3'!D47 -> 0 | D20: per year
B22: Total Gross Income | C22: =SUM(C11:C20) -> 0 | D22: per year
B24: National Insurance Income | C24: =C11+C12 -> 0 | D24: per year
B25: Self Employed Profit National Insurance Income* | C25: =C14 -> 0 | D25: per year
B27: Non-Savings Income minus pension contributions and child care vouchers | C27: =SUM(C11:C15)-SUM(C7:C8) -> 0 | D27: per year
B28: Interest Income | C28: =SUM(C16:C18) -> 0 | D28: per year
B29: Investment Income (Top Slice) | C29: =SUM(C19:C20) -> 0 | D29: per year
B31: Total Taxable Income | C31: =SUM(C27:C29) -> 0 | D31: per year
B33: Total Employment PAYE tax** | C33: =C77 -> 0 | D33: per year
B34: Total Employment National Insurance | C34: =C90 -> 0 | D34: per year
B35: Student Loan Payment | C35: =IF(UPPER(LEFT(C5,1))<>"N",'Applicant 3'!D91*12,0) -> 0 | D35: per year
B36: Class2 NIC*** | C36: =C96 -> 0 | D36: per year
B37: Class4 NIC*** | C37: =C110 -> 0 | D37: per year
B38: Interest Income Tax **** | C38: =C147 -> 0 | D38: per year
B39: Investment Income Tax ***** | C39: =C170 -> 0 | D39: per year
B41: Total deductions | C41: =SUM(C33:C39) -> 0 | D41: per year
B43: Annual Net Pay : | C43: =C31-C41 -> 0 | D43: per year
B44: Monthly Net pay : | C44: =C43/12 -> 0 | D44: per month
B45: Weekly Net pay : | C45: =C43/52 -> 0 | D45: per week
B47: * Profit from Self Employment
B48: ** PAYE Tax on Employment and Self Employment Incomes
B49: *** Self Employed National Insurance
B50: **** Tax on Deposit Interest (Savings) and Annuities Income
B51: ***** Tax on Dividend and Investment Income
B53: Personal Allowance
B55: Basic | C55: =G55 -> 12570 | F55: Basic | G55: ='Tax Rates'!B5 -> 12570
B56: Age related contribution | C56: =(IF(C4<65,0,IF(C4<75,G56-G55,G57-G55))) -> 0 | F56: Age 65-74 | G56: =G55 -> 12570
B57: Age related taper deduction | C57: =IF((C11-G60)<0,0,IF((C11-G60)/2>C56,C56,(C11-G60)/2)) -> 0 | F57: Age 75 and over | G57: =G55 -> 12570
B58: Allowance after age adjust | C58: =C55+C56-C57 -> 12570 | F58: Blind persons allowance | G58: ='Tax Rates'!B90 -> 2520
B60: Taper deduction | C60: =IF(((C22-C7)-G61)<0,0,IF(((C22-C7)-G61)/2>C58,C58,((C22-C7)-G61)/2)) -> 0 | F60: Age related threshold | G60: 27700
F61: Taper threshold | G61: 100000
B62: Personal Allowance | C62: =C58-C60 -> 12570
B64: Non-Savings Income Tax (Basic Salary/Self Employed/Penison(s)/IncomeEarnedAsSoleProprietorOrPartner/Trust/Other)
B66: Taxable Employment Income | C66: =C27 -> 0 | F66: Personal Allowance | G66: =C62 -> 12570
F67: Blind persons allowance | G67: =IF(UPPER(LEFT(C6,1))="Y",G58,0) -> 0
B68: Income less personal allowance | C68: =IF(C66>G68,C66-G68,0) -> 0 | F68: Total Allowances | G68: =G67+G66 -> 12570
C70: Tax | D70: Value Being Taxed | F70: Rate | G70: Start of Band | H70: End of Band | I70: Difference
B71: =TEXT(F71,"0.0%") & " Rate" -> 20.0% Rate | C71: =D71*F71 -> 0 | D71: =MIN(C68,I71) -> 0 | F71: ='Tax Rates'!B42 -> 0.2 | G71: 0 | H71: ='Tax Rates'!B38 -> 37700 | I71: =H71-G71 -> 37700
B72: =TEXT(F72,"0.0%") & " Rate" -> 40.0% Rate | C72: =D72*F72 -> 0 | D72: =IF($C$68>G72,MIN($C$68-G72,I72),0) -> 0 | F72: ='Tax Rates'!B43 -> 0.4 | G72: =H71+1 -> 37701 | H72: ='Tax Rates'!B39 -> 150000 | I72: =H72-G72 -> 112299
B73: =TEXT(F73,"0.0%") & " Rate" -> 45.0% Rate | C73: =D73*F73 -> 0 | D73: =IF($C$68>G73,$C$68-G73,0) -> 0 | F73: ='Tax Rates'!B44 -> 0.45 | G73: =H72+1 -> 150001 | H73: 99999999 | I73: =H73-G73 -> 99849998
B75: Less tax on trusts
K76: =12500/52 -> 240.3846154
B77: Income Tax | C77: =SUM(C71:C73) -> 0
B79: National Insurance (From Basic Salary income)
B81: Weekly Income (Gross) | C81: =C24/52 -> 0 | F81: State Pension Age | G81: 65 | H81: years
C83: Tax | D83: Carry Over | F83: Rate | G83: Start of Band | H83: End of Band | I83: Difference
B84: =TEXT(F84,"0.0%") & " Rate" -> 0.0% Rate | C84: =IF(C81>=G84,IF(C81>=I84,I84*F84,C81*F84),0) -> 0 | D84: =IF((C81-I84)>0,C81-I84,0) -> 0 | F84: ='Tax Rates'!B49 -> 0 | G84: 0 | H84: ='Tax Rates'!B54 -> 184 | I84: =H84-G84 -> 184 | K84: =183*52 -> 9516
B85: =TEXT(F85,"0.0%") & " Rate" -> 12.0% Rate | C85: =IF(D84>0,IF(D84>=I85,I85*F85,D84*F85),0) -> 0 | D85: =IF((D84-I85)>0,D84-I85,0) -> 0 | F85: ='Tax Rates'!B50 -> 0.12 | G85: =H84+0.01 -> 184.01 | H85: ='Tax Rates'!B55 -> 967 | I85: =H85-G85+0.01 -> 783
B86: =TEXT(F86,"0.0%") & " Rate" -> 2.0% Rate | C86: =IF(D85>0,IF(D85>=I86,I86*F86,D85*F86),0) -> 0 | D86: =IF((D85-I86)>0,D85-I86,0) -> 0 | F86: ='Tax Rates'!B51 -> 0.02 | G86: =H85+0.01 -> 967.01 | H86: 99999999.99 | I86: =H86-G86+0.01 -> 99999032.99
B88: Total Weekly NI | C88: =SUM(C84:C86) -> 0
B89: Age related deduction | C89: =IF(C4>=G81,C88*52,0) -> 0
B90: Total Annual NI | C90: =(C88*52)-C89 -> 0
L91: NIC annual maxima where employed and self employed
B92: Self Employed National Insurance
K93: STEPS
B94: Class 2 Threshold | C94: ='Tax Rates'!B63 -> 6515 | K94: 1 | L94: =H105 -> 50270 | M94: =H104 -> 9569 | N94: =IF(C14>0,L94-M94,0) -> 0
B95: Class 2 Weekly Rate | C95: ='Tax Rates'!B64 -> 3.05 | K95: 2 | L95: =N94 -> 0 | M95: =F105 -> 0.09 | N95: =M95*L95 -> 0
B96: Total Annual Class 2 NIC | C96: =IF(C25=0,0,IF(SUM(C24:C25)>C94,C95*52)) -> 0 | K96: 3 | L96: =N95 -> 0
L97: =53*$C$95 -> 161.65 | N97: =L97+L96 -> 161.65
B98: Class 4 Taxable Income | C98: =C25 -> 0 | P98: Comparative total
K99: 4 | M99: =N97 -> 161.65 | P99: Class 1 NIC @12% | R99: =-M100 -> 0
B100: Tax at 2% if employed and self employed | C100: Tax | F100: Rate | M100: =-C85*52 -> 0 | P100: Class 2 NIC | R100: =-M101 -> 0
B101: =TEXT(F101,"0.0%") -> 2.0% | C101: =D101*F101 -> 0 | D101: =IF(C25=0,0,IF(SUM(C11:C12)>12500,C98-9500,0)) -> 0 | F101: ='Tax Rates'!B67 -> 0.02 | M101: =-C96 -> 0 | N101: =SUM(M99:M101) -> 161.65 | P101: Class 4 NIC @9% | R101: =C25*0.09 -> 0
R102: =SUM(R99:R101) -> 0
C103: Tax | D103: Carry Over | F103: Rate | G103: Start of Band | H103: End of Band | I103: Difference | L103: Case 1 | N103: =IF(N101>R102,N101,0) -> 161.65
B104: =TEXT(F104,"0.0%") & " Rate" -> 0.0% Rate | C104: =IF(C101>=G104,IF(C101>=I104,I104*F104,C101*F104),0) -> 0 | D104: =IF((C98-I104)>0,C98-I104,0) -> 0 | F104: ='Tax Rates'!B70 -> 0 | G104: 0 | H104: ='Tax Rates'!B75 -> 9569 | I104: =H104-G104 -> 9569 | L104: Case 2 | N104: =IF(AND(N101>0,N101<R102),N101,0) -> 0 | O104: need to add additional 2%
B105: =TEXT(F105,"0.0%") & " Rate" -> 9.0% Rate | C105: =IF(D104>0,IF(D104>=I105,I105*F105,D104*F105),0) -> 0 | D105: =IF((D104-I105)>0,D104-I105,0) -> 0 | F105: ='Tax Rates'!B71 -> 0.09 | G105: =IF(H104>=1,H104+1,H104) -> 9570 | H105: ='Tax Rates'!B76 -> 50270 | I105: =H105-G105 -> 40700 | L105: Case 3 | N105: =IF(N101<0,N101,0) -> 0 | O105: NIC4 @9% is NIL
B106: =TEXT(F106,"0.0%") & " Rate" -> 2.0% Rate | C106: =IF(D105>0,IF(D105>=I106,I106*F106,D105*F106),0) -> 0 | D106: =IF((D105-I106)>0,D105-I106,0) -> 0 | F106: ='Tax Rates'!B72 -> 0.02 | G106: =H105+1 -> 50271 | H106: 99999999 | I106: =H106-G106+1 -> 99949729
L107: Step5-9 only for Case 2 & 3
B108: Total Class 4 NIC (where no Class 1 NIC) | C108: =IF(D101>0,C101,SUM(C104:C106)) -> 0 | K108: 5 | L108: =IF(OR(N105>0,N104>0),N101,0) -> 0 | M108: =100/9 -> 11.11111111 | N108: =L108*M108 -> 0
K109: 6 | L109: =MIN(C25,H105) -> 0 | M109: =-I104 -> -9569 | N109: =L109+M109 -> -9569
B110: Total Annual Class 4 NIC payable | C110: =IF(C90<0.01,C108,IF(N103>0,R101,IF(N104>0,N119,IF(N105<0,N119,0)))) -> 0 | K110: 7 | N110: =N109-N108 -> -9569
L111: If STEP 7 negative then Nil
B112: Student Loan Repayment | K112: 8 | L112: =IF(N110<0,0,N110) -> 0 | M112: =$F$106 -> 0.02 | N112: =L112*M112 -> 0
K113: 9 | L113: =C25 -> 0 | M113: =-H105 -> -50270 | N113: =IF((L113+M113)<0,0,(L113+M113)*$F$106) -> 0
B114: Threshold | C114: =IF(RIGHT(C5,1)="1",G115/12,IF(RIGHT(C5,1)="2",H115/12,0)) -> 0 | G114: Plan 1 | H114: Plan 2
B115: Income above threshold | C115: =IF(SUM(C11:C12,C14)/12-C114<0,0,SUM(C11:C12,C14)/12-C114) -> 0 | F115: Repayment Threshold | G115: ='Tax Rates'!B27*12 -> 19884 | H115: ='Tax Rates'!B28*12 -> 27288 | L115: Total Class 4 NIC
B116: Repayment (if applicable) | C116: =FLOOR(C115*G116,1)*12 -> 0 | F116: Repayment Rate | G116: ='Tax Rates'!B31 -> 0.09 | H116: ='Tax Rates'!B32 -> 0.09 | L116: Step 4 | N116: =IF(N101<0,0,N101) -> 161.65
L117: Step 8 | N117: =N112 -> 0
L118: Step 9 | N118: =N113 -> 0
B119: Interest Income Tax (Deposit Interest (Savings), Annuities, Trust) | N119: =SUM(N116:N118) -> 161.65
B121: Interest Income | C121: =C28 -> 0
B123: Non-Savings Income minus allowance | C123: =C68 -> 0
B124: Gross Income (for allowance calculation) | C124: =C31 -> 0
C126: Calculated Allowance | F126: Start of Band | G126: End of Band | H126: Difference | I126: Within Band
C127: =IF(I127=1,'Tax Rates'!B9,0) -> 5000 | F127: 0 | G127: ='Tax Rates'!B15 -> 12570 | H127: =G127-F127 -> 12570 | I127: =IF(AND($C$124>=$F127,$C$124<=$G127),1,0) -> 1
C128: =IF(I128=1,'Tax Rates'!B9-(C123-G127),0) -> 0 | F128: =IF(G127>=1,G127+1,G127) -> 12571 | G128: ='Tax Rates'!B16 -> 17570 | H128: =G128-F128 -> 4999 | I128: =IF(AND($C$124>=$F128,$C$124<=$G128),1,0) -> 0
C129: =IF(I129=1,'Tax Rates'!B10,0) -> 0 | F129: =G128+1 -> 17571 | G129: ='Tax Rates'!B17 -> 50270 | H129: =G129-F129+1 -> 32700 | I129: 0
C130: =IF(I130=1,'Tax Rates'!B11,0) -> 0 | F130: =G129+1 -> 50271 | G130: ='Tax Rates'!B18 -> 150000 | H130: =G130-F130+1 -> 99730 | I130: 0
C131: =IF(I131=1,'Tax Rates'!B12,0) -> 0 | F131: =G130+1 -> 150001 | G131: 99999999 | H131: =G131-F131+1 -> 99849999 | I131: 0
B133: Interest Income Tax Allowance | C133: =SUM(C127:C131) -> 5000
D135: Taxable Interest Income by tax band | F135: Start of Band | G135: End of Band | H135: Scenario check 1 | I135: Pay+Interest check | J135: Pay+Allowance check | K135: Scenaio Check 2 | L135: Basic | M135: Upper | N135: Additional | O135: Allowance 2 | P135: Allowance 3
C136: Basic Tax Band | D136: =IF(H136=1,L136,IF(H137=1,L137,IF(H138=1,L138,0))) -> 32700 | F136: 0 | G136: ='Tax Rates'!B38 -> 37700 | H136: =IF(AND($C$123>=F136,$C$123<=G136),1,0) -> 1 | I136: =IF(AND($C$123+$C$121>F136,$C$123+$C$121<=G136),1,0) -> 0 | J136: =IF(AND($C$123+$C$133>F136,$C$123+$C$133<=G136),1,0) -> 1 | K136: =IF(AND(I136=1,J136=1),1,IF(AND(I136=0,J136=1),2,IF(AND(I136=0,J136=0),3,IF(AND(I136=1,J136=0),4,0)))) -> 2 | L136: =IF(K136=1,C121-C133,IF(K136=2,G136-C123-C133,IF(K136=3,0,IF(K136=4,0,0)))) -> 32700 | M136: =IF(K136=1,0,IF(K136=2,MIN(C123+C121-G136,G137-G136),IF(K136=3,MIN(C121-C133,G137-G136-O136),IF(K136=4,0,0)))) -> -37700 | N136: =IF(C123+C121>G137,IF(K136=1,0,IF(K136=2,C123+C121-G137,IF(K136=3,C123+C121-G137,IF(K136=4,0,0)))),0) -> 0 | O136: =$C$123+$C$133-G136 -> -32700 | P136: =$C$133-O136 -> 37700
C137: Upper Tax Band | D137: =IF(H136=1,M136,IF(H137=1,M137,IF(H138=1,M138,0))) -> -37700 | F137: 37501 | G137: ='Tax Rates'!B39 -> 150000 | H137: =IF(AND($C$123>=F137,$C$123<=G137),1,0) -> 0 | I137: =IF(AND($C$123+$C$121>F137,$C$123+$C$121<=G137),1,0) -> 0 | J137: =IF(AND($C$123+$C$133>F137,$C$123+$C$133<=G137),1,0) -> 0 | K137: =IF(AND(I137=1,J137=1),1,IF(AND(I137=0,J137=1),2,IF(AND(I137=0,J137=0),3,IF(AND(I137=1,J137=0),4,0)))) -> 3 | L137: 0 | M137: =IF(K137=1,C121-C133,IF(K137=2,G137-C123-C133,IF(K137=3,0,IF(K137=4,0,0)))) -> 0 | N137: =IF(K137=1,0,IF(K137=2,C123+C121-G137,IF(K137=3,C121-C133,IF(K137=4,0,0)))) -> -5000 | O137: =$C$123+$C$133-G137 -> -145000 | P137: =$C$133-O137 -> 150000
C138: Additional Tax Band | D138: =IF(H136=1,N136,IF(H137=1,N137,IF(H138=1,N138,0))) -> 0 | F138: 150001 | G138: 99999999 | H138: =IF(AND($C$123>=F138,$C$123<=G138),1,0) -> 0 | I138: 0 | J138: =IF(AND($C$123+$C$133>F138,$C$123+$C$133<=G138),1,0) -> 0 | K138: =IF(AND(I138=1,J138=1),1,IF(AND(I138=0,J138=1),2,IF(AND(I138=0,J138=0),3,IF(AND(I138=1,J138=0),4,0)))) -> 3 | L138: 0 | M138: 0 | N138: =C121-C133 -> -5000 | O138: =$C$123+$C$133-G138 -> -99994999 | P138: 99999999
C142: Tax | D142: Value Being Taxed | F142: Rate
B143: =TEXT(F143,"0.0%") & " Rate" -> 20.0% Rate | C143: =D143*F143 -> 6540 | D143: =D136 -> 32700 | F143: ='Tax Rates'!B42 -> 0.2
B144: =TEXT(F144,"0.0%") & " Rate" -> 40.0% Rate | C144: =D144*F144 -> -15080 | D144: =D137 -> -37700 | F144: ='Tax Rates'!B43 -> 0.4
B145: =TEXT(F145,"0.0%") & " Rate" -> 45.0% Rate | C145: =D145*F145 -> 0 | D145: =D138 -> 0 | F145: ='Tax Rates'!B44 -> 0.45
B147: Interest Income Tax | C147: =IF(OR(C121<=C133,C121=0),0,SUM(C143:C145)) -> 0
B150: Investment Income Tax (Dividend/Investment)
B152: Investment Income | C152: =C29 -> 0
B153: Dividend/Investment Income Allowance | C153: ='Tax Rates'!B22 -> 2000
B155: Non-Savings Income minus personal allowance and Interest Income | C155: =C68+C28 -> 0
D158: Taxable Interest Income by tax band | F158: Start of Band | G158: End of Band | H158: Scenario check 1 | I158: Pay+Investment check | J158: Pay+Allowance check | K158: Scenaio Check 2 | L158: Basic | M158: Upper | N158: Additional | O158: Allowance 2 | P158: Allowance 3
C159: Basic Tax Band | D159: =IF(H159=1,L159,IF(H160=1,L160,IF(H161=1,L161,0))) -> 35700 | F159: 0 | G159: ='Tax Rates'!B38 -> 37700 | H159: =IF(AND($C$155>=F159,$C$155<=G159),1,0) -> 1 | I159: =IF(AND($C$155+$C$152>F159,$C$155+$C$152<=G159),1,0) -> 0 | J159: =IF(AND($C$155+$C$153>F159,$C$155+$C$153<=G159),1,0) -> 1 | K159: =IF(AND(I159=1,J159=1),1,IF(AND(I159=0,J159=1),2,IF(AND(I159=0,J159=0),3,IF(AND(I159=1,J159=0),4,0)))) -> 2 | L159: =IF(K159=1,C152-C153,IF(K159=2,G159-C155-C153,IF(K159=3,0,IF(K159=4,0,0)))) -> 35700 | M159: =IF(K159=1,0,IF(K159=2,MIN(C155+C152-G159,G160-G159),IF(K159=3,MIN(C152-C153,G160-G159-O159),IF(K159=4,0,0)))) -> -37700 | N159: =IF(C153+C152>G160,IF(K159=1,0,IF(K159=2,C153+C152-G160,IF(K159=3,C153+C152-G160,IF(K159=4,0,0)))),0) -> 0 | O159: =$C$155+$C$153-G159 -> -35700 | P159: =$C$153-O159 -> 37700
C160: Upper Tax Band | D160: =IF(H159=1,M159,IF(H160=1,M160,IF(H161=1,M161,0))) -> -37700 | F160: 37501 | G160: ='Tax Rates'!B39 -> 150000 | H160: =IF(AND($C$155>=F160,$C$155<=G160),1,0) -> 0 | I160: =IF(AND($C$155+$C$152>F160,$C$155+$C$152<=G160),1,0) -> 0 | J160: =IF(AND($C$155+$C$153>F160,$C$155+$C$153<=G160),1,0) -> 0 | K160: =IF(AND(I160=1,J160=1),1,IF(AND(I160=0,J160=1),2,IF(AND(I160=0,J160=0),3,IF(AND(I160=1,J160=0),4,0)))) -> 3 | L160: 0 | M160: =IF(K160=1,C152-C153,IF(K160=2,G160-C155-C153,IF(K160=3,0,IF(K160=4,0,0)))) -> 0 | N160: =IF(K160=1,0,IF(K160=2,C155+C152-G160,IF(K160=3,C152-C153,IF(K160=4,0,0)))) -> -2000 | O160: =$C$155+$C$153-G160 -> -148000 | P160: =$C$153-O160 -> 150000
C161: Additional Tax Band | D161: =IF(H159=1,N159,IF(H160=1,N160,IF(H161=1,N161,0))) -> 0 | F161: 150001 | G161: 99999999 | H161: =IF(AND($C$155>=F161,$C$155<=G161),1,0) -> 0 | I161: 0 | J161: =IF(AND($C$155+$C$153>F161,$C$155+$C$153<=G161),1,0) -> 0 | K161: 3 | L161: 0 | M161: 0 | N161: =C152-C153 -> -2000 | O161: =$C$155+$C$153-G161 -> -99997999 | P161: =$C$153-O161 -> 99999999
C165: Tax | D165: Value Being Taxed | F165: Rate
B166: =TEXT(F166,"0.0%") & " Rate" -> 7.5% Rate | C166: =D166*F166 -> 2677.5 | D166: =D159 -> 35700 | F166: ='Tax Rates'!B83 -> 0.075
B167: =TEXT(F167,"0.0%") & " Rate" -> 32.5% Rate | C167: =D167*F167 -> -12252.5 | D167: =D160 -> -37700 | F167: ='Tax Rates'!B84 -> 0.325
B168: =TEXT(F168,"0.0%") & " Rate" -> 38.1% Rate | C168: =D168*F168 -> 0 | D168: 0 | F168: ='Tax Rates'!B85 -> 0.381
B170: Investment Income Tax | C170: =IF(OR(C152=0,C152<=C153),0,SUM(C166:C168)) -> 0

Sheet Tax Applicant 4 (hidden)
B1: UK Taxation
B3: Additional Deduction Fields
B4: Age | C4: ='Applicant 4'!H5 -> Input DOB | D4: years
B5: Student Loan Payment | C5: =IF('Applicant 4'!D91>0,"Plan2","No") -> No | D5: (Plan2/No)
B6: Blind | C6: No | D6: (Yes/No)
B7: Pension Contributions | C7: ='Applicant 4'!H86*12 -> 0 | D7: per year
B8: Childcare Vouchers | C8: ='Applicant 4'!D87*12 -> 0 | D8: per year
B10: Income Type
B11: Basic Salary | C11: =IF('Applicant 4'!D11<>"Self Employed",'Applicant 4'!H34,0) -> 0 | D11: per year
B12: All employments | C12: =IF('Applicant 4'!D11="Self Employed",'Applicant 4'!H20,0) -> 0 | D12: per year
B13: Pension Income (incl. Private, Company and State) | C13: ='Applicant 4'!D44+'Applicant 4'!D45+'Applicant 4'!D43 -> 0 | D13: per year
B14: Profit from Self Employment | C14: ='Applicant 4'!D42 -> 0 | D14: per year
B15: Other | D15: per year
B16: Deposit Interest (Savings) Income | C16: ='Applicant 4'!D49 -> 0 | D16: per year
B17: Annuities Income | C17: ='Applicant 4'!D51 -> 0 | D17: per year
B18: Trust Income | C18: ='Applicant 4'!D50 -> 0 | D18: per year
B19: Dividend Income | C19: ='Applicant 4'!D48 -> 0 | D19: per year
B20: Investment Income | C20: ='Applicant 4'!D47 -> 0 | D20: per year
B22: Total Gross Income | C22: =SUM(C11:C20) -> 0 | D22: per year
B24: National Insurance Income | C24: =C11+C12 -> 0 | D24: per year
B25: Self Employed Profit National Insurance Income* | C25: =C14 -> 0 | D25: per year
B27: Non-Savings Income minus pension contributions and child care vouchers | C27: =SUM(C11:C15)-SUM(C7:C8) -> 0 | D27: per year
B28: Interest Income | C28: =SUM(C16:C18) -> 0 | D28: per year
B29: Investment Income (Top Slice) | C29: =SUM(C19:C20) -> 0 | D29: per year
B31: Total Taxable Income | C31: =SUM(C27:C29) -> 0 | D31: per year
B33: Total Employment PAYE tax** | C33: =C77 -> 0 | D33: per year
B34: Total Employment National Insurance | C34: =C90 -> 0 | D34: per year
B35: Student Loan Payment | C35: =IF(UPPER(LEFT(C5,1))<>"N",'Applicant 4'!D91*12,0) -> 0 | D35: per year
B36: Class2 NIC*** | C36: =C96 -> 0 | D36: per year
B37: Class4 NIC*** | C37: =C110 -> 0 | D37: per year
B38: Interest Income Tax **** | C38: =C147 -> 0 | D38: per year
B39: Investment Income Tax ***** | C39: =C170 -> 0 | D39: per year
B41: Total deductions | C41: =SUM(C33:C39) -> 0 | D41: per year
B43: Annual Net Pay : | C43: =C31-C41 -> 0 | D43: per year
B44: Monthly Net pay : | C44: =C43/12 -> 0 | D44: per month
B45: Weekly Net pay : | C45: =C43/52 -> 0 | D45: per week
B47: * Profit from Self Employment
B48: ** PAYE Tax on Employment and Self Employment Incomes
B49: *** Self Employed National Insurance
B50: **** Tax on Deposit Interest (Savings) and Annuities Income
B51: ***** Tax on Dividend and Investment Income
B53: Personal Allowance
B55: Basic | C55: =G55 -> 12570 | F55: Basic | G55: ='Tax Rates'!B5 -> 12570
B56: Age related contribution | C56: =(IF(C4<65,0,IF(C4<75,G56-G55,G57-G55))) -> 0 | F56: Age 65-74 | G56: =G55 -> 12570
B57: Age related taper deduction | C57: =IF((C11-G60)<0,0,IF((C11-G60)/2>C56,C56,(C11-G60)/2)) -> 0 | F57: Age 75 and over | G57: =G55 -> 12570
B58: Allowance after age adjust | C58: =C55+C56-C57 -> 12570 | F58: Blind persons allowance | G58: ='Tax Rates'!B90 -> 2520
B60: Taper deduction | C60: =IF(((C22-C7)-G61)<0,0,IF(((C22-C7)-G61)/2>C58,C58,((C22-C7)-G61)/2)) -> 0 | F60: Age related threshold | G60: 27700
F61: Taper threshold | G61: 100000
B62: Personal Allowance | C62: =C58-C60 -> 12570
B64: Non-Savings Income Tax (Basic Salary/Self Employed/Penison(s)/IncomeEarnedAsSoleProprietorOrPartner/Trust/Other)
B66: Taxable Employment Income | C66: =C27 -> 0 | F66: Personal Allowance | G66: =C62 -> 12570
F67: Blind persons allowance | G67: =IF(UPPER(LEFT(C6,1))="Y",G58,0) -> 0
B68: Income less personal allowance | C68: =IF(C66>G68,C66-G68,0) -> 0 | F68: Total Allowances | G68: =G67+G66 -> 12570
C70: Tax | D70: Value Being Taxed | F70: Rate | G70: Start of Band | H70: End of Band | I70: Difference
B71: =TEXT(F71,"0.0%") & " Rate" -> 20.0% Rate | C71: =D71*F71 -> 0 | D71: =MIN(C68,I71) -> 0 | F71: ='Tax Rates'!B42 -> 0.2 | G71: 0 | H71: ='Tax Rates'!B38 -> 37700 | I71: =H71-G71 -> 37700
B72: =TEXT(F72,"0.0%") & " Rate" -> 40.0% Rate | C72: =D72*F72 -> 0 | D72: =IF($C$68>G72,MIN($C$68-G72,I72),0) -> 0 | F72: ='Tax Rates'!B43 -> 0.4 | G72: =H71+1 -> 37701 | H72: ='Tax Rates'!B39 -> 150000 | I72: =H72-G72 -> 112299
B73: =TEXT(F73,"0.0%") & " Rate" -> 45.0% Rate | C73: =D73*F73 -> 0 | D73: =IF($C$68>G73,$C$68-G73,0) -> 0 | F73: ='Tax Rates'!B44 -> 0.45 | G73: =H72+1 -> 150001 | H73: 99999999 | I73: =H73-G73 -> 99849998
B75: Less tax on trusts
K76: =12500/52 -> 240.3846154
B77: Income Tax | C77: =SUM(C71:C73) -> 0
B79: National Insurance (From Basic Salary income)
B81: Weekly Income (Gross) | C81: =C24/52 -> 0 | F81: State Pension Age | G81: 65 | H81: years
C83: Tax | D83: Carry Over | F83: Rate | G83: Start of Band | H83: End of Band | I83: Difference
B84: =TEXT(F84,"0.0%") & " Rate" -> 0.0% Rate | C84: =IF(C81>=G84,IF(C81>=I84,I84*F84,C81*F84),0) -> 0 | D84: =IF((C81-I84)>0,C81-I84,0) -> 0 | F84: ='Tax Rates'!B49 -> 0 | G84: 0 | H84: ='Tax Rates'!B54 -> 184 | I84: =H84-G84 -> 184 | K84: =183*52 -> 9516
B85: =TEXT(F85,"0.0%") & " Rate" -> 12.0% Rate | C85: =IF(D84>0,IF(D84>=I85,I85*F85,D84*F85),0) -> 0 | D85: =IF((D84-I85)>0,D84-I85,0) -> 0 | F85: ='Tax Rates'!B50 -> 0.12 | G85: =H84+0.01 -> 184.01 | H85: ='Tax Rates'!B55 -> 967 | I85: =H85-G85+0.01 -> 783
B86: =TEXT(F86,"0.0%") & " Rate" -> 2.0% Rate | C86: =IF(D85>0,IF(D85>=I86,I86*F86,D85*F86),0) -> 0 | D86: =IF((D85-I86)>0,D85-I86,0) -> 0 | F86: ='Tax Rates'!B51 -> 0.02 | G86: =H85+0.01 -> 967.01 | H86: 99999999.99 | I86: =H86-G86+0.01 -> 99999032.99
B88: Total Weekly NI | C88: =SUM(C84:C86) -> 0
B89: Age related deduction | C89: =IF(C4>=G81,C88*52,0) -> 0
B90: Total Annual NI | C90: =(C88*52)-C89 -> 0
L91: NIC annual maxima where employed and self employed
B92: Self Employed National Insurance
K93: STEPS
B94: Class 2 Threshold | C94: ='Tax Rates'!B63 -> 6515 | K94: 1 | L94: =H105 -> 50270 | M94: =H104 -> 9569 | N94: =IF(C14>0,L94-M94,0) -> 0
B95: Class 2 Weekly Rate | C95: ='Tax Rates'!B64 -> 3.05 | K95: 2 | L95: =N94 -> 0 | M95: =F105 -> 0.09 | N95: =M95*L95 -> 0
B96: Total Annual Class 2 NIC | C96: =IF(C25=0,0,IF(SUM(C24:C25)>C94,C95*52)) -> 0 | K96: 3 | L96: =N95 -> 0
L97: =53*$C$95 -> 161.65 | N97: =L97+L96 -> 161.65
B98: Class 4 Taxable Income | C98: =C25 -> 0 | P98: Comparative total
K99: 4 | M99: =N97 -> 161.65 | P99: Class 1 NIC @12% | R99: =-M100 -> 0
B100: Tax at 2% if employed and self employed | C100: Tax | F100: Rate | M100: =-C85*52 -> 0 | P100: Class 2 NIC | R100: =-M101 -> 0
B101: =TEXT(F101,"0.0%") -> 2.0% | C101: =D101*F101 -> 0 | D101: =IF(C25=0,0,IF(SUM(C11:C12)>12500,C98-9500,0)) -> 0 | F101: ='Tax Rates'!B67 -> 0.02 | M101: =-C96 -> 0 | N101: =SUM(M99:M101) -> 161.65 | P101: Class 4 NIC @9% | R101: =C25*0.09 -> 0
R102: =SUM(R99:R101) -> 0
C103: Tax | D103: Carry Over | F103: Rate | G103: Start of Band | H103: End of Band | I103: Difference | L103: Case 1 | N103: =IF(N101>R102,N101,0) -> 161.65
B104: =TEXT(F104,"0.0%") & " Rate" -> 0.0% Rate | C104: =IF(C101>=G104,IF(C101>=I104,I104*F104,C101*F104),0) -> 0 | D104: =IF((C98-I104)>0,C98-I104,0) -> 0 | F104: ='Tax Rates'!B70 -> 0 | G104: 0 | H104: ='Tax Rates'!B75 -> 9569 | I104: =H104-G104 -> 9569 | L104: Case 2 | N104: =IF(AND(N101>0,N101<R102),N101,0) -> 0 | O104: need to add additional 2%
B105: =TEXT(F105,"0.0%") & " Rate" -> 9.0% Rate | C105: =IF(D104>0,IF(D104>=I105,I105*F105,D104*F105),0) -> 0 | D105: =IF((D104-I105)>0,D104-I105,0) -> 0 | F105: ='Tax Rates'!B71 -> 0.09 | G105: =IF(H104>=1,H104+1,H104) -> 9570 | H105: ='Tax Rates'!B76 -> 50270 | I105: =H105-G105 -> 40700 | L105: Case 3 | N105: =IF(N101<0,N101,0) -> 0 | O105: NIC4 @9% is NIL
B106: =TEXT(F106,"0.0%") & " Rate" -> 2.0% Rate | C106: =IF(D105>0,IF(D105>=I106,I106*F106,D105*F106),0) -> 0 | D106: =IF((D105-I106)>0,D105-I106,0) -> 0 | F106: ='Tax Rates'!B72 -> 0.02 | G106: =H105+1 -> 50271 | H106: 99999999 | I106: =H106-G106+1 -> 99949729
L107: Step5-9 only for Case 2 & 3
B108: Total Class 4 NIC (where no Class 1 NIC) | C108: =IF(D101>0,C101,SUM(C104:C106)) -> 0 | K108: 5 | L108: =IF(OR(N105>0,N104>0),N101,0) -> 0 | M108: =100/9 -> 11.11111111 | N108: =L108*M108 -> 0
K109: 6 | L109: =MIN(C25,H105) -> 0 | M109: =-I104 -> -9569 | N109: =L109+M109 -> -9569
B110: Total Annual Class 4 NIC payable | C110: =IF(C90<0.01,C108,IF(N103>0,R101,IF(N104>0,N119,IF(N105<0,N119,0)))) -> 0 | K110: 7 | N110: =N109-N108 -> -9569
L111: If STEP 7 negative then Nil
B112: Student Loan Repayment | K112: 8 | L112: =IF(N110<0,0,N110) -> 0 | M112: =$F$106 -> 0.02 | N112: =L112*M112 -> 0
K113: 9 | L113: =C25 -> 0 | M113: =-H105 -> -50270 | N113: =IF((L113+M113)<0,0,(L113+M113)*$F$106) -> 0
B114: Threshold | C114: =IF(RIGHT(C5,1)="1",G115/12,IF(RIGHT(C5,1)="2",H115/12,0)) -> 0 | G114: Plan 1 | H114: Plan 2
B115: Income above threshold | C115: =IF(SUM(C11:C12,C14)/12-C114<0,0,SUM(C11:C12,C14)/12-C114) -> 0 | F115: Repayment Threshold | G115: ='Tax Rates'!B27*12 -> 19884 | H115: ='Tax Rates'!B28*12 -> 27288 | L115: Total Class 4 NIC
B116: Repayment (if applicable) | C116: =FLOOR(C115*G116,1)*12 -> 0 | F116: Repayment Rate | G116: ='Tax Rates'!B31 -> 0.09 | H116: ='Tax Rates'!B32 -> 0.09 | L116: Step 4 | N116: =IF(N101<0,0,N101) -> 161.65
L117: Step 8 | N117: =N112 -> 0
L118: Step 9 | N118: =N113 -> 0
B119: Interest Income Tax (Deposit Interest (Savings), Annuities, Trust) | N119: =SUM(N116:N118) -> 161.65
B121: Interest Income | C121: =C28 -> 0
B123: Non-Savings Income minus allowance | C123: =C68 -> 0
B124: Gross Income (for allowance calculation) | C124: =C31 -> 0
C126: Calculated Allowance | F126: Start of Band | G126: End of Band | H126: Difference | I126: Within Band
C127: =IF(I127=1,'Tax Rates'!B9,0) -> 5000 | F127: 0 | G127: ='Tax Rates'!B15 -> 12570 | H127: =G127-F127 -> 12570 | I127: =IF(AND($C$124>=$F127,$C$124<=$G127),1,0) -> 1
C128: =IF(I128=1,'Tax Rates'!B9-(C123-G127),0) -> 0 | F128: =IF(G127>=1,G127+1,G127) -> 12571 | G128: ='Tax Rates'!B16 -> 17570 | H128: =G128-F128 -> 4999 | I128: =IF(AND($C$124>=$F128,$C$124<=$G128),1,0) -> 0
C129: =IF(I129=1,'Tax Rates'!B10,0) -> 0 | F129: =G128+1 -> 17571 | G129: ='Tax Rates'!B17 -> 50270 | H129: =G129-F129+1 -> 32700 | I129: 0
C130: =IF(I130=1,'Tax Rates'!B11,0) -> 0 | F130: =G129+1 -> 50271 | G130: ='Tax Rates'!B18 -> 150000 | H130: =G130-F130+1 -> 99730 | I130: 0
C131: =IF(I131=1,'Tax Rates'!B12,0) -> 0 | F131: =G130+1 -> 150001 | G131: 99999999 | H131: =G131-F131+1 -> 99849999 | I131: 0
B133: Interest Income Tax Allowance | C133: =SUM(C127:C131) -> 5000
D135: Taxable Interest Income by tax band | F135: Start of Band | G135: End of Band | H135: Scenario check 1 | I135: Pay+Interest check | J135: Pay+Allowance check | K135: Scenaio Check 2 | L135: Basic | M135: Upper | N135: Additional | O135: Allowance 2 | P135: Allowance 3
C136: Basic Tax Band | D136: =IF(H136=1,L136,IF(H137=1,L137,IF(H138=1,L138,0))) -> 32700 | F136: 0 | G136: ='Tax Rates'!B38 -> 37700 | H136: =IF(AND($C$123>=F136,$C$123<=G136),1,0) -> 1 | I136: =IF(AND($C$123+$C$121>F136,$C$123+$C$121<=G136),1,0) -> 0 | J136: =IF(AND($C$123+$C$133>F136,$C$123+$C$133<=G136),1,0) -> 1 | K136: =IF(AND(I136=1,J136=1),1,IF(AND(I136=0,J136=1),2,IF(AND(I136=0,J136=0),3,IF(AND(I136=1,J136=0),4,0)))) -> 2 | L136: =IF(K136=1,C121-C133,IF(K136=2,G136-C123-C133,IF(K136=3,0,IF(K136=4,0,0)))) -> 32700 | M136: =IF(K136=1,0,IF(K136=2,MIN(C123+C121-G136,G137-G136),IF(K136=3,MIN(C121-C133,G137-G136-O136),IF(K136=4,0,0)))) -> -37700 | N136: =IF(C123+C121>G137,IF(K136=1,0,IF(K136=2,C123+C121-G137,IF(K136=3,C123+C121-G137,IF(K136=4,0,0)))),0) -> 0 | O136: =$C$123+$C$133-G136 -> -32700 | P136: =$C$133-O136 -> 37700
C137: Upper Tax Band | D137: =IF(H136=1,M136,IF(H137=1,M137,IF(H138=1,M138,0))) -> -37700 | F137: 37501 | G137: ='Tax Rates'!B39 -> 150000 | H137: =IF(AND($C$123>=F137,$C$123<=G137),1,0) -> 0 | I137: =IF(AND($C$123+$C$121>F137,$C$123+$C$121<=G137),1,0) -> 0 | J137: =IF(AND($C$123+$C$133>F137,$C$123+$C$133<=G137),1,0) -> 0 | K137: =IF(AND(I137=1,J137=1),1,IF(AND(I137=0,J137=1),2,IF(AND(I137=0,J137=0),3,IF(AND(I137=1,J137=0),4,0)))) -> 3 | L137: 0 | M137: =IF(K137=1,C121-C133,IF(K137=2,G137-C123-C133,IF(K137=3,0,IF(K137=4,0,0)))) -> 0 | N137: =IF(K137=1,0,IF(K137=2,C123+C121-G137,IF(K137=3,C121-C133,IF(K137=4,0,0)))) -> -5000 | O137: =$C$123+$C$133-G137 -> -145000 | P137: =$C$133-O137 -> 150000
C138: Additional Tax Band | D138: =IF(H136=1,N136,IF(H137=1,N137,IF(H138=1,N138,0))) -> 0 | F138: 150001 | G138: 99999999 | H138: =IF(AND($C$123>=F138,$C$123<=G138),1,0) -> 0 | I138: 0 | J138: =IF(AND($C$123+$C$133>F138,$C$123+$C$133<=G138),1,0) -> 0 | K138: =IF(AND(I138=1,J138=1),1,IF(AND(I138=0,J138=1),2,IF(AND(I138=0,J138=0),3,IF(AND(I138=1,J138=0),4,0)))) -> 3 | L138: 0 | M138: 0 | N138: =C121-C133 -> -5000 | O138: =$C$123+$C$133-G138 -> -99994999 | P138: 99999999
C142: Tax | D142: Value Being Taxed | F142: Rate
B143: =TEXT(F143,"0.0%") & " Rate" -> 20.0% Rate | C143: =D143*F143 -> 6540 | D143: =D136 -> 32700 | F143: ='Tax Rates'!B42 -> 0.2
B144: =TEXT(F144,"0.0%") & " Rate" -> 40.0% Rate | C144: =D144*F144 -> -15080 | D144: =D137 -> -37700 | F144: ='Tax Rates'!B43 -> 0.4
B145: =TEXT(F145,"0.0%") & " Rate" -> 45.0% Rate | C145: =D145*F145 -> 0 | D145: =D138 -> 0 | F145: ='Tax Rates'!B44 -> 0.45
B147: Interest Income Tax | C147: =IF(OR(C121<=C133,C121=0),0,SUM(C143:C145)) -> 0
B150: Investment Income Tax (Dividend/Investment)
B152: Investment Income | C152: =C29 -> 0
B153: Dividend/Investment Income Allowance | C153: ='Tax Rates'!B22 -> 2000
B155: Non-Savings Income minus personal allowance and Interest Income | C155: =C68+C28 -> 0
D158: Taxable Interest Income by tax band | F158: Start of Band | G158: End of Band | H158: Scenario check 1 | I158: Pay+Investment check | J158: Pay+Allowance check | K158: Scenaio Check 2 | L158: Basic | M158: Upper | N158: Additional | O158: Allowance 2 | P158: Allowance 3
C159: Basic Tax Band | D159: =IF(H159=1,L159,IF(H160=1,L160,IF(H161=1,L161,0))) -> 35700 | F159: 0 | G159: ='Tax Rates'!B38 -> 37700 | H159: =IF(AND($C$155>=F159,$C$155<=G159),1,0) -> 1 | I159: =IF(AND($C$155+$C$152>F159,$C$155+$C$152<=G159),1,0) -> 0 | J159: =IF(AND($C$155+$C$153>F159,$C$155+$C$153<=G159),1,0) -> 1 | K159: =IF(AND(I159=1,J159=1),1,IF(AND(I159=0,J159=1),2,IF(AND(I159=0,J159=0),3,IF(AND(I159=1,J159=0),4,0)))) -> 2 | L159: =IF(K159=1,C152-C153,IF(K159=2,G159-C155-C153,IF(K159=3,0,IF(K159=4,0,0)))) -> 35700 | M159: =IF(K159=1,0,IF(K159=2,MIN(C155+C152-G159,G160-G159),IF(K159=3,MIN(C152-C153,G160-G159-O159),IF(K159=4,0,0)))) -> -37700 | N159: =IF(C153+C152>G160,IF(K159=1,0,IF(K159=2,C153+C152-G160,IF(K159=3,C153+C152-G160,IF(K159=4,0,0)))),0) -> 0 | O159: =$C$155+$C$153-G159 -> -35700 | P159: =$C$153-O159 -> 37700
C160: Upper Tax Band | D160: =IF(H159=1,M159,IF(H160=1,M160,IF(H161=1,M161,0))) -> -37700 | F160: 37501 | G160: ='Tax Rates'!B39 -> 150000 | H160: =IF(AND($C$155>=F160,$C$155<=G160),1,0) -> 0 | I160: =IF(AND($C$155+$C$152>F160,$C$155+$C$152<=G160),1,0) -> 0 | J160: =IF(AND($C$155+$C$153>F160,$C$155+$C$153<=G160),1,0) -> 0 | K160: =IF(AND(I160=1,J160=1),1,IF(AND(I160=0,J160=1),2,IF(AND(I160=0,J160=0),3,IF(AND(I160=1,J160=0),4,0)))) -> 3 | L160: 0 | M160: =IF(K160=1,C152-C153,IF(K160=2,G160-C155-C153,IF(K160=3,0,IF(K160=4,0,0)))) -> 0 | N160: =IF(K160=1,0,IF(K160=2,C155+C152-G160,IF(K160=3,C152-C153,IF(K160=4,0,0)))) -> -2000 | O160: =$C$155+$C$153-G160 -> -148000 | P160: =$C$153-O160 -> 150000
C161: Additional Tax Band | D161: =IF(H159=1,N159,IF(H160=1,N160,IF(H161=1,N161,0))) -> 0 | F161: 150001 | G161: 99999999 | H161: =IF(AND($C$155>=F161,$C$155<=G161),1,0) -> 0 | I161: 0 | J161: =IF(AND($C$155+$C$153>F161,$C$155+$C$153<=G161),1,0) -> 0 | K161: 3 | L161: 0 | M161: 0 | N161: =C152-C153 -> -2000 | O161: =$C$155+$C$153-G161 -> -99997999 | P161: =$C$153-O161 -> 99999999
C165: Tax | D165: Value Being Taxed | F165: Rate
B166: =TEXT(F166,"0.0%") & " Rate" -> 7.5% Rate | C166: =D166*F166 -> 2677.5 | D166: =D159 -> 35700 | F166: ='Tax Rates'!B83 -> 0.075
B167: =TEXT(F167,"0.0%") & " Rate" -> 32.5% Rate | C167: =D167*F167 -> -12252.5 | D167: =D160 -> -37700 | F167: ='Tax Rates'!B84 -> 0.325
B168: =TEXT(F168,"0.0%") & " Rate" -> 38.1% Rate | C168: =D168*F168 -> 0 | D168: 0 | F168: ='Tax Rates'!B85 -> 0.381
B170: Investment Income Tax | C170: =IF(OR(C152=0,C152<=C153),0,SUM(C166:C168)) -> 0

Sheet Tax Rates (hidden)
A3: Personal Allowance
B4: 2021/22 Allowance | C4: 2020/21 Allowance
A5: Allowance | B5: 12570 | C5: 12500 | D5: per year
A7: Interest Income
A8: Allowances | B8: 2021/22 Allowance | C8: 2020/21 Allowance
A9: Starting Rate | B9: 5000 | C9: 5000 | D9: per year
A10: Basic Rate | B10: 1000 | C10: 1000 | D10: per year
A11: Upper Rate | B11: 500 | C11: 500 | D11: per year
A12: Additional Rate | B12: 0 | C12: 0 | D12: per year
A14: Thresholds | B14: 2021/22 Thresholds | C14: 2020/21 Thresholds
A15: Starting | B15: 12570 | C15: 12500 | D15: per year
A16: Basic | B16: 17570 | C16: 17500 | D16: per year
A17: Upper | B17: 50270 | C17: 50000 | D17: per year
A18: Additional | B18: 150000 | C18: 150000 | D18: per year
A20: Investment Income Allowance
B21: 2021/22 Allowance | C21: 2020/21 Allowance
A22: Allowance | B22: 2000 | C22: 2000 | D22: per year
A25: Student Loan
A26: Thresholds | B26: 2021/22 Allowance | C26: 2020/21 Allowance
A27: Plan 1 | B27: 1657 | C27: 1615 | D27: per month
A28: Plan 2 | B28: 2274 | C28: 2214 | D28: per month
A30: Rates | B30: 2021/22 Rates | C30: 2020/21 Rates
A31: Plan 1 | B31: 0.09 | C31: 0.09
A32: Plan 2 | B32: 0.09 | C32: 0.09
A35: PAYE tax
A36: Thresholds | B36: 2021/22 Thresholds | C36: 2020/21 Thresholds
A37: Basic | B37: 0 | C37: 0 | D37: per year
A38: Higher | B38: 37700 | C38: 37500 | D38: per year
A39: Additional | B39: 150000 | C39: 150000 | D39: per year
A41: Rates | B41: 2021/22 Rates | C41: 2020/21 Rates
A42: Basic | B42: 0.2 | C42: 0.2
A43: Higher | B43: 0.4 | C43: 0.4
A44: Additional | B44: 0.45 | C44: 0.45
A47: Employment National Insurance
B48: 2021/22 Rates | C48: 2020/21 Rates
A49: Zero | B49: 0 | C49: 0
A50: Lower | B50: 0.12 | C50: 0.12
A51: Upper | B51: 0.02 | C51: 0.02
B53: 2021/22 Thresholds | C53: 2020/21 Thresholds
A54: Zero | B54: 184 | C54: 183 | D54: per week
A55: Lower | B55: 967 | C55: 962 | D55: per week
A56: Upper
A60: Self Employment National Insurance
A62: Class 2 | B62: 2021/22 Thresholds | C62: 2020/21 Thresholds
A63: Threshold | B63: 6515 | C63: 6475 | D63: per year
A64: Weekly Rate | B64: 3.05 | C64: 3.05 | D64: per week
A66: Class 4 Both Employed and Self Employed | B66: 2021/22 Rates | C66: 2020/21 Rates
A67: Flat Rate | B67: 0.02 | C67: 0.02
A69: Class 4 | B69: 2021/22 Rates | C69: 2020/21 Rates
A70: Zero | B70: 0 | C70: 0
A71: Lower | B71: 0.09 | C71: 0.09
A72: Upper | B72: 0.02 | C72: 0.02
A74: Class 4 | B74: 2021/22 Thresholds | C74: 2020/21 Thresholds
A75: Zero | B75: 9569 | C75: 9500 | E75: per year
A76: Lower | B76: 50270 | C76: 50000 | E76: per year
A77: Upper
A81: Investment Income Tax Rates
B82: 2021/22 Rates | C82: 2020/21 Rates
A83: Basic | B83: 0.075 | C83: 0.075
A84: Higher | B84: 0.325 | C84: 0.325
A85: Additional | B85: 0.381 | C85: 0.381
A88: Blind Persons Allowance
B89: 2021/22 Allowance | C89: 2020/21 Allowance
A90: Allowance | B90: 2520 | C90: 2500 | D90: per year

Sheet 1 Net Monthly Income (hidden)
A1: 1 Net Monthly Income
A4: Employed Income
A5: Gross Income Type | B5: Assessable Percentage | C5: Recognised Income | D5: Notes
A6: Basic Salary | B6: 1 | C6: 100% of Basic Salary + 50% of (Overtime + Commission + Bonus) + 100% of Permanent Contracted Allowances
A7: Overtime | B7: 0.5 | D7: discount may be subject to changes
A8: Commission | B8: 0.5
A9: Bonus | B9: 0.5
A10: Permant Contracted Allowances | B10: 1
A13: Self Employed Income
A14: Earned Income Year (EIY) | B14: Declared Gross Income | C14: Recognised Income
A15: EIY1 (Most Recent Year) | B15: £x | C15: Keep current logic for assessing the income
A16: EIY2 | B16: £y
A17: EIY3 | B17: £z
A20: Other Income Sources
A21: Income Source | B21: Discounts | C21: Assessable Percentage | D21: Any change needed
A22: Rental Income excluding BTL and Investment properties; | B22: 0.25 | C22: 0.75 | D22: Use only 80% of this
A23: Income from second job or part time employment (Should only appear in DIP06B Retired Drop down) | B23: 0 | C23: =100%-B23 -> 1 | D23: no
A24: Income earned as Partner/ Sole Proprietor; | B24: 0 | C24: 1 | D24: no
A25: Income from Company pension; | B25: 0 | C25: 1 | D25: no
A26: Income from State pension; | B26: 0 | C26: 1 | D26: no
A27: Income from Private pension; | B27: 0 | C27: 1 | D27: no
A28: Other state benefits; | B28: 0.75 | C28: 0.25
A29: Investment income; | B29: 0 | C29: 1 | D29: no
A30: Dividends; | B30: 0 | C30: 1 | D30: no
A31: Deposit Interest; | B31: 0 | C31: 1 | D31: no
A32: Trust Income; | B32: 0 | C32: 1 | D32: no
A33: Annuities; | B33: 0 | C33: 1 | D33: no
A34: Child Benefit for children aged 12 or below; | B34: 0 | C34: 1 | D34: IF any of the first two applicants Gross Income, before discounts, is > £50,000 then discount by 100% (i.e. use 0% of Child Benefit for children aged 12 or below)
A35: Other Income | B35: 0 | C35: 1 | D35: no
A38: Final Calculation
A39: Net Monthly Income Calculation | B39: Current Net Monthly Income Calculation applied to: Employed Income + Self Employed Income + Other Income Sources | C39: The new discounts mentioned above have to applied to the gross income. After which the current calculation of Net Monthly Income is sufficient.

Sheet 2 Existing Mortgage Commitments (hidden)
A1: 2 Existing Mortgage Commitments
A4: BTL Properties (BTLPortfolioMortgage)
A5: Should now be taken from the commitments screen not from the total BTL tab
B8: To be repaid | C8: Include within monthly commitments | D8: Mortgage Commitment to be used | E8: Percent 1 | F8: Percent 2 | G8: Other Commitments
A9: Customer has BTL properties | B9: Yes | C9: No | D9: Not needed | G9: Not Needed
B10: No | C10: Yes | D10: MAXIMUM(Total Exisiting Mortgage Payment + (2% Of Total Outstanding Balance)/12, (5.50% Of Total Outstanding Balance)/12) | E10: 0.02 | F10: 0.055 | G10: Total Net Rent Received After Agent Fees (Total Monthly Additional Costs detailed on application form) of properties that are not to be repaid
A14: Other Mortgage Commitments (Current mortgage / Secondary mortgage)
A15: Should still be taken from commitment screen
B18: To be repaid | C18: Include within monthly commitments | D18: Mortgage Commitment to be used | E18: Percent 1 | G18: Other Commitments
A19: Customer has exisitng properties | B19: Yes | C19: No | D19: Not needed | G19: Not Needed
B20: No | C20: Yes | D20: Total Exisiting Mortgage Payment + (3% Of Total Outstanding Balance)/12 | E20: 0.03 | G20: Total Additional costs of properties that are not to be repaid

Sheet 3 Revolving Credit Commitments (hidden)
A1: 3 Revolving Credit Commitments
A4: Inputs | B4: Variable
A5: Declared Total outstanding balance on Overdrafts/Store Cards/Credit Cards even if declared to be repaid | B5: Declared Revolving Balances
A6: Declared Total outstanding balance on Overdrafts/Store Cards/Credit Cards that customer declares are to be repaid | B6: Repaid Declared Revolving Balances
A7: Experian variable - SP-A-04 (Balance of active revolving CAIS) from both soft and hard search | B7: SP-A-04
A9: Rule | B9: Logic
A10: Threshold check | B10: IF ABS((Declared Revolving Balances/SP-A-04) -1) <= 0.05 THEN PASS ELSE FAIL
A12: Outcome of Rule | B12: Revolving Commitment to be used | C12: Policy Rule | D12: Percent
A13: Threshold PASS | B13: 3% of (MAX(Declared Revolving Balances, SP-A-04) - Repaid Declared Revolving Balances)
A14: Threshold FAIL | B14: 3% of (Declared Revolving Balances - Repaid Declared Revolving Balances) | C14: Refer - Check declared Revolving balances against Experian report | D14: 0.03
A18: Exisitng Commitment Type | B18: Revolving Commitment
A19: BTLPortfolioMortgage | B19: No
A20: Card | B20: Yes
A21: ChildMinding | B21: No
A22: CurrentMortgage | B22: No
A23: Expense | B23: No
A24: HirePurchase | B24: No
A25: Loan | B25: No
A26: MailOrder | B26: Yes
A27: Maintenance | B27: No
A28: Nursery | B28: No
A29: OtherCommitment | B29: No
A30: OtherProperty | B30: No
A31: Overdraft | B31: Yes
A32: SchoolFees | B32: No
A33: SecondaryMortgage | B33: No
A34: SecondCharge | B34: No
A35: Tenancy | B35: No
